Workbook

Sheet Sheet1
A1: Asset Number | B1: Description | C1: Cost centre | D1: Location | E1: Capitalised on | F1: Cost | G1: Book Value | H1: Last Inv Date | I1: Rationale for disposal or write off | J1: Recommendation | K1: Comments / Other Reasons for Disposal / Insurance Number
A2: 11000017142 | B2: Dell Desktop | C2: =_xlfn.XLOOKUP(A2,[1]Sheet1!$A:$A,[1]Sheet1!$C:$C,"Not found",0) -> 10135 | D2: =_xlfn.XLOOKUP(A2,[1]Sheet1!$A:$A,[1]Sheet1!$F:$F,"Not found",0) -> REC-0071 | E2: =_xlfn.XLOOKUP(A2,[1]Sheet1!$A:$A,[1]Sheet1!$H:$H,"not found",0) -> 2016-05-19 | F2: =_xlfn.XLOOKUP(A2,[1]Sheet1!$A:$A,[1]Sheet1!$D:$D,"not found",0) -> R7,239.18 | G2: =_xlfn.XLOOKUP(A2,[1]Sheet1!$A:$A,[1]Sheet1!$E:$E,"not found",0) -> R1.00 | H2: =_xlfn.XLOOKUP(A2,[1]Sheet1!$A:$A,[1]Sheet1!$I:$I,"not found",0) -> 2026-03-31 | I2: No longer provide economic value to the organisation | J2: Scrap | K2: Asset no longer meets a business requirement
A3: 11000017143 | B3: Dell Desktop | C3: =_xlfn.XLOOKUP(A3,[1]Sheet1!$A:$A,[1]Sheet1!$C:$C,"Not found",0) -> 10135 | D3: =_xlfn.XLOOKUP(A3,[1]Sheet1!$A:$A,[1]Sheet1!$F:$F,"Not found",0) -> REC-0071 | E3: =_xlfn.XLOOKUP(A3,[1]Sheet1!$A:$A,[1]Sheet1!$H:$H,"not found",0) -> 2016-05-19 | F3: =_xlfn.XLOOKUP(A3,[1]Sheet1!$A:$A,[1]Sheet1!$D:$D,"not found",0) -> R7,239.18 | G3: =_xlfn.XLOOKUP(A3,[1]Sheet1!$A:$A,[1]Sheet1!$E:$E,"not found",0) -> R1.00 | H3: =_xlfn.XLOOKUP(A3,[1]Sheet1!$A:$A,[1]Sheet1!$I:$I,"not found",0) -> 2026-03-31 | I3: No longer provide economic value to the organisation | J3: Scrap | K3: Asset no longer meets a business requirement
A4: 11000017144 | B4: Dell Desktop | C4: =_xlfn.XLOOKUP(A4,[1]Sheet1!$A:$A,[1]Sheet1!$C:$C,"Not found",0) -> 10135 | D4: =_xlfn.XLOOKUP(A4,[1]Sheet1!$A:$A,[1]Sheet1!$F:$F,"Not found",0) -> REC-0071 | E4: =_xlfn.XLOOKUP(A4,[1]Sheet1!$A:$A,[1]Sheet1!$H:$H,"not found",0) -> 2016-05-19 | F4: =_xlfn.XLOOKUP(A4,[1]Sheet1!$A:$A,[1]Sheet1!$D:$D,"not found",0) -> R7,239.18 | G4: =_xlfn.XLOOKUP(A4,[1]Sheet1!$A:$A,[1]Sheet1!$E:$E,"not found",0) -> R1.00 | H4: =_xlfn.XLOOKUP(A4,[1]Sheet1!$A:$A,[1]Sheet1!$I:$I,"not found",0) -> 2026-03-31 | I4: No longer provide economic value to the organisation | J4: Scrap | K4: Asset no longer meets a business requirement
A5: 11000017145 | B5: Dell Desktop | C5: =_xlfn.XLOOKUP(A5,[1]Sheet1!$A:$A,[1]Sheet1!$C:$C,"Not found",0) -> 10135 | D5: =_xlfn.XLOOKUP(A5,[1]Sheet1!$A:$A,[1]Sheet1!$F:$F,"Not found",0) -> REC-0071 | E5: =_xlfn.XLOOKUP(A5,[1]Sheet1!$A:$A,[1]Sheet1!$H:$H,"not found",0) -> 2016-05-19 | F5: =_xlfn.XLOOKUP(A5,[1]Sheet1!$A:$A,[1]Sheet1!$D:$D,"not found",0) -> R7,239.18 | G5: =_xlfn.XLOOKUP(A5,[1]Sheet1!$A:$A,[1]Sheet1!$E:$E,"not found",0) -> R1.00 | H5: =_xlfn.XLOOKUP(A5,[1]Sheet1!$A:$A,[1]Sheet1!$I:$I,"not found",0) -> 2026-03-31 | I5: No longer provide economic value to the organisation | J5: Scrap | K5: Asset no longer meets a business requirement
A6: 11000017146 | B6: Dell Desktop | C6: =_xlfn.XLOOKUP(A6,[1]Sheet1!$A:$A,[1]Sheet1!$C:$C,"Not found",0) -> 10135 | D6: =_xlfn.XLOOKUP(A6,[1]Sheet1!$A:$A,[1]Sheet1!$F:$F,"Not found",0) -> REC-0071 | E6: =_xlfn.XLOOKUP(A6,[1]Sheet1!$A:$A,[1]Sheet1!$H:$H,"not found",0) -> 2016-05-19 | F6: =_xlfn.XLOOKUP(A6,[1]Sheet1!$A:$A,[1]Sheet1!$D:$D,"not found",0) -> R7,239.18 | G6: =_xlfn.XLOOKUP(A6,[1]Sheet1!$A:$A,[1]Sheet1!$E:$E,"not found",0) -> R1.00 | H6: =_xlfn.XLOOKUP(A6,[1]Sheet1!$A:$A,[1]Sheet1!$I:$I,"not found",0) -> 2026-03-31 | I6: No longer provide economic value to the organisation | J6: Scrap | K6: Asset no longer meets a business requirement
A7: 14000000078 | B7: Dell Monitor | C7: =_xlfn.XLOOKUP(A7,[1]Sheet1!$A:$A,[1]Sheet1!$C:$C,"Not found",0) -> 10135 | D7: =_xlfn.XLOOKUP(A7,[1]Sheet1!$A:$A,[1]Sheet1!$F:$F,"Not found",0) -> REC-0071 | E7: =_xlfn.XLOOKUP(A7,[1]Sheet1!$A:$A,[1]Sheet1!$H:$H,"not found",0) -> 2016-05-19 | F7: =_xlfn.XLOOKUP(A7,[1]Sheet1!$A:$A,[1]Sheet1!$D:$D,"not found",0) -> R1,617.10 | G7: =_xlfn.XLOOKUP(A7,[1]Sheet1!$A:$A,[1]Sheet1!$E:$E,"not found",0) -> R1.00 | H7: =_xlfn.XLOOKUP(A7,[1]Sheet1!$A:$A,[1]Sheet1!$I:$I,"not found",0) -> 2026-03-31 | I7: No longer provide economic value to the organisation | J7: Scrap | K7: Asset no longer meets a business requirement
A8: 14000000272 | B8: Dell Monitor | C8: =_xlfn.XLOOKUP(A8,[1]Sheet1!$A:$A,[1]Sheet1!$C:$C,"Not found",0) -> 10135 | D8: =_xlfn.XLOOKUP(A8,[1]Sheet1!$A:$A,[1]Sheet1!$F:$F,"Not found",0) -> REC-0071 | E8: =_xlfn.XLOOKUP(A8,[1]Sheet1!$A:$A,[1]Sheet1!$H:$H,"not found",0) -> 2016-12-12 | F8: =_xlfn.XLOOKUP(A8,[1]Sheet1!$A:$A,[1]Sheet1!$D:$D,"not found",0) -> R1,138.86 | G8: =_xlfn.XLOOKUP(A8,[1]Sheet1!$A:$A,[1]Sheet1!$E:$E,"not found",0) -> R1.00 | H8: =_xlfn.XLOOKUP(A8,[1]Sheet1!$A:$A,[1]Sheet1!$I:$I,"not found",0) -> 2026-03-31 | I8: No longer provide economic value to the organisation | J8: Scrap | K8: Asset no longer meets a business requirement
A9: 16000000000 | B9: Acer Monitor | C9: =_xlfn.XLOOKUP(A9,[1]Sheet1!$A:$A,[1]Sheet1!$C:$C,"Not found",0) -> 10135 | D9: =_xlfn.XLOOKUP(A9,[1]Sheet1!$A:$A,[1]Sheet1!$F:$F,"Not found",0) -> REC-0071 | E9: =_xlfn.XLOOKUP(A9,[1]Sheet1!$A:$A,[1]Sheet1!$H:$H,"not found",0) -> 2017-07-11 | F9: =_xlfn.XLOOKUP(A9,[1]Sheet1!$A:$A,[1]Sheet1!$D:$D,"not found",0) -> R2,061.76 | G9: =_xlfn.XLOOKUP(A9,[1]Sheet1!$A:$A,[1]Sheet1!$E:$E,"not found",0) -> R1.00 | H9: =_xlfn.XLOOKUP(A9,[1]Sheet1!$A:$A,[1]Sheet1!$I:$I,"not found",0) -> 2026-03-31 | I9: No longer provide economic value to the organisation | J9: Scrap | K9: Asset no longer meets a business requirement
A10: 16000000016 | B10: Acer Monitor | C10: =_xlfn.XLOOKUP(A10,[1]Sheet1!$A:$A,[1]Sheet1!$C:$C,"Not found",0) -> 10135 | D10: =_xlfn.XLOOKUP(A10,[1]Sheet1!$A:$A,[1]Sheet1!$F:$F,"Not found",0) -> REC-0071 | E10: =_xlfn.XLOOKUP(A10,[1]Sheet1!$A:$A,[1]Sheet1!$H:$H,"not found",0) -> 2017-07-11 | F10: =_xlfn.XLOOKUP(A10,[1]Sheet1!$A:$A,[1]Sheet1!$D:$D,"not found",0) -> R2,061.76 | G10: =_xlfn.XLOOKUP(A10,[1]Sheet1!$A:$A,[1]Sheet1!$E:$E,"not found",0) -> R1.00 | H10: =_xlfn.XLOOKUP(A10,[1]Sheet1!$A:$A,[1]Sheet1!$I:$I,"not found",0) -> 2026-03-31 | I10: No longer provide economic value to the organisation | J10: Scrap | K10: Asset no longer meets a business requirement
A11: 16000000017 | B11: Acer Monitor | C11: =_xlfn.XLOOKUP(A11,[1]Sheet1!$A:$A,[1]Sheet1!$C:$C,"Not found",0) -> 10135 | D11: =_xlfn.XLOOKUP(A11,[1]Sheet1!$A:$A,[1]Sheet1!$F:$F,"Not found",0) -> REC-0071 | E11: =_xlfn.XLOOKUP(A11,[1]Sheet1!$A:$A,[1]Sheet1!$H:$H,"not found",0) -> 2017-07-11 | F11: =_xlfn.XLOOKUP(A11,[1]Sheet1!$A:$A,[1]Sheet1!$D:$D,"not found",0) -> R2,061.76 | G11: =_xlfn.XLOOKUP(A11,[1]Sheet1!$A:$A,[1]Sheet1!$E:$E,"not found",0) -> R1.00 | H11: =_xlfn.XLOOKUP(A11,[1]Sheet1!$A:$A,[1]Sheet1!$I:$I,"not found",0) -> 2026-03-31 | I11: No longer provide economic value to the organisation | J11: Scrap | K11: Asset no longer meets a business requirement
A12: 16000000018 | B12: Acer Monitor | C12: =_xlfn.XLOOKUP(A12,[1]Sheet1!$A:$A,[1]Sheet1!$C:$C,"Not found",0) -> 10135 | D12: =_xlfn.XLOOKUP(A12,[1]Sheet1!$A:$A,[1]Sheet1!$F:$F,"Not found",0) -> REC-0071 | E12: =_xlfn.XLOOKUP(A12,[1]Sheet1!$A:$A,[1]Sheet1!$H:$H,"not found",0) -> 2017-07-11 | F12: =_xlfn.XLOOKUP(A12,[1]Sheet1!$A:$A,[1]Sheet1!$D:$D,"not found",0) -> R2,061.76 | G12: =_xlfn.XLOOKUP(A12,[1]Sheet1!$A:$A,[1]Sheet1!$E:$E,"not found",0) -> R1.00 | H12: =_xlfn.XLOOKUP(A12,[1]Sheet1!$A:$A,[1]Sheet1!$I:$I,"not found",0) -> 2026-03-31 | I12: No longer provide economic value to the organisation | J12: Scrap | K12: Asset no longer meets a business requirement
A13: 16000000019 | B13: Acer Monitor | C13: =_xlfn.XLOOKUP(A13,[1]Sheet1!$A:$A,[1]Sheet1!$C:$C,"Not found",0) -> 10135 | D13: =_xlfn.XLOOKUP(A13,[1]Sheet1!$A:$A,[1]Sheet1!$F:$F,"Not found",0) -> REC-0071 | E13: =_xlfn.XLOOKUP(A13,[1]Sheet1!$A:$A,[1]Sheet1!$H:$H,"not found",0) -> 2017-07-11 | F13: =_xlfn.XLOOKUP(A13,[1]Sheet1!$A:$A,[1]Sheet1!$D:$D,"not found",0) -> R2,061.76 | G13: =_xlfn.XLOOKUP(A13,[1]Sheet1!$A:$A,[1]Sheet1!$E:$E,"not found",0) -> R1.00 | H13: =_xlfn.XLOOKUP(A13,[1]Sheet1!$A:$A,[1]Sheet1!$I:$I,"not found",0) -> 2026-03-31 | I13: No longer provide economic value to the organisation | J13: Scrap | K13: Asset no longer meets a business requirement
A14: 16000000020 | B14: Acer Monitor | C14: =_xlfn.XLOOKUP(A14,[1]Sheet1!$A:$A,[1]Sheet1!$C:$C,"Not found",0) -> 10135 | D14: =_xlfn.XLOOKUP(A14,[1]Sheet1!$A:$A,[1]Sheet1!$F:$F,"Not found",0) -> REC-0071 | E14: =_xlfn.XLOOKUP(A14,[1]Sheet1!$A:$A,[1]Sheet1!$H:$H,"not found",0) -> 2017-07-11 | F14: =_xlfn.XLOOKUP(A14,[1]Sheet1!$A:$A,[1]Sheet1!$D:$D,"not found",0) -> R2,061.76 | G14: =_xlfn.XLOOKUP(A14,[1]Sheet1!$A:$A,[1]Sheet1!$E:$E,"not found",0) -> R1.00 | H14: =_xlfn.XLOOKUP(A14,[1]Sheet1!$A:$A,[1]Sheet1!$I:$I,"not found",0) -> 2026-03-31 | I14: No longer provide economic value to the organisation | J14: Scrap | K14: Asset no longer meets a business requirement
A15: 16000000021 | B15: Acer Monitor | C15: =_xlfn.XLOOKUP(A15,[1]Sheet1!$A:$A,[1]Sheet1!$C:$C,"Not found",0) -> 10135 | D15: =_xlfn.XLOOKUP(A15,[1]Sheet1!$A:$A,[1]Sheet1!$F:$F,"Not found",0) -> REC-0071 | E15: =_xlfn.XLOOKUP(A15,[1]Sheet1!$A:$A,[1]Sheet1!$H:$H,"not found",0) -> 2017-07-11 | F15: =_xlfn.XLOOKUP(A15,[1]Sheet1!$A:$A,[1]Sheet1!$D:$D,"not found",0) -> R2,061.76 | G15: =_xlfn.XLOOKUP(A15,[1]Sheet1!$A:$A,[1]Sheet1!$E:$E,"not found",0) -> R1.00 | H15: =_xlfn.XLOOKUP(A15,[1]Sheet1!$A:$A,[1]Sheet1!$I:$I,"not found",0) -> 2026-03-31 | I15: No longer provide economic value to the organisation | J15: Scrap | K15: Asset no longer meets a business requirement
A16: 16000000022 | B16: Acer Monitor | C16: =_xlfn.XLOOKUP(A16,[1]Sheet1!$A:$A,[1]Sheet1!$C:$C,"Not found",0) -> 10135 | D16: =_xlfn.XLOOKUP(A16,[1]Sheet1!$A:$A,[1]Sheet1!$F:$F,"Not found",0) -> REC-0071 | E16: =_xlfn.XLOOKUP(A16,[1]Sheet1!$A:$A,[1]Sheet1!$H:$H,"not found",0) -> 2017-07-11 | F16: =_xlfn.XLOOKUP(A16,[1]Sheet1!$A:$A,[1]Sheet1!$D:$D,"not found",0) -> R2,061.76 | G16: =_xlfn.XLOOKUP(A16,[1]Sheet1!$A:$A,[1]Sheet1!$E:$E,"not found",0) -> R1.00 | H16: =_xlfn.XLOOKUP(A16,[1]Sheet1!$A:$A,[1]Sheet1!$I:$I,"not found",0) -> 2026-03-31 | I16: No longer provide economic value to the organisation | J16: Scrap | K16: Asset no longer meets a business requirement
A17: 16000000023 | B17: Acer Monitor | C17: =_xlfn.XLOOKUP(A17,[1]Sheet1!$A:$A,[1]Sheet1!$C:$C,"Not found",0) -> 10135 | D17: =_xlfn.XLOOKUP(A17,[1]Sheet1!$A:$A,[1]Sheet1!$F:$F,"Not found",0) -> REC-0071 | E17: =_xlfn.XLOOKUP(A17,[1]Sheet1!$A:$A,[1]Sheet1!$H:$H,"not found",0) -> 2017-07-11 | F17: =_xlfn.XLOOKUP(A17,[1]Sheet1!$A:$A,[1]Sheet1!$D:$D,"not found",0) -> R2,061.76 | G17: =_xlfn.XLOOKUP(A17,[1]Sheet1!$A:$A,[1]Sheet1!$E:$E,"not found",0) -> R1.00 | H17: =_xlfn.XLOOKUP(A17,[1]Sheet1!$A:$A,[1]Sheet1!$I:$I,"not found",0) -> 2026-03-31 | I17: No longer provide economic value to the organisation | J17: Scrap | K17: Asset no longer meets a business requirement
A18: 16000000024 | B18: Acer Monitor | C18: =_xlfn.XLOOKUP(A18,[1]Sheet1!$A:$A,[1]Sheet1!$C:$C,"Not found",0) -> 10135 | D18: =_xlfn.XLOOKUP(A18,[1]Sheet1!$A:$A,[1]Sheet1!$F:$F,"Not found",0) -> REC-0071 | E18: =_xlfn.XLOOKUP(A18,[1]Sheet1!$A:$A,[1]Sheet1!$H:$H,"not found",0) -> 2017-07-11 | F18: =_xlfn.XLOOKUP(A18,[1]Sheet1!$A:$A,[1]Sheet1!$D:$D,"not found",0) -> R2,061.76 | G18: =_xlfn.XLOOKUP(A18,[1]Sheet1!$A:$A,[1]Sheet1!$E:$E,"not found",0) -> R1.00 | H18: =_xlfn.XLOOKUP(A18,[1]Sheet1!$A:$A,[1]Sheet1!$I:$I,"not found",0) -> 2026-03-31 | I18: No longer provide economic value to the organisation | J18: Scrap | K18: Asset no longer meets a business requirement
A19: 16000000025 | B19: Acer Monitor | C19: =_xlfn.XLOOKUP(A19,[1]Sheet1!$A:$A,[1]Sheet1!$C:$C,"Not found",0) -> 10135 | D19: =_xlfn.XLOOKUP(A19,[1]Sheet1!$A:$A,[1]Sheet1!$F:$F,"Not found",0) -> REC-0071 | E19: =_xlfn.XLOOKUP(A19,[1]Sheet1!$A:$A,[1]Sheet1!$H:$H,"not found",0) -> 2017-07-11 | F19: =_xlfn.XLOOKUP(A19,[1]Sheet1!$A:$A,[1]Sheet1!$D:$D,"not found",0) -> R2,061.76 | G19: =_xlfn.XLOOKUP(A19,[1]Sheet1!$A:$A,[1]Sheet1!$E:$E,"not found",0) -> R1.00 | H19: =_xlfn.XLOOKUP(A19,[1]Sheet1!$A:$A,[1]Sheet1!$I:$I,"not found",0) -> 2026-03-31 | I19: No longer provide economic value to the organisation | J19: Scrap | K19: Asset no longer meets a business requirement
A20: 16000000027 | B20: Acer Monitor | C20: =_xlfn.XLOOKUP(A20,[1]Sheet1!$A:$A,[1]Sheet1!$C:$C,"Not found",0) -> 10135 | D20: =_xlfn.XLOOKUP(A20,[1]Sheet1!$A:$A,[1]Sheet1!$F:$F,"Not found",0) -> REC-0071 | E20: =_xlfn.XLOOKUP(A20,[1]Sheet1!$A:$A,[1]Sheet1!$H:$H,"not found",0) -> 2017-07-11 | F20: =_xlfn.XLOOKUP(A20,[1]Sheet1!$A:$A,[1]Sheet1!$D:$D,"not found",0) -> R2,061.76 | G20: =_xlfn.XLOOKUP(A20,[1]Sheet1!$A:$A,[1]Sheet1!$E:$E,"not found",0) -> R1.00 | H20: =_xlfn.XLOOKUP(A20,[1]Sheet1!$A:$A,[1]Sheet1!$I:$I,"not found",0) -> 2026-03-31 | I20: No longer provide economic value to the organisation | J20: Scrap | K20: Asset no longer meets a business requirement
A21: 16000000028 | B21: Acer Monitor | C21: =_xlfn.XLOOKUP(A21,[1]Sheet1!$A:$A,[1]Sheet1!$C:$C,"Not found",0) -> 10135 | D21: =_xlfn.XLOOKUP(A21,[1]Sheet1!$A:$A,[1]Sheet1!$F:$F,"Not found",0) -> REC-0071 | E21: =_xlfn.XLOOKUP(A21,[1]Sheet1!$A:$A,[1]Sheet1!$H:$H,"not found",0) -> 2017-07-11 | F21: =_xlfn.XLOOKUP(A21,[1]Sheet1!$A:$A,[1]Sheet1!$D:$D,"not found",0) -> R2,061.76 | G21: =_xlfn.XLOOKUP(A21,[1]Sheet1!$A:$A,[1]Sheet1!$E:$E,"not found",0) -> R1.00 | H21: =_xlfn.XLOOKUP(A21,[1]Sheet1!$A:$A,[1]Sheet1!$I:$I,"not found",0) -> 2026-03-31 | I21: No longer provide economic value to the organisation | J21: Scrap | K21: Asset no longer meets a business requirement
A22: 16000000029 | B22: Acer Monitor | C22: =_xlfn.XLOOKUP(A22,[1]Sheet1!$A:$A,[1]Sheet1!$C:$C,"Not found",0) -> 10135 | D22: =_xlfn.XLOOKUP(A22,[1]Sheet1!$A:$A,[1]Sheet1!$F:$F,"Not found",0) -> REC-0071 | E22: =_xlfn.XLOOKUP(A22,[1]Sheet1!$A:$A,[1]Sheet1!$H:$H,"not found",0) -> 2017-07-11 | F22: =_xlfn.XLOOKUP(A22,[1]Sheet1!$A:$A,[1]Sheet1!$D:$D,"not found",0) -> R2,061.76 | G22: =_xlfn.XLOOKUP(A22,[1]Sheet1!$A:$A,[1]Sheet1!$E:$E,"not found",0) -> R1.00 | H22: =_xlfn.XLOOKUP(A22,[1]Sheet1!$A:$A,[1]Sheet1!$I:$I,"not found",0) -> 2026-03-31 | I22: No longer provide economic value to the organisation | J22: Scrap | K22: Asset no longer meets a business requirement
A23: 16000000030 | B23: Acer Monitor | C23: =_xlfn.XLOOKUP(A23,[1]Sheet1!$A:$A,[1]Sheet1!$C:$C,"Not found",0) -> 10135 | D23: =_xlfn.XLOOKUP(A23,[1]Sheet1!$A:$A,[1]Sheet1!$F:$F,"Not found",0) -> REC-0071 | E23: =_xlfn.XLOOKUP(A23,[1]Sheet1!$A:$A,[1]Sheet1!$H:$H,"not found",0) -> 2017-07-11 | F23: =_xlfn.XLOOKUP(A23,[1]Sheet1!$A:$A,[1]Sheet1!$D:$D,"not found",0) -> R2,061.76 | G23: =_xlfn.XLOOKUP(A23,[1]Sheet1!$A:$A,[1]Sheet1!$E:$E,"not found",0) -> R1.00 | H23: =_xlfn.XLOOKUP(A23,[1]Sheet1!$A:$A,[1]Sheet1!$I:$I,"not found",0) -> 2026-03-31 | I23: No longer provide economic value to the organisation | J23: Scrap | K23: Asset no longer meets a business requirement
A24: 16000000031 | B24: Acer Monitor | C24: =_xlfn.XLOOKUP(A24,[1]Sheet1!$A:$A,[1]Sheet1!$C:$C,"Not found",0) -> 10135 | D24: =_xlfn.XLOOKUP(A24,[1]Sheet1!$A:$A,[1]Sheet1!$F:$F,"Not found",0) -> REC-0071 | E24: =_xlfn.XLOOKUP(A24,[1]Sheet1!$A:$A,[1]Sheet1!$H:$H,"not found",0) -> 2017-07-11 | F24: =_xlfn.XLOOKUP(A24,[1]Sheet1!$A:$A,[1]Sheet1!$D:$D,"not found",0) -> R2,061.76 | G24: =_xlfn.XLOOKUP(A24,[1]Sheet1!$A:$A,[1]Sheet1!$E:$E,"not found",0) -> R1.00 | H24: =_xlfn.XLOOKUP(A24,[1]Sheet1!$A:$A,[1]Sheet1!$I:$I,"not found",0) -> 2026-03-31 | I24: No longer provide economic value to the organisation | J24: Scrap | K24: Asset no longer meets a business requirement
A25: 16000000032 | B25: Acer Monitor | C25: =_xlfn.XLOOKUP(A25,[1]Sheet1!$A:$A,[1]Sheet1!$C:$C,"Not found",0) -> 10135 | D25: =_xlfn.XLOOKUP(A25,[1]Sheet1!$A:$A,[1]Sheet1!$F:$F,"Not found",0) -> REC-0071 | E25: =_xlfn.XLOOKUP(A25,[1]Sheet1!$A:$A,[1]Sheet1!$H:$H,"not found",0) -> 2017-07-11 | F25: =_xlfn.XLOOKUP(A25,[1]Sheet1!$A:$A,[1]Sheet1!$D:$D,"not found",0) -> R2,061.76 | G25: =_xlfn.XLOOKUP(A25,[1]Sheet1!$A:$A,[1]Sheet1!$E:$E,"not found",0) -> R1.00 | H25: =_xlfn.XLOOKUP(A25,[1]Sheet1!$A:$A,[1]Sheet1!$I:$I,"not found",0) -> 2026-03-31 | I25: No longer provide economic value to the organisation | J25: Scrap | K25: Asset no longer meets a business requirement
A26: 16000000033 | B26: Acer Monitor | C26: =_xlfn.XLOOKUP(A26,[1]Sheet1!$A:$A,[1]Sheet1!$C:$C,"Not found",0) -> 10135 | D26: =_xlfn.XLOOKUP(A26,[1]Sheet1!$A:$A,[1]Sheet1!$F:$F,"Not found",0) -> REC-0071 | E26: =_xlfn.XLOOKUP(A26,[1]Sheet1!$A:$A,[1]Sheet1!$H:$H,"not found",0) -> 2017-07-11 | F26: =_xlfn.XLOOKUP(A26,[1]Sheet1!$A:$A,[1]Sheet1!$D:$D,"not found",0) -> R2,061.76 | G26: =_xlfn.XLOOKUP(A26,[1]Sheet1!$A:$A,[1]Sheet1!$E:$E,"not found",0) -> R1.00 | H26: =_xlfn.XLOOKUP(A26,[1]Sheet1!$A:$A,[1]Sheet1!$I:$I,"not found",0) -> 2026-03-31 | I26: No longer provide economic value to the organisation | J26: Scrap | K26: Asset no longer meets a business requirement
A27: 16000000034 | B27: Acer Monitor | C27: =_xlfn.XLOOKUP(A27,[1]Sheet1!$A:$A,[1]Sheet1!$C:$C,"Not found",0) -> 10135 | D27: =_xlfn.XLOOKUP(A27,[1]Sheet1!$A:$A,[1]Sheet1!$F:$F,"Not found",0) -> REC-0071 | E27: =_xlfn.XLOOKUP(A27,[1]Sheet1!$A:$A,[1]Sheet1!$H:$H,"not found",0) -> 2017-07-11 | F27: =_xlfn.XLOOKUP(A27,[1]Sheet1!$A:$A,[1]Sheet1!$D:$D,"not found",0) -> R2,061.76 | G27: =_xlfn.XLOOKUP(A27,[1]Sheet1!$A:$A,[1]Sheet1!$E:$E,"not found",0) -> R1.00 | H27: =_xlfn.XLOOKUP(A27,[1]Sheet1!$A:$A,[1]Sheet1!$I:$I,"not found",0) -> 2026-03-31 | I27: No longer provide economic value to the organisation | J27: Scrap | K27: Asset no longer meets a business requirement
A28: 16000000035 | B28: Acer Monitor | C28: =_xlfn.XLOOKUP(A28,[1]Sheet1!$A:$A,[1]Sheet1!$C:$C,"Not found",0) -> 10135 | D28: =_xlfn.XLOOKUP(A28,[1]Sheet1!$A:$A,[1]Sheet1!$F:$F,"Not found",0) -> REC-0071 | E28: =_xlfn.XLOOKUP(A28,[1]Sheet1!$A:$A,[1]Sheet1!$H:$H,"not found",0) -> 2017-07-11 | F28: =_xlfn.XLOOKUP(A28,[1]Sheet1!$A:$A,[1]Sheet1!$D:$D,"not found",0) -> R2,061.76 | G28: =_xlfn.XLOOKUP(A28,[1]Sheet1!$A:$A,[1]Sheet1!$E:$E,"not found",0) -> R1.00 | H28: =_xlfn.XLOOKUP(A28,[1]Sheet1!$A:$A,[1]Sheet1!$I:$I,"not found",0) -> 2026-03-31 | I28: No longer provide economic value to the organisation | J28: Scrap | K28: Asset no longer meets a business requirement
A29: 16000000036 | B29: Acer Monitor | C29: =_xlfn.XLOOKUP(A29,[1]Sheet1!$A:$A,[1]Sheet1!$C:$C,"Not found",0) -> 10135 | D29: =_xlfn.XLOOKUP(A29,[1]Sheet1!$A:$A,[1]Sheet1!$F:$F,"Not found",0) -> REC-0071 | E29: =_xlfn.XLOOKUP(A29,[1]Sheet1!$A:$A,[1]Sheet1!$H:$H,"not found",0) -> 2017-07-11 | F29: =_xlfn.XLOOKUP(A29,[1]Sheet1!$A:$A,[1]Sheet1!$D:$D,"not found",0) -> R2,061.76 | G29: =_xlfn.XLOOKUP(A29,[1]Sheet1!$A:$A,[1]Sheet1!$E:$E,"not found",0) -> R1.00 | H29: =_xlfn.XLOOKUP(A29,[1]Sheet1!$A:$A,[1]Sheet1!$I:$I,"not found",0) -> 2026-03-31 | I29: No longer provide economic value to the organisation | J29: Scrap | K29: Asset no longer meets a business requirement
A30: 16000000038 | B30: Acer Monitor | C30: =_xlfn.XLOOKUP(A30,[1]Sheet1!$A:$A,[1]Sheet1!$C:$C,"Not found",0) -> 10135 | D30: =_xlfn.XLOOKUP(A30,[1]Sheet1!$A:$A,[1]Sheet1!$F:$F,"Not found",0) -> REC-0071 | E30: =_xlfn.XLOOKUP(A30,[1]Sheet1!$A:$A,[1]Sheet1!$H:$H,"not found",0) -> 2017-07-11 | F30: =_xlfn.XLOOKUP(A30,[1]Sheet1!$A:$A,[1]Sheet1!$D:$D,"not found",0) -> R2,061.76 | G30: =_xlfn.XLOOKUP(A30,[1]Sheet1!$A:$A,[1]Sheet1!$E:$E,"not found",0) -> R1.00 | H30: =_xlfn.XLOOKUP(A30,[1]Sheet1!$A:$A,[1]Sheet1!$I:$I,"not found",0) -> 2026-03-31 | I30: No longer provide economic value to the organisation | J30: Scrap | K30: Asset no longer meets a business requirement
A31: 16000000039 | B31: Acer Monitor | C31: =_xlfn.XLOOKUP(A31,[1]Sheet1!$A:$A,[1]Sheet1!$C:$C,"Not found",0) -> 10135 | D31: =_xlfn.XLOOKUP(A31,[1]Sheet1!$A:$A,[1]Sheet1!$F:$F,"Not found",0) -> REC-0071 | E31: =_xlfn.XLOOKUP(A31,[1]Sheet1!$A:$A,[1]Sheet1!$H:$H,"not found",0) -> 2017-07-11 | F31: =_xlfn.XLOOKUP(A31,[1]Sheet1!$A:$A,[1]Sheet1!$D:$D,"not found",0) -> R2,061.76 | G31: =_xlfn.XLOOKUP(A31,[1]Sheet1!$A:$A,[1]Sheet1!$E:$E,"not found",0) -> R1.00 | H31: =_xlfn.XLOOKUP(A31,[1]Sheet1!$A:$A,[1]Sheet1!$I:$I,"not found",0) -> 2026-03-31 | I31: No longer provide economic value to the organisation | J31: Scrap | K31: Asset no longer meets a business requirement
A32: 16000000040 | B32: Acer Monitor | C32: =_xlfn.XLOOKUP(A32,[1]Sheet1!$A:$A,[1]Sheet1!$C:$C,"Not found",0) -> 10135 | D32: =_xlfn.XLOOKUP(A32,[1]Sheet1!$A:$A,[1]Sheet1!$F:$F,"Not found",0) -> REC-0071 | E32: =_xlfn.XLOOKUP(A32,[1]Sheet1!$A:$A,[1]Sheet1!$H:$H,"not found",0) -> 2017-07-11 | F32: =_xlfn.XLOOKUP(A32,[1]Sheet1!$A:$A,[1]Sheet1!$D:$D,"not found",0) -> R2,061.76 | G32: =_xlfn.XLOOKUP(A32,[1]Sheet1!$A:$A,[1]Sheet1!$E:$E,"not found",0) -> R1.00 | H32: =_xlfn.XLOOKUP(A32,[1]Sheet1!$A:$A,[1]Sheet1!$I:$I,"not found",0) -> 2026-03-31 | I32: No longer provide economic value to the organisation | J32: Scrap | K32: Asset no longer meets a business requirement
A33: 16000000041 | B33: Acer Monitor | C33: =_xlfn.XLOOKUP(A33,[1]Sheet1!$A:$A,[1]Sheet1!$C:$C,"Not found",0) -> 10135 | D33: =_xlfn.XLOOKUP(A33,[1]Sheet1!$A:$A,[1]Sheet1!$F:$F,"Not found",0) -> REC-0071 | E33: =_xlfn.XLOOKUP(A33,[1]Sheet1!$A:$A,[1]Sheet1!$H:$H,"not found",0) -> 2017-07-11 | F33: =_xlfn.XLOOKUP(A33,[1]Sheet1!$A:$A,[1]Sheet1!$D:$D,"not found",0) -> R2,061.76 | G33: =_xlfn.XLOOKUP(A33,[1]Sheet1!$A:$A,[1]Sheet1!$E:$E,"not found",0) -> R1.00 | H33: =_xlfn.XLOOKUP(A33,[1]Sheet1!$A:$A,[1]Sheet1!$I:$I,"not found",0) -> 2026-03-31 | I33: No longer provide economic value to the organisation | J33: Scrap | K33: Asset no longer meets a business requirement
A34: 16000000042 | B34: Acer Monitor | C34: =_xlfn.XLOOKUP(A34,[1]Sheet1!$A:$A,[1]Sheet1!$C:$C,"Not found",0) -> 10135 | D34: =_xlfn.XLOOKUP(A34,[1]Sheet1!$A:$A,[1]Sheet1!$F:$F,"Not found",0) -> REC-0071 | E34: =_xlfn.XLOOKUP(A34,[1]Sheet1!$A:$A,[1]Sheet1!$H:$H,"not found",0) -> 2017-07-11 | F34: =_xlfn.XLOOKUP(A34,[1]Sheet1!$A:$A,[1]Sheet1!$D:$D,"not found",0) -> R2,061.76 | G34: =_xlfn.XLOOKUP(A34,[1]Sheet1!$A:$A,[1]Sheet1!$E:$E,"not found",0) -> R1.00 | H34: =_xlfn.XLOOKUP(A34,[1]Sheet1!$A:$A,[1]Sheet1!$I:$I,"not found",0) -> 2026-03-31 | I34: No longer provide economic value to the organisation | J34: Scrap | K34: Asset no longer meets a business requirement
A35: 16000000043 | B35: Acer Monitor | C35: =_xlfn.XLOOKUP(A35,[1]Sheet1!$A:$A,[1]Sheet1!$C:$C,"Not found",0) -> 10135 | D35: =_xlfn.XLOOKUP(A35,[1]Sheet1!$A:$A,[1]Sheet1!$F:$F,"Not found",0) -> REC-0071 | E35: =_xlfn.XLOOKUP(A35,[1]Sheet1!$A:$A,[1]Sheet1!$H:$H,"not found",0) -> 2017-07-11 | F35: =_xlfn.XLOOKUP(A35,[1]Sheet1!$A:$A,[1]Sheet1!$D:$D,"not found",0) -> R2,061.76 | G35: =_xlfn.XLOOKUP(A35,[1]Sheet1!$A:$A,[1]Sheet1!$E:$E,"not found",0) -> R1.00 | H35: =_xlfn.XLOOKUP(A35,[1]Sheet1!$A:$A,[1]Sheet1!$I:$I,"not found",0) -> 2026-03-31 | I35: No longer provide economic value to the organisation | J35: Scrap | K35: Asset no longer meets a business requirement
A36: 16000000045 | B36: Acer Monitor | C36: =_xlfn.XLOOKUP(A36,[1]Sheet1!$A:$A,[1]Sheet1!$C:$C,"Not found",0) -> 10135 | D36: =_xlfn.XLOOKUP(A36,[1]Sheet1!$A:$A,[1]Sheet1!$F:$F,"Not found",0) -> REC-0071 | E36: =_xlfn.XLOOKUP(A36,[1]Sheet1!$A:$A,[1]Sheet1!$H:$H,"not found",0) -> 2017-07-11 | F36: =_xlfn.XLOOKUP(A36,[1]Sheet1!$A:$A,[1]Sheet1!$D:$D,"not found",0) -> R2,061.76 | G36: =_xlfn.XLOOKUP(A36,[1]Sheet1!$A:$A,[1]Sheet1!$E:$E,"not found",0) -> R1.00 | H36: =_xlfn.XLOOKUP(A36,[1]Sheet1!$A:$A,[1]Sheet1!$I:$I,"not found",0) -> 2026-03-31 | I36: No longer provide economic value to the organisation | J36: Scrap | K36: Asset no longer meets a business requirement
A37: 16000000046 | B37: Acer Monitor | C37: =_xlfn.XLOOKUP(A37,[1]Sheet1!$A:$A,[1]Sheet1!$C:$C,"Not found",0) -> 10135 | D37: =_xlfn.XLOOKUP(A37,[1]Sheet1!$A:$A,[1]Sheet1!$F:$F,"Not found",0) -> REC-0071 | E37: =_xlfn.XLOOKUP(A37,[1]Sheet1!$A:$A,[1]Sheet1!$H:$H,"not found",0) -> 2017-07-11 | F37: =_xlfn.XLOOKUP(A37,[1]Sheet1!$A:$A,[1]Sheet1!$D:$D,"not found",0) -> R2,061.76 | G37: =_xlfn.XLOOKUP(A37,[1]Sheet1!$A:$A,[1]Sheet1!$E:$E,"not found",0) -> R1.00 | H37: =_xlfn.XLOOKUP(A37,[1]Sheet1!$A:$A,[1]Sheet1!$I:$I,"not found",0) -> 2026-03-31 | I37: No longer provide economic value to the organisation | J37: Scrap | K37: Asset no longer meets a business requirement
A38: 16000000047 | B38: Acer Monitor | C38: =_xlfn.XLOOKUP(A38,[1]Sheet1!$A:$A,[1]Sheet1!$C:$C,"Not found",0) -> 10135 | D38: =_xlfn.XLOOKUP(A38,[1]Sheet1!$A:$A,[1]Sheet1!$F:$F,"Not found",0) -> REC-0071 | E38: =_xlfn.XLOOKUP(A38,[1]Sheet1!$A:$A,[1]Sheet1!$H:$H,"not found",0) -> 2017-07-11 | F38: =_xlfn.XLOOKUP(A38,[1]Sheet1!$A:$A,[1]Sheet1!$D:$D,"not found",0) -> R2,061.76 | G38: =_xlfn.XLOOKUP(A38,[1]Sheet1!$A:$A,[1]Sheet1!$E:$E,"not found",0) -> R1.00 | H38: =_xlfn.XLOOKUP(A38,[1]Sheet1!$A:$A,[1]Sheet1!$I:$I,"not found",0) -> 2026-03-31 | I38: No longer provide economic value to the organisation | J38: Scrap | K38: Asset no longer meets a business requirement
A39: 16000000048 | B39: Acer Monitor | C39: =_xlfn.XLOOKUP(A39,[1]Sheet1!$A:$A,[1]Sheet1!$C:$C,"Not found",0) -> 10135 | D39: =_xlfn.XLOOKUP(A39,[1]Sheet1!$A:$A,[1]Sheet1!$F:$F,"Not found",0) -> REC-0071 | E39: =_xlfn.XLOOKUP(A39,[1]Sheet1!$A:$A,[1]Sheet1!$H:$H,"not found",0) -> 2017-07-11 | F39: =_xlfn.XLOOKUP(A39,[1]Sheet1!$A:$A,[1]Sheet1!$D:$D,"not found",0) -> R2,061.76 | G39: =_xlfn.XLOOKUP(A39,[1]Sheet1!$A:$A,[1]Sheet1!$E:$E,"not found",0) -> R1.00 | H39: =_xlfn.XLOOKUP(A39,[1]Sheet1!$A:$A,[1]Sheet1!$I:$I,"not found",0) -> 2026-03-31 | I39: No longer provide economic value to the organisation | J39: Scrap | K39: Asset no longer meets a business requirement
A40: 16000000049 | B40: Acer Monitor | C40: =_xlfn.XLOOKUP(A40,[1]Sheet1!$A:$A,[1]Sheet1!$C:$C,"Not found",0) -> 10135 | D40: =_xlfn.XLOOKUP(A40,[1]Sheet1!$A:$A,[1]Sheet1!$F:$F,"Not found",0) -> REC-0071 | E40: =_xlfn.XLOOKUP(A40,[1]Sheet1!$A:$A,[1]Sheet1!$H:$H,"not found",0) -> 2017-07-11 | F40: =_xlfn.XLOOKUP(A40,[1]Sheet1!$A:$A,[1]Sheet1!$D:$D,"not found",0) -> R2,061.76 | G40: =_xlfn.XLOOKUP(A40,[1]Sheet1!$A:$A,[1]Sheet1!$E:$E,"not found",0) -> R1.00 | H40: =_xlfn.XLOOKUP(A40,[1]Sheet1!$A:$A,[1]Sheet1!$I:$I,"not found",0) -> 2026-03-31 | I40: No longer provide economic value to the organisation | J40: Scrap | K40: Asset no longer meets a business requirement
A41: 16000000050 | B41: Acer Monitor | C41: =_xlfn.XLOOKUP(A41,[1]Sheet1!$A:$A,[1]Sheet1!$C:$C,"Not found",0) -> 10135 | D41: =_xlfn.XLOOKUP(A41,[1]Sheet1!$A:$A,[1]Sheet1!$F:$F,"Not found",0) -> REC-0071 | E41: =_xlfn.XLOOKUP(A41,[1]Sheet1!$A:$A,[1]Sheet1!$H:$H,"not found",0) -> 2017-07-11 | F41: =_xlfn.XLOOKUP(A41,[1]Sheet1!$A:$A,[1]Sheet1!$D:$D,"not found",0) -> R2,061.76 | G41: =_xlfn.XLOOKUP(A41,[1]Sheet1!$A:$A,[1]Sheet1!$E:$E,"not found",0) -> R1.00 | H41: =_xlfn.XLOOKUP(A41,[1]Sheet1!$A:$A,[1]Sheet1!$I:$I,"not found",0) -> 2026-03-31 | I41: No longer provide economic value to the organisation | J41: Scrap | K41: Asset no longer meets a business requirement
A42: 16000000052 | B42: Acer Monitor | C42: =_xlfn.XLOOKUP(A42,[1]Sheet1!$A:$A,[1]Sheet1!$C:$C,"Not found",0) -> 10135 | D42: =_xlfn.XLOOKUP(A42,[1]Sheet1!$A:$A,[1]Sheet1!$F:$F,"Not found",0) -> REC-0071 | E42: =_xlfn.XLOOKUP(A42,[1]Sheet1!$A:$A,[1]Sheet1!$H:$H,"not found",0) -> 2017-07-11 | F42: =_xlfn.XLOOKUP(A42,[1]Sheet1!$A:$A,[1]Sheet1!$D:$D,"not found",0) -> R2,061.76 | G42: =_xlfn.XLOOKUP(A42,[1]Sheet1!$A:$A,[1]Sheet1!$E:$E,"not found",0) -> R1.00 | H42: =_xlfn.XLOOKUP(A42,[1]Sheet1!$A:$A,[1]Sheet1!$I:$I,"not found",0) -> 2026-03-31 | I42: No longer provide economic value to the organisation | J42: Scrap | K42: Asset no longer meets a business requirement
A43: 16000000053 | B43: Acer Monitor | C43: =_xlfn.XLOOKUP(A43,[1]Sheet1!$A:$A,[1]Sheet1!$C:$C,"Not found",0) -> 10135 | D43: =_xlfn.XLOOKUP(A43,[1]Sheet1!$A:$A,[1]Sheet1!$F:$F,"Not found",0) -> REC-0071 | E43: =_xlfn.XLOOKUP(A43,[1]Sheet1!$A:$A,[1]Sheet1!$H:$H,"not found",0) -> 2017-07-11 | F43: =_xlfn.XLOOKUP(A43,[1]Sheet1!$A:$A,[1]Sheet1!$D:$D,"not found",0) -> R2,061.76 | G43: =_xlfn.XLOOKUP(A43,[1]Sheet1!$A:$A,[1]Sheet1!$E:$E,"not found",0) -> R1.00 | H43: =_xlfn.XLOOKUP(A43,[1]Sheet1!$A:$A,[1]Sheet1!$I:$I,"not found",0) -> 2026-03-31 | I43: No longer provide economic value to the organisation | J43: Scrap | K43: Asset no longer meets a business requirement
A44: 16000000054 | B44: Acer Monitor | C44: =_xlfn.XLOOKUP(A44,[1]Sheet1!$A:$A,[1]Sheet1!$C:$C,"Not found",0) -> 10135 | D44: =_xlfn.XLOOKUP(A44,[1]Sheet1!$A:$A,[1]Sheet1!$F:$F,"Not found",0) -> REC-0071 | E44: =_xlfn.XLOOKUP(A44,[1]Sheet1!$A:$A,[1]Sheet1!$H:$H,"not found",0) -> 2017-07-11 | F44: =_xlfn.XLOOKUP(A44,[1]Sheet1!$A:$A,[1]Sheet1!$D:$D,"not found",0) -> R2,061.76 | G44: =_xlfn.XLOOKUP(A44,[1]Sheet1!$A:$A,[1]Sheet1!$E:$E,"not found",0) -> R1.00 | H44: =_xlfn.XLOOKUP(A44,[1]Sheet1!$A:$A,[1]Sheet1!$I:$I,"not found",0) -> 2026-03-31 | I44: No longer provide economic value to the organisation | J44: Scrap | K44: Asset no longer meets a business requirement
A45: 16000000055 | B45: Acer Monitor | C45: =_xlfn.XLOOKUP(A45,[1]Sheet1!$A:$A,[1]Sheet1!$C:$C,"Not found",0) -> 10135 | D45: =_xlfn.XLOOKUP(A45,[1]Sheet1!$A:$A,[1]Sheet1!$F:$F,"Not found",0) -> REC-0071 | E45: =_xlfn.XLOOKUP(A45,[1]Sheet1!$A:$A,[1]Sheet1!$H:$H,"not found",0) -> 2017-07-11 | F45: =_xlfn.XLOOKUP(A45,[1]Sheet1!$A:$A,[1]Sheet1!$D:$D,"not found",0) -> R2,061.76 | G45: =_xlfn.XLOOKUP(A45,[1]Sheet1!$A:$A,[1]Sheet1!$E:$E,"not found",0) -> R1.00 | H45: =_xlfn.XLOOKUP(A45,[1]Sheet1!$A:$A,[1]Sheet1!$I:$I,"not found",0) -> 2026-03-31 | I45: No longer provide economic value to the organisation | J45: Scrap | K45: Asset no longer meets a business requirement
A46: 16000000056 | B46: Acer Monitor | C46: =_xlfn.XLOOKUP(A46,[1]Sheet1!$A:$A,[1]Sheet1!$C:$C,"Not found",0) -> 10135 | D46: =_xlfn.XLOOKUP(A46,[1]Sheet1!$A:$A,[1]Sheet1!$F:$F,"Not found",0) -> REC-0071 | E46: =_xlfn.XLOOKUP(A46,[1]Sheet1!$A:$A,[1]Sheet1!$H:$H,"not found",0) -> 2017-07-11 | F46: =_xlfn.XLOOKUP(A46,[1]Sheet1!$A:$A,[1]Sheet1!$D:$D,"not found",0) -> R2,061.76 | G46: =_xlfn.XLOOKUP(A46,[1]Sheet1!$A:$A,[1]Sheet1!$E:$E,"not found",0) -> R1.00 | H46: =_xlfn.XLOOKUP(A46,[1]Sheet1!$A:$A,[1]Sheet1!$I:$I,"not found",0) -> 2026-03-31 | I46: No longer provide economic value to the organisation | J46: Scrap | K46: Asset no longer meets a business requirement
A47: 16000000057 | B47: Acer Monitor | C47: =_xlfn.XLOOKUP(A47,[1]Sheet1!$A:$A,[1]Sheet1!$C:$C,"Not found",0) -> 10135 | D47: =_xlfn.XLOOKUP(A47,[1]Sheet1!$A:$A,[1]Sheet1!$F:$F,"Not found",0) -> REC-0071 | E47: =_xlfn.XLOOKUP(A47,[1]Sheet1!$A:$A,[1]Sheet1!$H:$H,"not found",0) -> 2017-07-11 | F47: =_xlfn.XLOOKUP(A47,[1]Sheet1!$A:$A,[1]Sheet1!$D:$D,"not found",0) -> R2,061.76 | G47: =_xlfn.XLOOKUP(A47,[1]Sheet1!$A:$A,[1]Sheet1!$E:$E,"not found",0) -> R1.00 | H47: =_xlfn.XLOOKUP(A47,[1]Sheet1!$A:$A,[1]Sheet1!$I:$I,"not found",0) -> 2026-03-31 | I47: No longer provide economic value to the organisation | J47: Scrap | K47: Asset no longer meets a business requirement
A48: 16000000058 | B48: Acer Monitor | C48: =_xlfn.XLOOKUP(A48,[1]Sheet1!$A:$A,[1]Sheet1!$C:$C,"Not found",0) -> 10135 | D48: =_xlfn.XLOOKUP(A48,[1]Sheet1!$A:$A,[1]Sheet1!$F:$F,"Not found",0) -> REC-0071 | E48: =_xlfn.XLOOKUP(A48,[1]Sheet1!$A:$A,[1]Sheet1!$H:$H,"not found",0) -> 2017-07-11 | F48: =_xlfn.XLOOKUP(A48,[1]Sheet1!$A:$A,[1]Sheet1!$D:$D,"not found",0) -> R2,061.76 | G48: =_xlfn.XLOOKUP(A48,[1]Sheet1!$A:$A,[1]Sheet1!$E:$E,"not found",0) -> R1.00 | H48: =_xlfn.XLOOKUP(A48,[1]Sheet1!$A:$A,[1]Sheet1!$I:$I,"not found",0) -> 2026-03-31 | I48: No longer provide economic value to the organisation | J48: Scrap | K48: Asset no longer meets a business requirement
A49: 16000000059 | B49: Acer Monitor | C49: =_xlfn.XLOOKUP(A49,[1]Sheet1!$A:$A,[1]Sheet1!$C:$C,"Not found",0) -> 10135 | D49: =_xlfn.XLOOKUP(A49,[1]Sheet1!$A:$A,[1]Sheet1!$F:$F,"Not found",0) -> REC-0071 | E49: =_xlfn.XLOOKUP(A49,[1]Sheet1!$A:$A,[1]Sheet1!$H:$H,"not found",0) -> 2017-07-11 | F49: =_xlfn.XLOOKUP(A49,[1]Sheet1!$A:$A,[1]Sheet1!$D:$D,"not found",0) -> R2,061.76 | G49: =_xlfn.XLOOKUP(A49,[1]Sheet1!$A:$A,[1]Sheet1!$E:$E,"not found",0) -> R1.00 | H49: =_xlfn.XLOOKUP(A49,[1]Sheet1!$A:$A,[1]Sheet1!$I:$I,"not found",0) -> 2026-03-31 | I49: No longer provide economic value to the organisation | J49: Scrap | K49: Asset no longer meets a business requirement
A50: 16000000060 | B50: Acer Monitor | C50: =_xlfn.XLOOKUP(A50,[1]Sheet1!$A:$A,[1]Sheet1!$C:$C,"Not found",0) -> 10135 | D50: =_xlfn.XLOOKUP(A50,[1]Sheet1!$A:$A,[1]Sheet1!$F:$F,"Not found",0) -> REC-0071 | E50: =_xlfn.XLOOKUP(A50,[1]Sheet1!$A:$A,[1]Sheet1!$H:$H,"not found",0) -> 2017-07-11 | F50: =_xlfn.XLOOKUP(A50,[1]Sheet1!$A:$A,[1]Sheet1!$D:$D,"not found",0) -> R2,061.76 | G50: =_xlfn.XLOOKUP(A50,[1]Sheet1!$A:$A,[1]Sheet1!$E:$E,"not found",0) -> R1.00 | H50: =_xlfn.XLOOKUP(A50,[1]Sheet1!$A:$A,[1]Sheet1!$I:$I,"not found",0) -> 2026-03-31 | I50: No longer provide economic value to the organisation | J50: Scrap | K50: Asset no longer meets a business requirement
A51: 16000000061 | B51: Acer Monitor | C51: =_xlfn.XLOOKUP(A51,[1]Sheet1!$A:$A,[1]Sheet1!$C:$C,"Not found",0) -> 10135 | D51: =_xlfn.XLOOKUP(A51,[1]Sheet1!$A:$A,[1]Sheet1!$F:$F,"Not found",0) -> REC-0071 | E51: =_xlfn.XLOOKUP(A51,[1]Sheet1!$A:$A,[1]Sheet1!$H:$H,"not found",0) -> 2017-07-11 | F51: =_xlfn.XLOOKUP(A51,[1]Sheet1!$A:$A,[1]Sheet1!$D:$D,"not found",0) -> R2,061.76 | G51: =_xlfn.XLOOKUP(A51,[1]Sheet1!$A:$A,[1]Sheet1!$E:$E,"not found",0) -> R1.00 | H51: =_xlfn.XLOOKUP(A51,[1]Sheet1!$A:$A,[1]Sheet1!$I:$I,"not found",0) -> 2026-03-31 | I51: No longer provide economic value to the organisation | J51: Scrap | K51: Asset no longer meets a business requirement
A52: 16000000062 | B52: Acer Monitor | C52: =_xlfn.XLOOKUP(A52,[1]Sheet1!$A:$A,[1]Sheet1!$C:$C,"Not found",0) -> 10135 | D52: =_xlfn.XLOOKUP(A52,[1]Sheet1!$A:$A,[1]Sheet1!$F:$F,"Not found",0) -> REC-0071 | E52: =_xlfn.XLOOKUP(A52,[1]Sheet1!$A:$A,[1]Sheet1!$H:$H,"not found",0) -> 2017-07-11 | F52: =_xlfn.XLOOKUP(A52,[1]Sheet1!$A:$A,[1]Sheet1!$D:$D,"not found",0) -> R2,061.76 | G52: =_xlfn.XLOOKUP(A52,[1]Sheet1!$A:$A,[1]Sheet1!$E:$E,"not found",0) -> R1.00 | H52: =_xlfn.XLOOKUP(A52,[1]Sheet1!$A:$A,[1]Sheet1!$I:$I,"not found",0) -> 2026-03-31 | I52: No longer provide economic value to the organisation | J52: Scrap | K52: Asset no longer meets a business requirement
A53: 16000000063 | B53: Acer Monitor | C53: =_xlfn.XLOOKUP(A53,[1]Sheet1!$A:$A,[1]Sheet1!$C:$C,"Not found",0) -> 10135 | D53: =_xlfn.XLOOKUP(A53,[1]Sheet1!$A:$A,[1]Sheet1!$F:$F,"Not found",0) -> REC-0071 | E53: =_xlfn.XLOOKUP(A53,[1]Sheet1!$A:$A,[1]Sheet1!$H:$H,"not found",0) -> 2017-07-11 | F53: =_xlfn.XLOOKUP(A53,[1]Sheet1!$A:$A,[1]Sheet1!$D:$D,"not found",0) -> R2,061.76 | G53: =_xlfn.XLOOKUP(A53,[1]Sheet1!$A:$A,[1]Sheet1!$E:$E,"not found",0) -> R1.00 | H53: =_xlfn.XLOOKUP(A53,[1]Sheet1!$A:$A,[1]Sheet1!$I:$I,"not found",0) -> 2026-03-31 | I53: No longer provide economic value to the organisation | J53: Scrap | K53: Asset no longer meets a business requirement
A54: 14000000148 | B54: Dell Monitor | C54: =_xlfn.XLOOKUP(A54,[1]Sheet1!$A:$A,[1]Sheet1!$C:$C,"Not found",0) -> 10135 | D54: =_xlfn.XLOOKUP(A54,[1]Sheet1!$A:$A,[1]Sheet1!$F:$F,"Not found",0) -> REC-0071 | E54: =_xlfn.XLOOKUP(A54,[1]Sheet1!$A:$A,[1]Sheet1!$H:$H,"not found",0) -> 2016-10-14 | F54: =_xlfn.XLOOKUP(A54,[1]Sheet1!$A:$A,[1]Sheet1!$D:$D,"not found",0) -> R2,487.00 | G54: =_xlfn.XLOOKUP(A54,[1]Sheet1!$A:$A,[1]Sheet1!$E:$E,"not found",0) -> R1.00 | H54: =_xlfn.XLOOKUP(A54,[1]Sheet1!$A:$A,[1]Sheet1!$I:$I,"not found",0) -> 2026-03-31 | I54: No longer provide economic value to the organisation | J54: Scrap | K54: Asset no longer meets a business requirement
A55: 14000000150 | B55: Dell Monitor | C55: =_xlfn.XLOOKUP(A55,[1]Sheet1!$A:$A,[1]Sheet1!$C:$C,"Not found",0) -> 10135 | D55: =_xlfn.XLOOKUP(A55,[1]Sheet1!$A:$A,[1]Sheet1!$F:$F,"Not found",0) -> REC-0071 | E55: =_xlfn.XLOOKUP(A55,[1]Sheet1!$A:$A,[1]Sheet1!$H:$H,"not found",0) -> 2016-10-14 | F55: =_xlfn.XLOOKUP(A55,[1]Sheet1!$A:$A,[1]Sheet1!$D:$D,"not found",0) -> R2,487.00 | G55: =_xlfn.XLOOKUP(A55,[1]Sheet1!$A:$A,[1]Sheet1!$E:$E,"not found",0) -> R1.00 | H55: =_xlfn.XLOOKUP(A55,[1]Sheet1!$A:$A,[1]Sheet1!$I:$I,"not found",0) -> 2026-03-31 | I55: No longer provide economic value to the organisation | J55: Scrap | K55: Asset no longer meets a business requirement
A56: 14000000151 | B56: Dell Monitor | C56: =_xlfn.XLOOKUP(A56,[1]Sheet1!$A:$A,[1]Sheet1!$C:$C,"Not found",0) -> F30015 | D56: =_xlfn.XLOOKUP(A56,[1]Sheet1!$A:$A,[1]Sheet1!$F:$F,"Not found",0) -> REC-0071 | E56: =_xlfn.XLOOKUP(A56,[1]Sheet1!$A:$A,[1]Sheet1!$H:$H,"not found",0) -> 2016-10-14 | F56: =_xlfn.XLOOKUP(A56,[1]Sheet1!$A:$A,[1]Sheet1!$D:$D,"not found",0) -> R2,487.00 | G56: =_xlfn.XLOOKUP(A56,[1]Sheet1!$A:$A,[1]Sheet1!$E:$E,"not found",0) -> R1.00 | H56: =_xlfn.XLOOKUP(A56,[1]Sheet1!$A:$A,[1]Sheet1!$I:$I,"not found",0) -> 2026-03-31 | I56: No longer provide economic value to the organisation | J56: Scrap | K56: Asset no longer meets a business requirement
A57: 11000017390 | B57: HP Desktop | C57: =_xlfn.XLOOKUP(A57,[1]Sheet1!$A:$A,[1]Sheet1!$C:$C,"Not found",0) -> 10135 | D57: =_xlfn.XLOOKUP(A57,[1]Sheet1!$A:$A,[1]Sheet1!$F:$F,"Not found",0) -> REC-0071 | E57: =_xlfn.XLOOKUP(A57,[1]Sheet1!$A:$A,[1]Sheet1!$H:$H,"not found",0) -> 2017-03-29 | F57: =_xlfn.XLOOKUP(A57,[1]Sheet1!$A:$A,[1]Sheet1!$D:$D,"not found",0) -> R12,068.42 | G57: =_xlfn.XLOOKUP(A57,[1]Sheet1!$A:$A,[1]Sheet1!$E:$E,"not found",0) -> R1.00 | H57: =_xlfn.XLOOKUP(A57,[1]Sheet1!$A:$A,[1]Sheet1!$I:$I,"not found",0) -> 2026-03-31 | I57: No longer provide economic value to the organisation | J57: Scrap | K57: Asset no longer meets a business requirement
A58: 11000017391 | B58: HP Desktop | C58: =_xlfn.XLOOKUP(A58,[1]Sheet1!$A:$A,[1]Sheet1!$C:$C,"Not found",0) -> 10135 | D58: =_xlfn.XLOOKUP(A58,[1]Sheet1!$A:$A,[1]Sheet1!$F:$F,"Not found",0) -> REC-0071 | E58: =_xlfn.XLOOKUP(A58,[1]Sheet1!$A:$A,[1]Sheet1!$H:$H,"not found",0) -> 2017-03-29 | F58: =_xlfn.XLOOKUP(A58,[1]Sheet1!$A:$A,[1]Sheet1!$D:$D,"not found",0) -> R12,068.42 | G58: =_xlfn.XLOOKUP(A58,[1]Sheet1!$A:$A,[1]Sheet1!$E:$E,"not found",0) -> R1.00 | H58: =_xlfn.XLOOKUP(A58,[1]Sheet1!$A:$A,[1]Sheet1!$I:$I,"not found",0) -> 2026-03-31 | I58: No longer provide economic value to the organisation | J58: Scrap | K58: Asset no longer meets a business requirement
A59: 11000017392 | B59: HP Desktop | C59: =_xlfn.XLOOKUP(A59,[1]Sheet1!$A:$A,[1]Sheet1!$C:$C,"Not found",0) -> 10135 | D59: =_xlfn.XLOOKUP(A59,[1]Sheet1!$A:$A,[1]Sheet1!$F:$F,"Not found",0) -> REC-0071 | E59: =_xlfn.XLOOKUP(A59,[1]Sheet1!$A:$A,[1]Sheet1!$H:$H,"not found",0) -> 2017-03-29 | F59: =_xlfn.XLOOKUP(A59,[1]Sheet1!$A:$A,[1]Sheet1!$D:$D,"not found",0) -> R12,068.42 | G59: =_xlfn.XLOOKUP(A59,[1]Sheet1!$A:$A,[1]Sheet1!$E:$E,"not found",0) -> R1.00 | H59: =_xlfn.XLOOKUP(A59,[1]Sheet1!$A:$A,[1]Sheet1!$I:$I,"not found",0) -> 2026-03-31 | I59: No longer provide economic value to the organisation | J59: Scrap | K59: Asset no longer meets a business requirement
A60: 11000017393 | B60: HP Desktop | C60: =_xlfn.XLOOKUP(A60,[1]Sheet1!$A:$A,[1]Sheet1!$C:$C,"Not found",0) -> 10135 | D60: =_xlfn.XLOOKUP(A60,[1]Sheet1!$A:$A,[1]Sheet1!$F:$F,"Not found",0) -> REC-0071 | E60: =_xlfn.XLOOKUP(A60,[1]Sheet1!$A:$A,[1]Sheet1!$H:$H,"not found",0) -> 2017-03-29 | F60: =_xlfn.XLOOKUP(A60,[1]Sheet1!$A:$A,[1]Sheet1!$D:$D,"not found",0) -> R12,068.41 | G60: =_xlfn.XLOOKUP(A60,[1]Sheet1!$A:$A,[1]Sheet1!$E:$E,"not found",0) -> R1.00 | H60: =_xlfn.XLOOKUP(A60,[1]Sheet1!$A:$A,[1]Sheet1!$I:$I,"not found",0) -> 2026-03-31 | I60: No longer provide economic value to the organisation | J60: Scrap | K60: Asset no longer meets a business requirement
A61: 11000017394 | B61: HP Desktop | C61: =_xlfn.XLOOKUP(A61,[1]Sheet1!$A:$A,[1]Sheet1!$C:$C,"Not found",0) -> 10135 | D61: =_xlfn.XLOOKUP(A61,[1]Sheet1!$A:$A,[1]Sheet1!$F:$F,"Not found",0) -> REC-0071 | E61: =_xlfn.XLOOKUP(A61,[1]Sheet1!$A:$A,[1]Sheet1!$H:$H,"not found",0) -> 2017-03-29 | F61: =_xlfn.XLOOKUP(A61,[1]Sheet1!$A:$A,[1]Sheet1!$D:$D,"not found",0) -> R12,068.41 | G61: =_xlfn.XLOOKUP(A61,[1]Sheet1!$A:$A,[1]Sheet1!$E:$E,"not found",0) -> R1.00 | H61: =_xlfn.XLOOKUP(A61,[1]Sheet1!$A:$A,[1]Sheet1!$I:$I,"not found",0) -> 2026-03-31 | I61: No longer provide economic value to the organisation | J61: Scrap | K61: Asset no longer meets a business requirement
A62: 11000015238 | B62: Acer Monitor | C62: =_xlfn.XLOOKUP(A62,[1]Sheet1!$A:$A,[1]Sheet1!$C:$C,"Not found",0) -> 10135 | D62: =_xlfn.XLOOKUP(A62,[1]Sheet1!$A:$A,[1]Sheet1!$F:$F,"Not found",0) -> REC-0071 | E62: =_xlfn.XLOOKUP(A62,[1]Sheet1!$A:$A,[1]Sheet1!$H:$H,"not found",0) -> 2014-03-31 | F62: =_xlfn.XLOOKUP(A62,[1]Sheet1!$A:$A,[1]Sheet1!$D:$D,"not found",0) -> R2,184.91 | G62: =_xlfn.XLOOKUP(A62,[1]Sheet1!$A:$A,[1]Sheet1!$E:$E,"not found",0) -> R1.00 | H62: =_xlfn.XLOOKUP(A62,[1]Sheet1!$A:$A,[1]Sheet1!$I:$I,"not found",0) -> 2026-03-31 | I62: No longer provide economic value to the organisation | J62: Scrap | K62: Asset no longer meets a business requirement
A63: 11000001219 | B63: HP Monitor | C63: =_xlfn.XLOOKUP(A63,[1]Sheet1!$A:$A,[1]Sheet1!$C:$C,"Not found",0) -> 10135 | D63: =_xlfn.XLOOKUP(A63,[1]Sheet1!$A:$A,[1]Sheet1!$F:$F,"Not found",0) -> REC-0071 | E63: =_xlfn.XLOOKUP(A63,[1]Sheet1!$A:$A,[1]Sheet1!$H:$H,"not found",0) -> 2002-07-19 | F63: =_xlfn.XLOOKUP(A63,[1]Sheet1!$A:$A,[1]Sheet1!$D:$D,"not found",0) -> R2,029.20 | G63: =_xlfn.XLOOKUP(A63,[1]Sheet1!$A:$A,[1]Sheet1!$E:$E,"not found",0) -> R1.00 | H63: =_xlfn.XLOOKUP(A63,[1]Sheet1!$A:$A,[1]Sheet1!$I:$I,"not found",0) -> 2026-03-31 | I63: No longer provide economic value to the organisation | J63: Scrap | K63: Asset no longer meets a business requirement
A64: 11000007663 | B64: Acer Monitor | C64: =_xlfn.XLOOKUP(A64,[1]Sheet1!$A:$A,[1]Sheet1!$C:$C,"Not found",0) -> 10135 | D64: =_xlfn.XLOOKUP(A64,[1]Sheet1!$A:$A,[1]Sheet1!$F:$F,"Not found",0) -> HGP-0001 | E64: =_xlfn.XLOOKUP(A64,[1]Sheet1!$A:$A,[1]Sheet1!$H:$H,"not found",0) -> 2009-02-27 | F64: =_xlfn.XLOOKUP(A64,[1]Sheet1!$A:$A,[1]Sheet1!$D:$D,"not found",0) -> R9,327.03 | G64: =_xlfn.XLOOKUP(A64,[1]Sheet1!$A:$A,[1]Sheet1!$E:$E,"not found",0) -> R1.00 | H64: =_xlfn.XLOOKUP(A64,[1]Sheet1!$A:$A,[1]Sheet1!$I:$I,"not found",0) -> 2026-03-31 | I64: No longer provide economic value to the organisation | J64: Scrap | K64: Asset no longer meets a business requirement
A65: 11000009232 | B65: Acer Monitor | C65: =_xlfn.XLOOKUP(A65,[1]Sheet1!$A:$A,[1]Sheet1!$C:$C,"Not found",0) -> 10135 | D65: =_xlfn.XLOOKUP(A65,[1]Sheet1!$A:$A,[1]Sheet1!$F:$F,"Not found",0) -> RWC-0074 | E65: =_xlfn.XLOOKUP(A65,[1]Sheet1!$A:$A,[1]Sheet1!$H:$H,"not found",0) -> 2009-12-18 | F65: =_xlfn.XLOOKUP(A65,[1]Sheet1!$A:$A,[1]Sheet1!$D:$D,"not found",0) -> R1,143.06 | G65: =_xlfn.XLOOKUP(A65,[1]Sheet1!$A:$A,[1]Sheet1!$E:$E,"not found",0) -> R1.00 | H65: =_xlfn.XLOOKUP(A65,[1]Sheet1!$A:$A,[1]Sheet1!$I:$I,"not found",0) -> 2026-03-31 | I65: No longer provide economic value to the organisation | J65: Scrap | K65: Asset no longer meets a business requirement
A66: 11000009271 | B66: Acer Monitor | C66: =_xlfn.XLOOKUP(A66,[1]Sheet1!$A:$A,[1]Sheet1!$C:$C,"Not found",0) -> 10135 | D66: =_xlfn.XLOOKUP(A66,[1]Sheet1!$A:$A,[1]Sheet1!$F:$F,"Not found",0) -> REC-0071 | E66: =_xlfn.XLOOKUP(A66,[1]Sheet1!$A:$A,[1]Sheet1!$H:$H,"not found",0) -> 2009-12-18 | F66: =_xlfn.XLOOKUP(A66,[1]Sheet1!$A:$A,[1]Sheet1!$D:$D,"not found",0) -> R1,257.36 | G66: =_xlfn.XLOOKUP(A66,[1]Sheet1!$A:$A,[1]Sheet1!$E:$E,"not found",0) -> R1.00 | H66: =_xlfn.XLOOKUP(A66,[1]Sheet1!$A:$A,[1]Sheet1!$I:$I,"not found",0) -> 2026-03-31 | I66: No longer provide economic value to the organisation | J66: Scrap | K66: Asset no longer meets a business requirement
A67: 11000010411 | B67: Acer Monitor | C67: =_xlfn.XLOOKUP(A67,[1]Sheet1!$A:$A,[1]Sheet1!$C:$C,"Not found",0) -> 10135 | D67: =_xlfn.XLOOKUP(A67,[1]Sheet1!$A:$A,[1]Sheet1!$F:$F,"Not found",0) -> REC-0071 | E67: =_xlfn.XLOOKUP(A67,[1]Sheet1!$A:$A,[1]Sheet1!$H:$H,"not found",0) -> 2009-12-18 | F67: =_xlfn.XLOOKUP(A67,[1]Sheet1!$A:$A,[1]Sheet1!$D:$D,"not found",0) -> R1,247.08 | G67: =_xlfn.XLOOKUP(A67,[1]Sheet1!$A:$A,[1]Sheet1!$E:$E,"not found",0) -> R1.00 | H67: =_xlfn.XLOOKUP(A67,[1]Sheet1!$A:$A,[1]Sheet1!$I:$I,"not found",0) -> 2026-03-31 | I67: No longer provide economic value to the organisation | J67: Scrap | K67: Asset no longer meets a business requirement
A68: 11000011376 | B68: Acer Monitor | C68: =_xlfn.XLOOKUP(A68,[1]Sheet1!$A:$A,[1]Sheet1!$C:$C,"Not found",0) -> 10135 | D68: =_xlfn.XLOOKUP(A68,[1]Sheet1!$A:$A,[1]Sheet1!$F:$F,"Not found",0) -> REC-0071 | E68: =_xlfn.XLOOKUP(A68,[1]Sheet1!$A:$A,[1]Sheet1!$H:$H,"not found",0) -> 2009-12-18 | F68: =_xlfn.XLOOKUP(A68,[1]Sheet1!$A:$A,[1]Sheet1!$D:$D,"not found",0) -> R1,247.08 | G68: =_xlfn.XLOOKUP(A68,[1]Sheet1!$A:$A,[1]Sheet1!$E:$E,"not found",0) -> R1.00 | H68: =_xlfn.XLOOKUP(A68,[1]Sheet1!$A:$A,[1]Sheet1!$I:$I,"not found",0) -> 2026-03-31 | I68: No longer provide economic value to the organisation | J68: Scrap | K68: Asset no longer meets a business requirement
A69: 11000011428 | B69: Acer Monitor | C69: =_xlfn.XLOOKUP(A69,[1]Sheet1!$A:$A,[1]Sheet1!$C:$C,"Not found",0) -> 10135 | D69: =_xlfn.XLOOKUP(A69,[1]Sheet1!$A:$A,[1]Sheet1!$F:$F,"Not found",0) -> REC-0071 | E69: =_xlfn.XLOOKUP(A69,[1]Sheet1!$A:$A,[1]Sheet1!$H:$H,"not found",0) -> 2009-12-18 | F69: =_xlfn.XLOOKUP(A69,[1]Sheet1!$A:$A,[1]Sheet1!$D:$D,"not found",0) -> R1,247.08 | G69: =_xlfn.XLOOKUP(A69,[1]Sheet1!$A:$A,[1]Sheet1!$E:$E,"not found",0) -> R1.00 | H69: =_xlfn.XLOOKUP(A69,[1]Sheet1!$A:$A,[1]Sheet1!$I:$I,"not found",0) -> 2026-03-31 | I69: No longer provide economic value to the organisation | J69: Scrap | K69: Asset no longer meets a business requirement
A70: 11000011434 | B70: Acer Monitor | C70: =_xlfn.XLOOKUP(A70,[1]Sheet1!$A:$A,[1]Sheet1!$C:$C,"Not found",0) -> 10135 | D70: =_xlfn.XLOOKUP(A70,[1]Sheet1!$A:$A,[1]Sheet1!$F:$F,"Not found",0) -> RWC-0074 | E70: =_xlfn.XLOOKUP(A70,[1]Sheet1!$A:$A,[1]Sheet1!$H:$H,"not found",0) -> 2009-12-18 | F70: =_xlfn.XLOOKUP(A70,[1]Sheet1!$A:$A,[1]Sheet1!$D:$D,"not found",0) -> R1,247.08 | G70: =_xlfn.XLOOKUP(A70,[1]Sheet1!$A:$A,[1]Sheet1!$E:$E,"not found",0) -> R1.00 | H70: =_xlfn.XLOOKUP(A70,[1]Sheet1!$A:$A,[1]Sheet1!$I:$I,"not found",0) -> 2026-03-31 | I70: No longer provide economic value to the organisation | J70: Scrap | K70: Asset no longer meets a business requirement
A71: 11000011449 | B71: Acer Monitor | C71: =_xlfn.XLOOKUP(A71,[1]Sheet1!$A:$A,[1]Sheet1!$C:$C,"Not found",0) -> 10135 | D71: =_xlfn.XLOOKUP(A71,[1]Sheet1!$A:$A,[1]Sheet1!$F:$F,"Not found",0) -> RWC-0074 | E71: =_xlfn.XLOOKUP(A71,[1]Sheet1!$A:$A,[1]Sheet1!$H:$H,"not found",0) -> 2009-12-18 | F71: =_xlfn.XLOOKUP(A71,[1]Sheet1!$A:$A,[1]Sheet1!$D:$D,"not found",0) -> R1,247.08 | G71: =_xlfn.XLOOKUP(A71,[1]Sheet1!$A:$A,[1]Sheet1!$E:$E,"not found",0) -> R1.00 | H71: =_xlfn.XLOOKUP(A71,[1]Sheet1!$A:$A,[1]Sheet1!$I:$I,"not found",0) -> 2026-03-31 | I71: No longer provide economic value to the organisation | J71: Scrap | K71: Asset no longer meets a business requirement
A72: 11000011735 | B72: Acer Monitor | C72: =_xlfn.XLOOKUP(A72,[1]Sheet1!$A:$A,[1]Sheet1!$C:$C,"Not found",0) -> 10135 | D72: =_xlfn.XLOOKUP(A72,[1]Sheet1!$A:$A,[1]Sheet1!$F:$F,"Not found",0) -> RWC-0074 | E72: =_xlfn.XLOOKUP(A72,[1]Sheet1!$A:$A,[1]Sheet1!$H:$H,"not found",0) -> 2010-02-03 | F72: =_xlfn.XLOOKUP(A72,[1]Sheet1!$A:$A,[1]Sheet1!$D:$D,"not found",0) -> R1,470.96 | G72: =_xlfn.XLOOKUP(A72,[1]Sheet1!$A:$A,[1]Sheet1!$E:$E,"not found",0) -> R1.00 | H72: =_xlfn.XLOOKUP(A72,[1]Sheet1!$A:$A,[1]Sheet1!$I:$I,"not found",0) -> 2026-03-31 | I72: No longer provide economic value to the organisation | J72: Scrap | K72: Asset no longer meets a business requirement
A73: 11000011745 | B73: Acer Monitor | C73: =_xlfn.XLOOKUP(A73,[1]Sheet1!$A:$A,[1]Sheet1!$C:$C,"Not found",0) -> 10135 | D73: =_xlfn.XLOOKUP(A73,[1]Sheet1!$A:$A,[1]Sheet1!$F:$F,"Not found",0) -> REC-0071 | E73: =_xlfn.XLOOKUP(A73,[1]Sheet1!$A:$A,[1]Sheet1!$H:$H,"not found",0) -> 2010-02-03 | F73: =_xlfn.XLOOKUP(A73,[1]Sheet1!$A:$A,[1]Sheet1!$D:$D,"not found",0) -> R1,470.96 | G73: =_xlfn.XLOOKUP(A73,[1]Sheet1!$A:$A,[1]Sheet1!$E:$E,"not found",0) -> R1.00 | H73: =_xlfn.XLOOKUP(A73,[1]Sheet1!$A:$A,[1]Sheet1!$I:$I,"not found",0) -> 2026-03-31 | I73: No longer provide economic value to the organisation | J73: Scrap | K73: Asset no longer meets a business requirement
A74: 11000014972 | B74: Acer Monitor | C74: =_xlfn.XLOOKUP(A74,[1]Sheet1!$A:$A,[1]Sheet1!$C:$C,"Not found",0) -> F10071 | D74: =_xlfn.XLOOKUP(A74,[1]Sheet1!$A:$A,[1]Sheet1!$F:$F,"Not found",0) -> REC-0071 | E74: =_xlfn.XLOOKUP(A74,[1]Sheet1!$A:$A,[1]Sheet1!$H:$H,"not found",0) -> 2014-03-27 | F74: =_xlfn.XLOOKUP(A74,[1]Sheet1!$A:$A,[1]Sheet1!$D:$D,"not found",0) -> R1,254.37 | G74: =_xlfn.XLOOKUP(A74,[1]Sheet1!$A:$A,[1]Sheet1!$E:$E,"not found",0) -> R1.00 | H74: =_xlfn.XLOOKUP(A74,[1]Sheet1!$A:$A,[1]Sheet1!$I:$I,"not found",0) -> 2026-03-31 | I74: No longer provide economic value to the organisation | J74: Scrap | K74: Asset no longer meets a business requirement
A75: 11000015120 | B75: Acer Monitor | C75: =_xlfn.XLOOKUP(A75,[1]Sheet1!$A:$A,[1]Sheet1!$C:$C,"Not found",0) -> 10135 | D75: =_xlfn.XLOOKUP(A75,[1]Sheet1!$A:$A,[1]Sheet1!$F:$F,"Not found",0) -> REC-0071 | E75: =_xlfn.XLOOKUP(A75,[1]Sheet1!$A:$A,[1]Sheet1!$H:$H,"not found",0) -> 2014-04-11 | F75: =_xlfn.XLOOKUP(A75,[1]Sheet1!$A:$A,[1]Sheet1!$D:$D,"not found",0) -> R1,422.16 | G75: =_xlfn.XLOOKUP(A75,[1]Sheet1!$A:$A,[1]Sheet1!$E:$E,"not found",0) -> R1.00 | H75: =_xlfn.XLOOKUP(A75,[1]Sheet1!$A:$A,[1]Sheet1!$I:$I,"not found",0) -> 2026-03-31 | I75: No longer provide economic value to the organisation | J75: Scrap | K75: Asset no longer meets a business requirement
A76: 11000015121 | B76: Acer Monitor | C76: =_xlfn.XLOOKUP(A76,[1]Sheet1!$A:$A,[1]Sheet1!$C:$C,"Not found",0) -> 10135 | D76: =_xlfn.XLOOKUP(A76,[1]Sheet1!$A:$A,[1]Sheet1!$F:$F,"Not found",0) -> REC-0071 | E76: =_xlfn.XLOOKUP(A76,[1]Sheet1!$A:$A,[1]Sheet1!$H:$H,"not found",0) -> 2014-04-11 | F76: =_xlfn.XLOOKUP(A76,[1]Sheet1!$A:$A,[1]Sheet1!$D:$D,"not found",0) -> R1,422.16 | G76: =_xlfn.XLOOKUP(A76,[1]Sheet1!$A:$A,[1]Sheet1!$E:$E,"not found",0) -> R1.00 | H76: =_xlfn.XLOOKUP(A76,[1]Sheet1!$A:$A,[1]Sheet1!$I:$I,"not found",0) -> 2026-03-31 | I76: No longer provide economic value to the organisation | J76: Scrap | K76: Asset no longer meets a business requirement
A77: 11000015122 | B77: Acer Monitor | C77: =_xlfn.XLOOKUP(A77,[1]Sheet1!$A:$A,[1]Sheet1!$C:$C,"Not found",0) -> 10135 | D77: =_xlfn.XLOOKUP(A77,[1]Sheet1!$A:$A,[1]Sheet1!$F:$F,"Not found",0) -> REC-0071 | E77: =_xlfn.XLOOKUP(A77,[1]Sheet1!$A:$A,[1]Sheet1!$H:$H,"not found",0) -> 2014-04-11 | F77: =_xlfn.XLOOKUP(A77,[1]Sheet1!$A:$A,[1]Sheet1!$D:$D,"not found",0) -> R1,422.16 | G77: =_xlfn.XLOOKUP(A77,[1]Sheet1!$A:$A,[1]Sheet1!$E:$E,"not found",0) -> R1.00 | H77: =_xlfn.XLOOKUP(A77,[1]Sheet1!$A:$A,[1]Sheet1!$I:$I,"not found",0) -> 2026-03-31 | I77: No longer provide economic value to the organisation | J77: Scrap | K77: Asset no longer meets a business requirement
A78: 11000015123 | B78: Acer Monitor | C78: =_xlfn.XLOOKUP(A78,[1]Sheet1!$A:$A,[1]Sheet1!$C:$C,"Not found",0) -> 10135 | D78: =_xlfn.XLOOKUP(A78,[1]Sheet1!$A:$A,[1]Sheet1!$F:$F,"Not found",0) -> REC-0071 | E78: =_xlfn.XLOOKUP(A78,[1]Sheet1!$A:$A,[1]Sheet1!$H:$H,"not found",0) -> 2014-04-11 | F78: =_xlfn.XLOOKUP(A78,[1]Sheet1!$A:$A,[1]Sheet1!$D:$D,"not found",0) -> R1,422.16 | G78: =_xlfn.XLOOKUP(A78,[1]Sheet1!$A:$A,[1]Sheet1!$E:$E,"not found",0) -> R1.00 | H78: =_xlfn.XLOOKUP(A78,[1]Sheet1!$A:$A,[1]Sheet1!$I:$I,"not found",0) -> 2026-03-31 | I78: No longer provide economic value to the organisation | J78: Scrap | K78: Asset no longer meets a business requirement
A79: 11000015124 | B79: Acer Monitor | C79: =_xlfn.XLOOKUP(A79,[1]Sheet1!$A:$A,[1]Sheet1!$C:$C,"Not found",0) -> 10135 | D79: =_xlfn.XLOOKUP(A79,[1]Sheet1!$A:$A,[1]Sheet1!$F:$F,"Not found",0) -> REC-0071 | E79: =_xlfn.XLOOKUP(A79,[1]Sheet1!$A:$A,[1]Sheet1!$H:$H,"not found",0) -> 2014-04-11 | F79: =_xlfn.XLOOKUP(A79,[1]Sheet1!$A:$A,[1]Sheet1!$D:$D,"not found",0) -> R1,422.16 | G79: =_xlfn.XLOOKUP(A79,[1]Sheet1!$A:$A,[1]Sheet1!$E:$E,"not found",0) -> R1.00 | H79: =_xlfn.XLOOKUP(A79,[1]Sheet1!$A:$A,[1]Sheet1!$I:$I,"not found",0) -> 2026-03-31 | I79: No longer provide economic value to the organisation | J79: Scrap | K79: Asset no longer meets a business requirement
A80: 11000015127 | B80: Acer Monitor | C80: =_xlfn.XLOOKUP(A80,[1]Sheet1!$A:$A,[1]Sheet1!$C:$C,"Not found",0) -> 10135 | D80: =_xlfn.XLOOKUP(A80,[1]Sheet1!$A:$A,[1]Sheet1!$F:$F,"Not found",0) -> REC-0071 | E80: =_xlfn.XLOOKUP(A80,[1]Sheet1!$A:$A,[1]Sheet1!$H:$H,"not found",0) -> 2014-04-11 | F80: =_xlfn.XLOOKUP(A80,[1]Sheet1!$A:$A,[1]Sheet1!$D:$D,"not found",0) -> R1,422.16 | G80: =_xlfn.XLOOKUP(A80,[1]Sheet1!$A:$A,[1]Sheet1!$E:$E,"not found",0) -> R1.00 | H80: =_xlfn.XLOOKUP(A80,[1]Sheet1!$A:$A,[1]Sheet1!$I:$I,"not found",0) -> 2026-03-31 | I80: No longer provide economic value to the organisation | J80: Scrap | K80: Asset no longer meets a business requirement
A81: 11000015128 | B81: Acer Monitor | C81: =_xlfn.XLOOKUP(A81,[1]Sheet1!$A:$A,[1]Sheet1!$C:$C,"Not found",0) -> 10135 | D81: =_xlfn.XLOOKUP(A81,[1]Sheet1!$A:$A,[1]Sheet1!$F:$F,"Not found",0) -> REC-0071 | E81: =_xlfn.XLOOKUP(A81,[1]Sheet1!$A:$A,[1]Sheet1!$H:$H,"not found",0) -> 2014-04-11 | F81: =_xlfn.XLOOKUP(A81,[1]Sheet1!$A:$A,[1]Sheet1!$D:$D,"not found",0) -> R1,422.16 | G81: =_xlfn.XLOOKUP(A81,[1]Sheet1!$A:$A,[1]Sheet1!$E:$E,"not found",0) -> R1.00 | H81: =_xlfn.XLOOKUP(A81,[1]Sheet1!$A:$A,[1]Sheet1!$I:$I,"not found",0) -> 2026-03-31 | I81: No longer provide economic value to the organisation | J81: Scrap | K81: Asset no longer meets a business requirement
A82: 11000015129 | B82: Acer Monitor | C82: =_xlfn.XLOOKUP(A82,[1]Sheet1!$A:$A,[1]Sheet1!$C:$C,"Not found",0) -> 10135 | D82: =_xlfn.XLOOKUP(A82,[1]Sheet1!$A:$A,[1]Sheet1!$F:$F,"Not found",0) -> REC-0071 | E82: =_xlfn.XLOOKUP(A82,[1]Sheet1!$A:$A,[1]Sheet1!$H:$H,"not found",0) -> 2014-04-11 | F82: =_xlfn.XLOOKUP(A82,[1]Sheet1!$A:$A,[1]Sheet1!$D:$D,"not found",0) -> R1,422.16 | G82: =_xlfn.XLOOKUP(A82,[1]Sheet1!$A:$A,[1]Sheet1!$E:$E,"not found",0) -> R1.00 | H82: =_xlfn.XLOOKUP(A82,[1]Sheet1!$A:$A,[1]Sheet1!$I:$I,"not found",0) -> 2026-03-31 | I82: No longer provide economic value to the organisation | J82: Scrap | K82: Asset no longer meets a business requirement
A83: 11000015132 | B83: Acer Monitor | C83: =_xlfn.XLOOKUP(A83,[1]Sheet1!$A:$A,[1]Sheet1!$C:$C,"Not found",0) -> 10135 | D83: =_xlfn.XLOOKUP(A83,[1]Sheet1!$A:$A,[1]Sheet1!$F:$F,"Not found",0) -> REC-0071 | E83: =_xlfn.XLOOKUP(A83,[1]Sheet1!$A:$A,[1]Sheet1!$H:$H,"not found",0) -> 2014-04-11 | F83: =_xlfn.XLOOKUP(A83,[1]Sheet1!$A:$A,[1]Sheet1!$D:$D,"not found",0) -> R1,422.16 | G83: =_xlfn.XLOOKUP(A83,[1]Sheet1!$A:$A,[1]Sheet1!$E:$E,"not found",0) -> R1.00 | H83: =_xlfn.XLOOKUP(A83,[1]Sheet1!$A:$A,[1]Sheet1!$I:$I,"not found",0) -> 2026-03-31 | I83: No longer provide economic value to the organisation | J83: Scrap | K83: Asset no longer meets a business requirement
A84: 11000015133 | B84: Acer Monitor | C84: =_xlfn.XLOOKUP(A84,[1]Sheet1!$A:$A,[1]Sheet1!$C:$C,"Not found",0) -> 10135 | D84: =_xlfn.XLOOKUP(A84,[1]Sheet1!$A:$A,[1]Sheet1!$F:$F,"Not found",0) -> REC-0071 | E84: =_xlfn.XLOOKUP(A84,[1]Sheet1!$A:$A,[1]Sheet1!$H:$H,"not found",0) -> 2014-04-11 | F84: =_xlfn.XLOOKUP(A84,[1]Sheet1!$A:$A,[1]Sheet1!$D:$D,"not found",0) -> R1,422.16 | G84: =_xlfn.XLOOKUP(A84,[1]Sheet1!$A:$A,[1]Sheet1!$E:$E,"not found",0) -> R1.00 | H84: =_xlfn.XLOOKUP(A84,[1]Sheet1!$A:$A,[1]Sheet1!$I:$I,"not found",0) -> 2026-03-31 | I84: No longer provide economic value to the organisation | J84: Scrap | K84: Asset no longer meets a business requirement
A85: 11000015135 | B85: Acer Monitor | C85: =_xlfn.XLOOKUP(A85,[1]Sheet1!$A:$A,[1]Sheet1!$C:$C,"Not found",0) -> 10135 | D85: =_xlfn.XLOOKUP(A85,[1]Sheet1!$A:$A,[1]Sheet1!$F:$F,"Not found",0) -> REC-0071 | E85: =_xlfn.XLOOKUP(A85,[1]Sheet1!$A:$A,[1]Sheet1!$H:$H,"not found",0) -> 2014-04-11 | F85: =_xlfn.XLOOKUP(A85,[1]Sheet1!$A:$A,[1]Sheet1!$D:$D,"not found",0) -> R1,422.16 | G85: =_xlfn.XLOOKUP(A85,[1]Sheet1!$A:$A,[1]Sheet1!$E:$E,"not found",0) -> R1.00 | H85: =_xlfn.XLOOKUP(A85,[1]Sheet1!$A:$A,[1]Sheet1!$I:$I,"not found",0) -> 2026-03-31 | I85: No longer provide economic value to the organisation | J85: Scrap | K85: Asset no longer meets a business requirement
A86: 11000015136 | B86: Acer Monitor | C86: =_xlfn.XLOOKUP(A86,[1]Sheet1!$A:$A,[1]Sheet1!$C:$C,"Not found",0) -> 10135 | D86: =_xlfn.XLOOKUP(A86,[1]Sheet1!$A:$A,[1]Sheet1!$F:$F,"Not found",0) -> REC-0071 | E86: =_xlfn.XLOOKUP(A86,[1]Sheet1!$A:$A,[1]Sheet1!$H:$H,"not found",0) -> 2014-04-11 | F86: =_xlfn.XLOOKUP(A86,[1]Sheet1!$A:$A,[1]Sheet1!$D:$D,"not found",0) -> R1,422.16 | G86: =_xlfn.XLOOKUP(A86,[1]Sheet1!$A:$A,[1]Sheet1!$E:$E,"not found",0) -> R1.00 | H86: =_xlfn.XLOOKUP(A86,[1]Sheet1!$A:$A,[1]Sheet1!$I:$I,"not found",0) -> 2026-03-31 | I86: No longer provide economic value to the organisation | J86: Scrap | K86: Asset no longer meets a business requirement
A87: 11000015138 | B87: Acer Monitor | C87: =_xlfn.XLOOKUP(A87,[1]Sheet1!$A:$A,[1]Sheet1!$C:$C,"Not found",0) -> 10135 | D87: =_xlfn.XLOOKUP(A87,[1]Sheet1!$A:$A,[1]Sheet1!$F:$F,"Not found",0) -> REC-0071 | E87: =_xlfn.XLOOKUP(A87,[1]Sheet1!$A:$A,[1]Sheet1!$H:$H,"not found",0) -> 2014-04-11 | F87: =_xlfn.XLOOKUP(A87,[1]Sheet1!$A:$A,[1]Sheet1!$D:$D,"not found",0) -> R1,422.16 | G87: =_xlfn.XLOOKUP(A87,[1]Sheet1!$A:$A,[1]Sheet1!$E:$E,"not found",0) -> R1.00 | H87: =_xlfn.XLOOKUP(A87,[1]Sheet1!$A:$A,[1]Sheet1!$I:$I,"not found",0) -> 2026-03-31 | I87: No longer provide economic value to the organisation | J87: Scrap | K87: Asset no longer meets a business requirement
A88: 11000015139 | B88: Acer Monitor | C88: =_xlfn.XLOOKUP(A88,[1]Sheet1!$A:$A,[1]Sheet1!$C:$C,"Not found",0) -> 10135 | D88: =_xlfn.XLOOKUP(A88,[1]Sheet1!$A:$A,[1]Sheet1!$F:$F,"Not found",0) -> REC-0071 | E88: =_xlfn.XLOOKUP(A88,[1]Sheet1!$A:$A,[1]Sheet1!$H:$H,"not found",0) -> 2014-04-11 | F88: =_xlfn.XLOOKUP(A88,[1]Sheet1!$A:$A,[1]Sheet1!$D:$D,"not found",0) -> R1,422.16 | G88: =_xlfn.XLOOKUP(A88,[1]Sheet1!$A:$A,[1]Sheet1!$E:$E,"not found",0) -> R1.00 | H88: =_xlfn.XLOOKUP(A88,[1]Sheet1!$A:$A,[1]Sheet1!$I:$I,"not found",0) -> 2026-03-31 | I88: No longer provide economic value to the organisation | J88: Scrap | K88: Asset no longer meets a business requirement
A89: 11000015140 | B89: Acer Monitor | C89: =_xlfn.XLOOKUP(A89,[1]Sheet1!$A:$A,[1]Sheet1!$C:$C,"Not found",0) -> 10135 | D89: =_xlfn.XLOOKUP(A89,[1]Sheet1!$A:$A,[1]Sheet1!$F:$F,"Not found",0) -> REC-0071 | E89: =_xlfn.XLOOKUP(A89,[1]Sheet1!$A:$A,[1]Sheet1!$H:$H,"not found",0) -> 2014-04-11 | F89: =_xlfn.XLOOKUP(A89,[1]Sheet1!$A:$A,[1]Sheet1!$D:$D,"not found",0) -> R1,422.16 | G89: =_xlfn.XLOOKUP(A89,[1]Sheet1!$A:$A,[1]Sheet1!$E:$E,"not found",0) -> R1.00 | H89: =_xlfn.XLOOKUP(A89,[1]Sheet1!$A:$A,[1]Sheet1!$I:$I,"not found",0) -> 2026-03-31 | I89: No longer provide economic value to the organisation | J89: Scrap | K89: Asset no longer meets a business requirement
A90: 11000015141 | B90: Acer Monitor | C90: =_xlfn.XLOOKUP(A90,[1]Sheet1!$A:$A,[1]Sheet1!$C:$C,"Not found",0) -> 10135 | D90: =_xlfn.XLOOKUP(A90,[1]Sheet1!$A:$A,[1]Sheet1!$F:$F,"Not found",0) -> REC-0071 | E90: =_xlfn.XLOOKUP(A90,[1]Sheet1!$A:$A,[1]Sheet1!$H:$H,"not found",0) -> 2014-04-11 | F90: =_xlfn.XLOOKUP(A90,[1]Sheet1!$A:$A,[1]Sheet1!$D:$D,"not found",0) -> R1,422.16 | G90: =_xlfn.XLOOKUP(A90,[1]Sheet1!$A:$A,[1]Sheet1!$E:$E,"not found",0) -> R1.00 | H90: =_xlfn.XLOOKUP(A90,[1]Sheet1!$A:$A,[1]Sheet1!$I:$I,"not found",0) -> 2026-03-31 | I90: No longer provide economic value to the organisation | J90: Scrap | K90: Asset no longer meets a business requirement
A91: 11000015144 | B91: Acer Monitor | C91: =_xlfn.XLOOKUP(A91,[1]Sheet1!$A:$A,[1]Sheet1!$C:$C,"Not found",0) -> 10135 | D91: =_xlfn.XLOOKUP(A91,[1]Sheet1!$A:$A,[1]Sheet1!$F:$F,"Not found",0) -> REC-0071 | E91: =_xlfn.XLOOKUP(A91,[1]Sheet1!$A:$A,[1]Sheet1!$H:$H,"not found",0) -> 2014-04-11 | F91: =_xlfn.XLOOKUP(A91,[1]Sheet1!$A:$A,[1]Sheet1!$D:$D,"not found",0) -> R1,422.16 | G91: =_xlfn.XLOOKUP(A91,[1]Sheet1!$A:$A,[1]Sheet1!$E:$E,"not found",0) -> R1.00 | H91: =_xlfn.XLOOKUP(A91,[1]Sheet1!$A:$A,[1]Sheet1!$I:$I,"not found",0) -> 2026-03-31 | I91: No longer provide economic value to the organisation | J91: Scrap | K91: Asset no longer meets a business requirement
A92: 11000015145 | B92: Acer Monitor | C92: =_xlfn.XLOOKUP(A92,[1]Sheet1!$A:$A,[1]Sheet1!$C:$C,"Not found",0) -> 10135 | D92: =_xlfn.XLOOKUP(A92,[1]Sheet1!$A:$A,[1]Sheet1!$F:$F,"Not found",0) -> REC-0071 | E92: =_xlfn.XLOOKUP(A92,[1]Sheet1!$A:$A,[1]Sheet1!$H:$H,"not found",0) -> 2014-04-11 | F92: =_xlfn.XLOOKUP(A92,[1]Sheet1!$A:$A,[1]Sheet1!$D:$D,"not found",0) -> R1,422.16 | G92: =_xlfn.XLOOKUP(A92,[1]Sheet1!$A:$A,[1]Sheet1!$E:$E,"not found",0) -> R1.00 | H92: =_xlfn.XLOOKUP(A92,[1]Sheet1!$A:$A,[1]Sheet1!$I:$I,"not found",0) -> 2026-03-31 | I92: No longer provide economic value to the organisation | J92: Scrap | K92: Asset no longer meets a business requirement
A93: 11000015146 | B93: Acer Monitor | C93: =_xlfn.XLOOKUP(A93,[1]Sheet1!$A:$A,[1]Sheet1!$C:$C,"Not found",0) -> 10135 | D93: =_xlfn.XLOOKUP(A93,[1]Sheet1!$A:$A,[1]Sheet1!$F:$F,"Not found",0) -> REC-0071 | E93: =_xlfn.XLOOKUP(A93,[1]Sheet1!$A:$A,[1]Sheet1!$H:$H,"not found",0) -> 2014-04-11 | F93: =_xlfn.XLOOKUP(A93,[1]Sheet1!$A:$A,[1]Sheet1!$D:$D,"not found",0) -> R1,422.16 | G93: =_xlfn.XLOOKUP(A93,[1]Sheet1!$A:$A,[1]Sheet1!$E:$E,"not found",0) -> R1.00 | H93: =_xlfn.XLOOKUP(A93,[1]Sheet1!$A:$A,[1]Sheet1!$I:$I,"not found",0) -> 2026-03-31 | I93: No longer provide economic value to the organisation | J93: Scrap | K93: Asset no longer meets a business requirement
A94: 11000015199 | B94: Acer Monitor | C94: =_xlfn.XLOOKUP(A94,[1]Sheet1!$A:$A,[1]Sheet1!$C:$C,"Not found",0) -> 10135 | D94: =_xlfn.XLOOKUP(A94,[1]Sheet1!$A:$A,[1]Sheet1!$F:$F,"Not found",0) -> REC-0071 | E94: =_xlfn.XLOOKUP(A94,[1]Sheet1!$A:$A,[1]Sheet1!$H:$H,"not found",0) -> 2014-03-31 | F94: =_xlfn.XLOOKUP(A94,[1]Sheet1!$A:$A,[1]Sheet1!$D:$D,"not found",0) -> R2,184.91 | G94: =_xlfn.XLOOKUP(A94,[1]Sheet1!$A:$A,[1]Sheet1!$E:$E,"not found",0) -> R1.00 | H94: =_xlfn.XLOOKUP(A94,[1]Sheet1!$A:$A,[1]Sheet1!$I:$I,"not found",0) -> 2026-03-31 | I94: No longer provide economic value to the organisation | J94: Scrap | K94: Asset no longer meets a business requirement
A95: 11000015200 | B95: Acer Monitor | C95: =_xlfn.XLOOKUP(A95,[1]Sheet1!$A:$A,[1]Sheet1!$C:$C,"Not found",0) -> 10135 | D95: =_xlfn.XLOOKUP(A95,[1]Sheet1!$A:$A,[1]Sheet1!$F:$F,"Not found",0) -> REC-0071 | E95: =_xlfn.XLOOKUP(A95,[1]Sheet1!$A:$A,[1]Sheet1!$H:$H,"not found",0) -> 2014-03-31 | F95: =_xlfn.XLOOKUP(A95,[1]Sheet1!$A:$A,[1]Sheet1!$D:$D,"not found",0) -> R2,184.91 | G95: =_xlfn.XLOOKUP(A95,[1]Sheet1!$A:$A,[1]Sheet1!$E:$E,"not found",0) -> R1.00 | H95: =_xlfn.XLOOKUP(A95,[1]Sheet1!$A:$A,[1]Sheet1!$I:$I,"not found",0) -> 2026-03-31 | I95: No longer provide economic value to the organisation | J95: Scrap | K95: Asset no longer meets a business requirement
A96: 11000015201 | B96: Acer Monitor | C96: =_xlfn.XLOOKUP(A96,[1]Sheet1!$A:$A,[1]Sheet1!$C:$C,"Not found",0) -> 10135 | D96: =_xlfn.XLOOKUP(A96,[1]Sheet1!$A:$A,[1]Sheet1!$F:$F,"Not found",0) -> REC-0071 | E96: =_xlfn.XLOOKUP(A96,[1]Sheet1!$A:$A,[1]Sheet1!$H:$H,"not found",0) -> 2014-03-31 | F96: =_xlfn.XLOOKUP(A96,[1]Sheet1!$A:$A,[1]Sheet1!$D:$D,"not found",0) -> R2,184.91 | G96: =_xlfn.XLOOKUP(A96,[1]Sheet1!$A:$A,[1]Sheet1!$E:$E,"not found",0) -> R1.00 | H96: =_xlfn.XLOOKUP(A96,[1]Sheet1!$A:$A,[1]Sheet1!$I:$I,"not found",0) -> 2026-03-31 | I96: No longer provide economic value to the organisation | J96: Scrap | K96: Asset no longer meets a business requirement
A97: 11000015202 | B97: Acer Monitor | C97: =_xlfn.XLOOKUP(A97,[1]Sheet1!$A:$A,[1]Sheet1!$C:$C,"Not found",0) -> 10135 | D97: =_xlfn.XLOOKUP(A97,[1]Sheet1!$A:$A,[1]Sheet1!$F:$F,"Not found",0) -> REC-0071 | E97: =_xlfn.XLOOKUP(A97,[1]Sheet1!$A:$A,[1]Sheet1!$H:$H,"not found",0) -> 2014-03-31 | F97: =_xlfn.XLOOKUP(A97,[1]Sheet1!$A:$A,[1]Sheet1!$D:$D,"not found",0) -> R2,184.91 | G97: =_xlfn.XLOOKUP(A97,[1]Sheet1!$A:$A,[1]Sheet1!$E:$E,"not found",0) -> R1.00 | H97: =_xlfn.XLOOKUP(A97,[1]Sheet1!$A:$A,[1]Sheet1!$I:$I,"not found",0) -> 2026-03-31 | I97: No longer provide economic value to the organisation | J97: Scrap | K97: Asset no longer meets a business requirement
A98: 11000015203 | B98: Acer Monitor | C98: =_xlfn.XLOOKUP(A98,[1]Sheet1!$A:$A,[1]Sheet1!$C:$C,"Not found",0) -> 10135 | D98: =_xlfn.XLOOKUP(A98,[1]Sheet1!$A:$A,[1]Sheet1!$F:$F,"Not found",0) -> REC-0071 | E98: =_xlfn.XLOOKUP(A98,[1]Sheet1!$A:$A,[1]Sheet1!$H:$H,"not found",0) -> 2014-03-31 | F98: =_xlfn.XLOOKUP(A98,[1]Sheet1!$A:$A,[1]Sheet1!$D:$D,"not found",0) -> R2,184.91 | G98: =_xlfn.XLOOKUP(A98,[1]Sheet1!$A:$A,[1]Sheet1!$E:$E,"not found",0) -> R1.00 | H98: =_xlfn.XLOOKUP(A98,[1]Sheet1!$A:$A,[1]Sheet1!$I:$I,"not found",0) -> 2026-03-31 | I98: No longer provide economic value to the organisation | J98: Scrap | K98: Asset no longer meets a business requirement
A99: 11000015204 | B99: Acer Monitor | C99: =_xlfn.XLOOKUP(A99,[1]Sheet1!$A:$A,[1]Sheet1!$C:$C,"Not found",0) -> 10135 | D99: =_xlfn.XLOOKUP(A99,[1]Sheet1!$A:$A,[1]Sheet1!$F:$F,"Not found",0) -> REC-0071 | E99: =_xlfn.XLOOKUP(A99,[1]Sheet1!$A:$A,[1]Sheet1!$H:$H,"not found",0) -> 2014-03-31 | F99: =_xlfn.XLOOKUP(A99,[1]Sheet1!$A:$A,[1]Sheet1!$D:$D,"not found",0) -> R2,184.91 | G99: =_xlfn.XLOOKUP(A99,[1]Sheet1!$A:$A,[1]Sheet1!$E:$E,"not found",0) -> R1.00 | H99: =_xlfn.XLOOKUP(A99,[1]Sheet1!$A:$A,[1]Sheet1!$I:$I,"not found",0) -> 2026-03-31 | I99: No longer provide economic value to the organisation | J99: Scrap | K99: Asset no longer meets a business requirement
A100: 11000015205 | B100: Acer Monitor | C100: =_xlfn.XLOOKUP(A100,[1]Sheet1!$A:$A,[1]Sheet1!$C:$C,"Not found",0) -> 10135 | D100: =_xlfn.XLOOKUP(A100,[1]Sheet1!$A:$A,[1]Sheet1!$F:$F,"Not found",0) -> REC-0071 | E100: =_xlfn.XLOOKUP(A100,[1]Sheet1!$A:$A,[1]Sheet1!$H:$H,"not found",0) -> 2014-03-31 | F100: =_xlfn.XLOOKUP(A100,[1]Sheet1!$A:$A,[1]Sheet1!$D:$D,"not found",0) -> R2,184.91 | G100: =_xlfn.XLOOKUP(A100,[1]Sheet1!$A:$A,[1]Sheet1!$E:$E,"not found",0) -> R1.00 | H100: =_xlfn.XLOOKUP(A100,[1]Sheet1!$A:$A,[1]Sheet1!$I:$I,"not found",0) -> 2026-03-31 | I100: No longer provide economic value to the organisation | J100: Scrap | K100: Asset no longer meets a business requirement
A101: 11000015206 | B101: Acer Monitor | C101: =_xlfn.XLOOKUP(A101,[1]Sheet1!$A:$A,[1]Sheet1!$C:$C,"Not found",0) -> 10135 | D101: =_xlfn.XLOOKUP(A101,[1]Sheet1!$A:$A,[1]Sheet1!$F:$F,"Not found",0) -> REC-0071 | E101: =_xlfn.XLOOKUP(A101,[1]Sheet1!$A:$A,[1]Sheet1!$H:$H,"not found",0) -> 2014-03-31 | F101: =_xlfn.XLOOKUP(A101,[1]Sheet1!$A:$A,[1]Sheet1!$D:$D,"not found",0) -> R2,184.91 | G101: =_xlfn.XLOOKUP(A101,[1]Sheet1!$A:$A,[1]Sheet1!$E:$E,"not found",0) -> R1.00 | H101: =_xlfn.XLOOKUP(A101,[1]Sheet1!$A:$A,[1]Sheet1!$I:$I,"not found",0) -> 2026-03-31 | I101: No longer provide economic value to the organisation | J101: Scrap | K101: Asset no longer meets a business requirement
A102: 11000015207 | B102: Acer Monitor | C102: =_xlfn.XLOOKUP(A102,[1]Sheet1!$A:$A,[1]Sheet1!$C:$C,"Not found",0) -> 10135 | D102: =_xlfn.XLOOKUP(A102,[1]Sheet1!$A:$A,[1]Sheet1!$F:$F,"Not found",0) -> REC-0071 | E102: =_xlfn.XLOOKUP(A102,[1]Sheet1!$A:$A,[1]Sheet1!$H:$H,"not found",0) -> 2014-03-31 | F102: =_xlfn.XLOOKUP(A102,[1]Sheet1!$A:$A,[1]Sheet1!$D:$D,"not found",0) -> R2,184.91 | G102: =_xlfn.XLOOKUP(A102,[1]Sheet1!$A:$A,[1]Sheet1!$E:$E,"not found",0) -> R1.00 | H102: =_xlfn.XLOOKUP(A102,[1]Sheet1!$A:$A,[1]Sheet1!$I:$I,"not found",0) -> 2026-03-31 | I102: No longer provide economic value to the organisation | J102: Scrap | K102: Asset no longer meets a business requirement
A103: 11000015208 | B103: Acer Monitor | C103: =_xlfn.XLOOKUP(A103,[1]Sheet1!$A:$A,[1]Sheet1!$C:$C,"Not found",0) -> 10135 | D103: =_xlfn.XLOOKUP(A103,[1]Sheet1!$A:$A,[1]Sheet1!$F:$F,"Not found",0) -> REC-0071 | E103: =_xlfn.XLOOKUP(A103,[1]Sheet1!$A:$A,[1]Sheet1!$H:$H,"not found",0) -> 2014-03-31 | F103: =_xlfn.XLOOKUP(A103,[1]Sheet1!$A:$A,[1]Sheet1!$D:$D,"not found",0) -> R2,184.91 | G103: =_xlfn.XLOOKUP(A103,[1]Sheet1!$A:$A,[1]Sheet1!$E:$E,"not found",0) -> R1.00 | H103: =_xlfn.XLOOKUP(A103,[1]Sheet1!$A:$A,[1]Sheet1!$I:$I,"not found",0) -> 2026-03-31 | I103: No longer provide economic value to the organisation | J103: Scrap | K103: Asset no longer meets a business requirement
A104: 11000015210 | B104: Acer Monitor | C104: =_xlfn.XLOOKUP(A104,[1]Sheet1!$A:$A,[1]Sheet1!$C:$C,"Not found",0) -> 10135 | D104: =_xlfn.XLOOKUP(A104,[1]Sheet1!$A:$A,[1]Sheet1!$F:$F,"Not found",0) -> REC-0071 | E104: =_xlfn.XLOOKUP(A104,[1]Sheet1!$A:$A,[1]Sheet1!$H:$H,"not found",0) -> 2014-03-31 | F104: =_xlfn.XLOOKUP(A104,[1]Sheet1!$A:$A,[1]Sheet1!$D:$D,"not found",0) -> R2,184.91 | G104: =_xlfn.XLOOKUP(A104,[1]Sheet1!$A:$A,[1]Sheet1!$E:$E,"not found",0) -> R1.00 | H104: =_xlfn.XLOOKUP(A104,[1]Sheet1!$A:$A,[1]Sheet1!$I:$I,"not found",0) -> 2026-03-31 | I104: No longer provide economic value to the organisation | J104: Scrap | K104: Asset no longer meets a business requirement
A105: 11000015212 | B105: Acer Monitor | C105: =_xlfn.XLOOKUP(A105,[1]Sheet1!$A:$A,[1]Sheet1!$C:$C,"Not found",0) -> 10135 | D105: =_xlfn.XLOOKUP(A105,[1]Sheet1!$A:$A,[1]Sheet1!$F:$F,"Not found",0) -> REC-0071 | E105: =_xlfn.XLOOKUP(A105,[1]Sheet1!$A:$A,[1]Sheet1!$H:$H,"not found",0) -> 2014-03-31 | F105: =_xlfn.XLOOKUP(A105,[1]Sheet1!$A:$A,[1]Sheet1!$D:$D,"not found",0) -> R2,184.91 | G105: =_xlfn.XLOOKUP(A105,[1]Sheet1!$A:$A,[1]Sheet1!$E:$E,"not found",0) -> R1.00 | H105: =_xlfn.XLOOKUP(A105,[1]Sheet1!$A:$A,[1]Sheet1!$I:$I,"not found",0) -> 2026-03-31 | I105: No longer provide economic value to the organisation | J105: Scrap | K105: Asset no longer meets a business requirement
A106: 11000015213 | B106: Acer Monitor | C106: =_xlfn.XLOOKUP(A106,[1]Sheet1!$A:$A,[1]Sheet1!$C:$C,"Not found",0) -> 10135 | D106: =_xlfn.XLOOKUP(A106,[1]Sheet1!$A:$A,[1]Sheet1!$F:$F,"Not found",0) -> REC-0071 | E106: =_xlfn.XLOOKUP(A106,[1]Sheet1!$A:$A,[1]Sheet1!$H:$H,"not found",0) -> 2014-03-31 | F106: =_xlfn.XLOOKUP(A106,[1]Sheet1!$A:$A,[1]Sheet1!$D:$D,"not found",0) -> R2,184.91 | G106: =_xlfn.XLOOKUP(A106,[1]Sheet1!$A:$A,[1]Sheet1!$E:$E,"not found",0) -> R1.00 | H106: =_xlfn.XLOOKUP(A106,[1]Sheet1!$A:$A,[1]Sheet1!$I:$I,"not found",0) -> 2026-03-31 | I106: No longer provide economic value to the organisation | J106: Scrap | K106: Asset no longer meets a business requirement
A107: 11000015214 | B107: Acer Monitor | C107: =_xlfn.XLOOKUP(A107,[1]Sheet1!$A:$A,[1]Sheet1!$C:$C,"Not found",0) -> 10135 | D107: =_xlfn.XLOOKUP(A107,[1]Sheet1!$A:$A,[1]Sheet1!$F:$F,"Not found",0) -> REC-0071 | E107: =_xlfn.XLOOKUP(A107,[1]Sheet1!$A:$A,[1]Sheet1!$H:$H,"not found",0) -> 2014-03-31 | F107: =_xlfn.XLOOKUP(A107,[1]Sheet1!$A:$A,[1]Sheet1!$D:$D,"not found",0) -> R2,184.91 | G107: =_xlfn.XLOOKUP(A107,[1]Sheet1!$A:$A,[1]Sheet1!$E:$E,"not found",0) -> R1.00 | H107: =_xlfn.XLOOKUP(A107,[1]Sheet1!$A:$A,[1]Sheet1!$I:$I,"not found",0) -> 2026-03-31 | I107: No longer provide economic value to the organisation | J107: Scrap | K107: Asset no longer meets a business requirement
A108: 11000015215 | B108: Acer Monitor | C108: =_xlfn.XLOOKUP(A108,[1]Sheet1!$A:$A,[1]Sheet1!$C:$C,"Not found",0) -> 10135 | D108: =_xlfn.XLOOKUP(A108,[1]Sheet1!$A:$A,[1]Sheet1!$F:$F,"Not found",0) -> REC-0071 | E108: =_xlfn.XLOOKUP(A108,[1]Sheet1!$A:$A,[1]Sheet1!$H:$H,"not found",0) -> 2014-03-31 | F108: =_xlfn.XLOOKUP(A108,[1]Sheet1!$A:$A,[1]Sheet1!$D:$D,"not found",0) -> R2,184.91 | G108: =_xlfn.XLOOKUP(A108,[1]Sheet1!$A:$A,[1]Sheet1!$E:$E,"not found",0) -> R1.00 | H108: =_xlfn.XLOOKUP(A108,[1]Sheet1!$A:$A,[1]Sheet1!$I:$I,"not found",0) -> 2026-03-31 | I108: No longer provide economic value to the organisation | J108: Scrap | K108: Asset no longer meets a business requirement
A109: 11000015216 | B109: Acer Monitor | C109: =_xlfn.XLOOKUP(A109,[1]Sheet1!$A:$A,[1]Sheet1!$C:$C,"Not found",0) -> 10135 | D109: =_xlfn.XLOOKUP(A109,[1]Sheet1!$A:$A,[1]Sheet1!$F:$F,"Not found",0) -> REC-0071 | E109: =_xlfn.XLOOKUP(A109,[1]Sheet1!$A:$A,[1]Sheet1!$H:$H,"not found",0) -> 2014-03-31 | F109: =_xlfn.XLOOKUP(A109,[1]Sheet1!$A:$A,[1]Sheet1!$D:$D,"not found",0) -> R2,184.91 | G109: =_xlfn.XLOOKUP(A109,[1]Sheet1!$A:$A,[1]Sheet1!$E:$E,"not found",0) -> R1.00 | H109: =_xlfn.XLOOKUP(A109,[1]Sheet1!$A:$A,[1]Sheet1!$I:$I,"not found",0) -> 2026-03-31 | I109: No longer provide economic value to the organisation | J109: Scrap | K109: Asset no longer meets a business requirement
A110: 11000015217 | B110: Acer Monitor | C110: =_xlfn.XLOOKUP(A110,[1]Sheet1!$A:$A,[1]Sheet1!$C:$C,"Not found",0) -> 10135 | D110: =_xlfn.XLOOKUP(A110,[1]Sheet1!$A:$A,[1]Sheet1!$F:$F,"Not found",0) -> REC-0071 | E110: =_xlfn.XLOOKUP(A110,[1]Sheet1!$A:$A,[1]Sheet1!$H:$H,"not found",0) -> 2014-03-31 | F110: =_xlfn.XLOOKUP(A110,[1]Sheet1!$A:$A,[1]Sheet1!$D:$D,"not found",0) -> R2,184.91 | G110: =_xlfn.XLOOKUP(A110,[1]Sheet1!$A:$A,[1]Sheet1!$E:$E,"not found",0) -> R1.00 | H110: =_xlfn.XLOOKUP(A110,[1]Sheet1!$A:$A,[1]Sheet1!$I:$I,"not found",0) -> 2026-03-31 | I110: No longer provide economic value to the organisation | J110: Scrap | K110: Asset no longer meets a business requirement
A111: 11000015219 | B111: Acer Monitor | C111: =_xlfn.XLOOKUP(A111,[1]Sheet1!$A:$A,[1]Sheet1!$C:$C,"Not found",0) -> 10135 | D111: =_xlfn.XLOOKUP(A111,[1]Sheet1!$A:$A,[1]Sheet1!$F:$F,"Not found",0) -> REC-0071 | E111: =_xlfn.XLOOKUP(A111,[1]Sheet1!$A:$A,[1]Sheet1!$H:$H,"not found",0) -> 2014-03-31 | F111: =_xlfn.XLOOKUP(A111,[1]Sheet1!$A:$A,[1]Sheet1!$D:$D,"not found",0) -> R2,184.91 | G111: =_xlfn.XLOOKUP(A111,[1]Sheet1!$A:$A,[1]Sheet1!$E:$E,"not found",0) -> R1.00 | H111: =_xlfn.XLOOKUP(A111,[1]Sheet1!$A:$A,[1]Sheet1!$I:$I,"not found",0) -> 2026-03-31 | I111: No longer provide economic value to the organisation | J111: Scrap | K111: Asset no longer meets a business requirement
A112: 11000015221 | B112: Acer Monitor | C112: =_xlfn.XLOOKUP(A112,[1]Sheet1!$A:$A,[1]Sheet1!$C:$C,"Not found",0) -> 10135 | D112: =_xlfn.XLOOKUP(A112,[1]Sheet1!$A:$A,[1]Sheet1!$F:$F,"Not found",0) -> REC-0071 | E112: =_xlfn.XLOOKUP(A112,[1]Sheet1!$A:$A,[1]Sheet1!$H:$H,"not found",0) -> 2014-03-31 | F112: =_xlfn.XLOOKUP(A112,[1]Sheet1!$A:$A,[1]Sheet1!$D:$D,"not found",0) -> R2,184.91 | G112: =_xlfn.XLOOKUP(A112,[1]Sheet1!$A:$A,[1]Sheet1!$E:$E,"not found",0) -> R1.00 | H112: =_xlfn.XLOOKUP(A112,[1]Sheet1!$A:$A,[1]Sheet1!$I:$I,"not found",0) -> 2026-03-31 | I112: No longer provide economic value to the organisation | J112: Scrap | K112: Asset no longer meets a business requirement
A113: 11000015222 | B113: Acer Monitor | C113: =_xlfn.XLOOKUP(A113,[1]Sheet1!$A:$A,[1]Sheet1!$C:$C,"Not found",0) -> 10135 | D113: =_xlfn.XLOOKUP(A113,[1]Sheet1!$A:$A,[1]Sheet1!$F:$F,"Not found",0) -> REC-0071 | E113: =_xlfn.XLOOKUP(A113,[1]Sheet1!$A:$A,[1]Sheet1!$H:$H,"not found",0) -> 2014-03-31 | F113: =_xlfn.XLOOKUP(A113,[1]Sheet1!$A:$A,[1]Sheet1!$D:$D,"not found",0) -> R2,184.91 | G113: =_xlfn.XLOOKUP(A113,[1]Sheet1!$A:$A,[1]Sheet1!$E:$E,"not found",0) -> R1.00 | H113: =_xlfn.XLOOKUP(A113,[1]Sheet1!$A:$A,[1]Sheet1!$I:$I,"not found",0) -> 2026-03-31 | I113: No longer provide economic value to the organisation | J113: Scrap | K113: Asset no longer meets a business requirement
A114: 11000015223 | B114: Acer Monitor | C114: =_xlfn.XLOOKUP(A114,[1]Sheet1!$A:$A,[1]Sheet1!$C:$C,"Not found",0) -> 10135 | D114: =_xlfn.XLOOKUP(A114,[1]Sheet1!$A:$A,[1]Sheet1!$F:$F,"Not found",0) -> REC-0071 | E114: =_xlfn.XLOOKUP(A114,[1]Sheet1!$A:$A,[1]Sheet1!$H:$H,"not found",0) -> 2014-03-31 | F114: =_xlfn.XLOOKUP(A114,[1]Sheet1!$A:$A,[1]Sheet1!$D:$D,"not found",0) -> R2,184.91 | G114: =_xlfn.XLOOKUP(A114,[1]Sheet1!$A:$A,[1]Sheet1!$E:$E,"not found",0) -> R1.00 | H114: =_xlfn.XLOOKUP(A114,[1]Sheet1!$A:$A,[1]Sheet1!$I:$I,"not found",0) -> 2026-03-31 | I114: No longer provide economic value to the organisation | J114: Scrap | K114: Asset no longer meets a business requirement
A115: 11000015224 | B115: Acer Monitor | C115: =_xlfn.XLOOKUP(A115,[1]Sheet1!$A:$A,[1]Sheet1!$C:$C,"Not found",0) -> 10135 | D115: =_xlfn.XLOOKUP(A115,[1]Sheet1!$A:$A,[1]Sheet1!$F:$F,"Not found",0) -> REC-0071 | E115: =_xlfn.XLOOKUP(A115,[1]Sheet1!$A:$A,[1]Sheet1!$H:$H,"not found",0) -> 2014-03-31 | F115: =_xlfn.XLOOKUP(A115,[1]Sheet1!$A:$A,[1]Sheet1!$D:$D,"not found",0) -> R2,184.91 | G115: =_xlfn.XLOOKUP(A115,[1]Sheet1!$A:$A,[1]Sheet1!$E:$E,"not found",0) -> R1.00 | H115: =_xlfn.XLOOKUP(A115,[1]Sheet1!$A:$A,[1]Sheet1!$I:$I,"not found",0) -> 2026-03-31 | I115: No longer provide economic value to the organisation | J115: Scrap | K115: Asset no longer meets a business requirement
A116: 11000015226 | B116: Acer Monitor | C116: =_xlfn.XLOOKUP(A116,[1]Sheet1!$A:$A,[1]Sheet1!$C:$C,"Not found",0) -> 10135 | D116: =_xlfn.XLOOKUP(A116,[1]Sheet1!$A:$A,[1]Sheet1!$F:$F,"Not found",0) -> REC-0071 | E116: =_xlfn.XLOOKUP(A116,[1]Sheet1!$A:$A,[1]Sheet1!$H:$H,"not found",0) -> 2014-03-31 | F116: =_xlfn.XLOOKUP(A116,[1]Sheet1!$A:$A,[1]Sheet1!$D:$D,"not found",0) -> R2,184.91 | G116: =_xlfn.XLOOKUP(A116,[1]Sheet1!$A:$A,[1]Sheet1!$E:$E,"not found",0) -> R1.00 | H116: =_xlfn.XLOOKUP(A116,[1]Sheet1!$A:$A,[1]Sheet1!$I:$I,"not found",0) -> 2026-03-31 | I116: No longer provide economic value to the organisation | J116: Scrap | K116: Asset no longer meets a business requirement
A117: 11000015227 | B117: Acer Monitor | C117: =_xlfn.XLOOKUP(A117,[1]Sheet1!$A:$A,[1]Sheet1!$C:$C,"Not found",0) -> 10135 | D117: =_xlfn.XLOOKUP(A117,[1]Sheet1!$A:$A,[1]Sheet1!$F:$F,"Not found",0) -> REC-0071 | E117: =_xlfn.XLOOKUP(A117,[1]Sheet1!$A:$A,[1]Sheet1!$H:$H,"not found",0) -> 2014-03-31 | F117: =_xlfn.XLOOKUP(A117,[1]Sheet1!$A:$A,[1]Sheet1!$D:$D,"not found",0) -> R2,184.91 | G117: =_xlfn.XLOOKUP(A117,[1]Sheet1!$A:$A,[1]Sheet1!$E:$E,"not found",0) -> R1.00 | H117: =_xlfn.XLOOKUP(A117,[1]Sheet1!$A:$A,[1]Sheet1!$I:$I,"not found",0) -> 2026-03-31 | I117: No longer provide economic value to the organisation | J117: Scrap | K117: Asset no longer meets a business requirement
A118: 11000015228 | B118: Acer Monitor | C118: =_xlfn.XLOOKUP(A118,[1]Sheet1!$A:$A,[1]Sheet1!$C:$C,"Not found",0) -> 10135 | D118: =_xlfn.XLOOKUP(A118,[1]Sheet1!$A:$A,[1]Sheet1!$F:$F,"Not found",0) -> REC-0071 | E118: =_xlfn.XLOOKUP(A118,[1]Sheet1!$A:$A,[1]Sheet1!$H:$H,"not found",0) -> 2014-03-31 | F118: =_xlfn.XLOOKUP(A118,[1]Sheet1!$A:$A,[1]Sheet1!$D:$D,"not found",0) -> R2,184.91 | G118: =_xlfn.XLOOKUP(A118,[1]Sheet1!$A:$A,[1]Sheet1!$E:$E,"not found",0) -> R1.00 | H118: =_xlfn.XLOOKUP(A118,[1]Sheet1!$A:$A,[1]Sheet1!$I:$I,"not found",0) -> 2026-03-31 | I118: No longer provide economic value to the organisation | J118: Scrap | K118: Asset no longer meets a business requirement
A119: 11000015230 | B119: Acer Monitor | C119: =_xlfn.XLOOKUP(A119,[1]Sheet1!$A:$A,[1]Sheet1!$C:$C,"Not found",0) -> 10135 | D119: =_xlfn.XLOOKUP(A119,[1]Sheet1!$A:$A,[1]Sheet1!$F:$F,"Not found",0) -> REC-0071 | E119: =_xlfn.XLOOKUP(A119,[1]Sheet1!$A:$A,[1]Sheet1!$H:$H,"not found",0) -> 2014-03-31 | F119: =_xlfn.XLOOKUP(A119,[1]Sheet1!$A:$A,[1]Sheet1!$D:$D,"not found",0) -> R2,184.91 | G119: =_xlfn.XLOOKUP(A119,[1]Sheet1!$A:$A,[1]Sheet1!$E:$E,"not found",0) -> R1.00 | H119: =_xlfn.XLOOKUP(A119,[1]Sheet1!$A:$A,[1]Sheet1!$I:$I,"not found",0) -> 2026-03-31 | I119: No longer provide economic value to the organisation | J119: Scrap | K119: Asset no longer meets a business requirement
A120: 11000015232 | B120: Acer Monitor | C120: =_xlfn.XLOOKUP(A120,[1]Sheet1!$A:$A,[1]Sheet1!$C:$C,"Not found",0) -> 10135 | D120: =_xlfn.XLOOKUP(A120,[1]Sheet1!$A:$A,[1]Sheet1!$F:$F,"Not found",0) -> REC-0071 | E120: =_xlfn.XLOOKUP(A120,[1]Sheet1!$A:$A,[1]Sheet1!$H:$H,"not found",0) -> 2014-03-31 | F120: =_xlfn.XLOOKUP(A120,[1]Sheet1!$A:$A,[1]Sheet1!$D:$D,"not found",0) -> R2,184.91 | G120: =_xlfn.XLOOKUP(A120,[1]Sheet1!$A:$A,[1]Sheet1!$E:$E,"not found",0) -> R1.00 | H120: =_xlfn.XLOOKUP(A120,[1]Sheet1!$A:$A,[1]Sheet1!$I:$I,"not found",0) -> 2026-03-31 | I120: No longer provide economic value to the organisation | J120: Scrap | K120: Asset no longer meets a business requirement
A121: 11000015233 | B121: Acer Monitor | C121: =_xlfn.XLOOKUP(A121,[1]Sheet1!$A:$A,[1]Sheet1!$C:$C,"Not found",0) -> 10135 | D121: =_xlfn.XLOOKUP(A121,[1]Sheet1!$A:$A,[1]Sheet1!$F:$F,"Not found",0) -> REC-0071 | E121: =_xlfn.XLOOKUP(A121,[1]Sheet1!$A:$A,[1]Sheet1!$H:$H,"not found",0) -> 2014-03-31 | F121: =_xlfn.XLOOKUP(A121,[1]Sheet1!$A:$A,[1]Sheet1!$D:$D,"not found",0) -> R2,184.91 | G121: =_xlfn.XLOOKUP(A121,[1]Sheet1!$A:$A,[1]Sheet1!$E:$E,"not found",0) -> R1.00 | H121: =_xlfn.XLOOKUP(A121,[1]Sheet1!$A:$A,[1]Sheet1!$I:$I,"not found",0) -> 2026-03-31 | I121: No longer provide economic value to the organisation | J121: Scrap | K121: Asset no longer meets a business requirement
A122: 11000015235 | B122: Acer Monitor | C122: =_xlfn.XLOOKUP(A122,[1]Sheet1!$A:$A,[1]Sheet1!$C:$C,"Not found",0) -> 10135 | D122: =_xlfn.XLOOKUP(A122,[1]Sheet1!$A:$A,[1]Sheet1!$F:$F,"Not found",0) -> REC-0071 | E122: =_xlfn.XLOOKUP(A122,[1]Sheet1!$A:$A,[1]Sheet1!$H:$H,"not found",0) -> 2014-03-31 | F122: =_xlfn.XLOOKUP(A122,[1]Sheet1!$A:$A,[1]Sheet1!$D:$D,"not found",0) -> R2,184.91 | G122: =_xlfn.XLOOKUP(A122,[1]Sheet1!$A:$A,[1]Sheet1!$E:$E,"not found",0) -> R1.00 | H122: =_xlfn.XLOOKUP(A122,[1]Sheet1!$A:$A,[1]Sheet1!$I:$I,"not found",0) -> 2026-03-31 | I122: No longer provide economic value to the organisation | J122: Scrap | K122: Asset no longer meets a business requirement
A123: 11000015237 | B123: Acer Monitor | C123: =_xlfn.XLOOKUP(A123,[1]Sheet1!$A:$A,[1]Sheet1!$C:$C,"Not found",0) -> 10135 | D123: =_xlfn.XLOOKUP(A123,[1]Sheet1!$A:$A,[1]Sheet1!$F:$F,"Not found",0) -> REC-0071 | E123: =_xlfn.XLOOKUP(A123,[1]Sheet1!$A:$A,[1]Sheet1!$H:$H,"not found",0) -> 2014-03-31 | F123: =_xlfn.XLOOKUP(A123,[1]Sheet1!$A:$A,[1]Sheet1!$D:$D,"not found",0) -> R2,184.91 | G123: =_xlfn.XLOOKUP(A123,[1]Sheet1!$A:$A,[1]Sheet1!$E:$E,"not found",0) -> R1.00 | H123: =_xlfn.XLOOKUP(A123,[1]Sheet1!$A:$A,[1]Sheet1!$I:$I,"not found",0) -> 2026-03-31 | I123: No longer provide economic value to the organisation | J123: Scrap | K123: Asset no longer meets a business requirement
A124: 11000015395 | B124: Acer Monitor | C124: =_xlfn.XLOOKUP(A124,[1]Sheet1!$A:$A,[1]Sheet1!$C:$C,"Not found",0) -> 10135 | D124: =_xlfn.XLOOKUP(A124,[1]Sheet1!$A:$A,[1]Sheet1!$F:$F,"Not found",0) -> REC-0071 | E124: =_xlfn.XLOOKUP(A124,[1]Sheet1!$A:$A,[1]Sheet1!$H:$H,"not found",0) -> 2014-06-17 | F124: =_xlfn.XLOOKUP(A124,[1]Sheet1!$A:$A,[1]Sheet1!$D:$D,"not found",0) -> R2,092.04 | G124: =_xlfn.XLOOKUP(A124,[1]Sheet1!$A:$A,[1]Sheet1!$E:$E,"not found",0) -> R1.00 | H124: =_xlfn.XLOOKUP(A124,[1]Sheet1!$A:$A,[1]Sheet1!$I:$I,"not found",0) -> 2026-03-31 | I124: No longer provide economic value to the organisation | J124: Scrap | K124: Asset no longer meets a business requirement
A125: 11000015714 | B125: Acer Monitor | C125: =_xlfn.XLOOKUP(A125,[1]Sheet1!$A:$A,[1]Sheet1!$C:$C,"Not found",0) -> 10135 | D125: =_xlfn.XLOOKUP(A125,[1]Sheet1!$A:$A,[1]Sheet1!$F:$F,"Not found",0) -> REC-0071 | E125: =_xlfn.XLOOKUP(A125,[1]Sheet1!$A:$A,[1]Sheet1!$H:$H,"not found",0) -> 2014-10-24 | F125: =_xlfn.XLOOKUP(A125,[1]Sheet1!$A:$A,[1]Sheet1!$D:$D,"not found",0) -> R1,175.97 | G125: =_xlfn.XLOOKUP(A125,[1]Sheet1!$A:$A,[1]Sheet1!$E:$E,"not found",0) -> R1.00 | H125: =_xlfn.XLOOKUP(A125,[1]Sheet1!$A:$A,[1]Sheet1!$I:$I,"not found",0) -> 2026-03-31 | I125: No longer provide economic value to the organisation | J125: Scrap | K125: Asset no longer meets a business requirement
A126: 11000015715 | B126: Acer Monitor | C126: =_xlfn.XLOOKUP(A126,[1]Sheet1!$A:$A,[1]Sheet1!$C:$C,"Not found",0) -> 10135 | D126: =_xlfn.XLOOKUP(A126,[1]Sheet1!$A:$A,[1]Sheet1!$F:$F,"Not found",0) -> REC-0071 | E126: =_xlfn.XLOOKUP(A126,[1]Sheet1!$A:$A,[1]Sheet1!$H:$H,"not found",0) -> 2014-10-24 | F126: =_xlfn.XLOOKUP(A126,[1]Sheet1!$A:$A,[1]Sheet1!$D:$D,"not found",0) -> R1,175.97 | G126: =_xlfn.XLOOKUP(A126,[1]Sheet1!$A:$A,[1]Sheet1!$E:$E,"not found",0) -> R1.00 | H126: =_xlfn.XLOOKUP(A126,[1]Sheet1!$A:$A,[1]Sheet1!$I:$I,"not found",0) -> 2026-03-31 | I126: No longer provide economic value to the organisation | J126: Scrap | K126: Asset no longer meets a business requirement
A127: 11000015716 | B127: Acer Monitor | C127: =_xlfn.XLOOKUP(A127,[1]Sheet1!$A:$A,[1]Sheet1!$C:$C,"Not found",0) -> 10135 | D127: =_xlfn.XLOOKUP(A127,[1]Sheet1!$A:$A,[1]Sheet1!$F:$F,"Not found",0) -> REC-0071 | E127: =_xlfn.XLOOKUP(A127,[1]Sheet1!$A:$A,[1]Sheet1!$H:$H,"not found",0) -> 2014-10-24 | F127: =_xlfn.XLOOKUP(A127,[1]Sheet1!$A:$A,[1]Sheet1!$D:$D,"not found",0) -> R1,175.97 | G127: =_xlfn.XLOOKUP(A127,[1]Sheet1!$A:$A,[1]Sheet1!$E:$E,"not found",0) -> R1.00 | H127: =_xlfn.XLOOKUP(A127,[1]Sheet1!$A:$A,[1]Sheet1!$I:$I,"not found",0) -> 2026-03-31 | I127: No longer provide economic value to the organisation | J127: Scrap | K127: Asset no longer meets a business requirement
A128: 11000015717 | B128: Acer Monitor | C128: =_xlfn.XLOOKUP(A128,[1]Sheet1!$A:$A,[1]Sheet1!$C:$C,"Not found",0) -> 10135 | D128: =_xlfn.XLOOKUP(A128,[1]Sheet1!$A:$A,[1]Sheet1!$F:$F,"Not found",0) -> REC-0071 | E128: =_xlfn.XLOOKUP(A128,[1]Sheet1!$A:$A,[1]Sheet1!$H:$H,"not found",0) -> 2014-10-24 | F128: =_xlfn.XLOOKUP(A128,[1]Sheet1!$A:$A,[1]Sheet1!$D:$D,"not found",0) -> R1,175.97 | G128: =_xlfn.XLOOKUP(A128,[1]Sheet1!$A:$A,[1]Sheet1!$E:$E,"not found",0) -> R1.00 | H128: =_xlfn.XLOOKUP(A128,[1]Sheet1!$A:$A,[1]Sheet1!$I:$I,"not found",0) -> 2026-03-31 | I128: No longer provide economic value to the organisation | J128: Scrap | K128: Asset no longer meets a business requirement
A129: 11000015719 | B129: Acer Monitor | C129: =_xlfn.XLOOKUP(A129,[1]Sheet1!$A:$A,[1]Sheet1!$C:$C,"Not found",0) -> 10135 | D129: =_xlfn.XLOOKUP(A129,[1]Sheet1!$A:$A,[1]Sheet1!$F:$F,"Not found",0) -> REC-0071 | E129: =_xlfn.XLOOKUP(A129,[1]Sheet1!$A:$A,[1]Sheet1!$H:$H,"not found",0) -> 2014-10-24 | F129: =_xlfn.XLOOKUP(A129,[1]Sheet1!$A:$A,[1]Sheet1!$D:$D,"not found",0) -> R1,175.97 | G129: =_xlfn.XLOOKUP(A129,[1]Sheet1!$A:$A,[1]Sheet1!$E:$E,"not found",0) -> R1.00 | H129: =_xlfn.XLOOKUP(A129,[1]Sheet1!$A:$A,[1]Sheet1!$I:$I,"not found",0) -> 2026-03-31 | I129: No longer provide economic value to the organisation | J129: Scrap | K129: Asset no longer meets a business requirement
A130: 11000015721 | B130: Acer Monitor | C130: =_xlfn.XLOOKUP(A130,[1]Sheet1!$A:$A,[1]Sheet1!$C:$C,"Not found",0) -> 10135 | D130: =_xlfn.XLOOKUP(A130,[1]Sheet1!$A:$A,[1]Sheet1!$F:$F,"Not found",0) -> REC-0071 | E130: =_xlfn.XLOOKUP(A130,[1]Sheet1!$A:$A,[1]Sheet1!$H:$H,"not found",0) -> 2014-10-24 | F130: =_xlfn.XLOOKUP(A130,[1]Sheet1!$A:$A,[1]Sheet1!$D:$D,"not found",0) -> R1,175.97 | G130: =_xlfn.XLOOKUP(A130,[1]Sheet1!$A:$A,[1]Sheet1!$E:$E,"not found",0) -> R1.00 | H130: =_xlfn.XLOOKUP(A130,[1]Sheet1!$A:$A,[1]Sheet1!$I:$I,"not found",0) -> 2026-03-31 | I130: No longer provide economic value to the organisation | J130: Scrap | K130: Asset no longer meets a business requirement
A131: 11000015722 | B131: Acer Monitor | C131: =_xlfn.XLOOKUP(A131,[1]Sheet1!$A:$A,[1]Sheet1!$C:$C,"Not found",0) -> 10135 | D131: =_xlfn.XLOOKUP(A131,[1]Sheet1!$A:$A,[1]Sheet1!$F:$F,"Not found",0) -> REC-0071 | E131: =_xlfn.XLOOKUP(A131,[1]Sheet1!$A:$A,[1]Sheet1!$H:$H,"not found",0) -> 2014-10-24 | F131: =_xlfn.XLOOKUP(A131,[1]Sheet1!$A:$A,[1]Sheet1!$D:$D,"not found",0) -> R1,175.97 | G131: =_xlfn.XLOOKUP(A131,[1]Sheet1!$A:$A,[1]Sheet1!$E:$E,"not found",0) -> R1.00 | H131: =_xlfn.XLOOKUP(A131,[1]Sheet1!$A:$A,[1]Sheet1!$I:$I,"not found",0) -> 2026-03-31 | I131: No longer provide economic value to the organisation | J131: Scrap | K131: Asset no longer meets a business requirement
A132: 11000015723 | B132: Acer Monitor | C132: =_xlfn.XLOOKUP(A132,[1]Sheet1!$A:$A,[1]Sheet1!$C:$C,"Not found",0) -> 10135 | D132: =_xlfn.XLOOKUP(A132,[1]Sheet1!$A:$A,[1]Sheet1!$F:$F,"Not found",0) -> REC-0071 | E132: =_xlfn.XLOOKUP(A132,[1]Sheet1!$A:$A,[1]Sheet1!$H:$H,"not found",0) -> 2014-10-24 | F132: =_xlfn.XLOOKUP(A132,[1]Sheet1!$A:$A,[1]Sheet1!$D:$D,"not found",0) -> R1,175.97 | G132: =_xlfn.XLOOKUP(A132,[1]Sheet1!$A:$A,[1]Sheet1!$E:$E,"not found",0) -> R1.00 | H132: =_xlfn.XLOOKUP(A132,[1]Sheet1!$A:$A,[1]Sheet1!$I:$I,"not found",0) -> 2026-03-31 | I132: No longer provide economic value to the organisation | J132: Scrap | K132: Asset no longer meets a business requirement
A133: 11000015724 | B133: Acer Monitor | C133: =_xlfn.XLOOKUP(A133,[1]Sheet1!$A:$A,[1]Sheet1!$C:$C,"Not found",0) -> 10135 | D133: =_xlfn.XLOOKUP(A133,[1]Sheet1!$A:$A,[1]Sheet1!$F:$F,"Not found",0) -> REC-0071 | E133: =_xlfn.XLOOKUP(A133,[1]Sheet1!$A:$A,[1]Sheet1!$H:$H,"not found",0) -> 2014-10-24 | F133: =_xlfn.XLOOKUP(A133,[1]Sheet1!$A:$A,[1]Sheet1!$D:$D,"not found",0) -> R1,175.97 | G133: =_xlfn.XLOOKUP(A133,[1]Sheet1!$A:$A,[1]Sheet1!$E:$E,"not found",0) -> R1.00 | H133: =_xlfn.XLOOKUP(A133,[1]Sheet1!$A:$A,[1]Sheet1!$I:$I,"not found",0) -> 2026-03-31 | I133: No longer provide economic value to the organisation | J133: Scrap | K133: Asset no longer meets a business requirement
A134: 11000015725 | B134: Acer Monitor | C134: =_xlfn.XLOOKUP(A134,[1]Sheet1!$A:$A,[1]Sheet1!$C:$C,"Not found",0) -> 10135 | D134: =_xlfn.XLOOKUP(A134,[1]Sheet1!$A:$A,[1]Sheet1!$F:$F,"Not found",0) -> REC-0071 | E134: =_xlfn.XLOOKUP(A134,[1]Sheet1!$A:$A,[1]Sheet1!$H:$H,"not found",0) -> 2014-10-24 | F134: =_xlfn.XLOOKUP(A134,[1]Sheet1!$A:$A,[1]Sheet1!$D:$D,"not found",0) -> R1,175.97 | G134: =_xlfn.XLOOKUP(A134,[1]Sheet1!$A:$A,[1]Sheet1!$E:$E,"not found",0) -> R1.00 | H134: =_xlfn.XLOOKUP(A134,[1]Sheet1!$A:$A,[1]Sheet1!$I:$I,"not found",0) -> 2026-03-31 | I134: No longer provide economic value to the organisation | J134: Scrap | K134: Asset no longer meets a business requirement
A135: 11000015726 | B135: Acer Monitor | C135: =_xlfn.XLOOKUP(A135,[1]Sheet1!$A:$A,[1]Sheet1!$C:$C,"Not found",0) -> 10135 | D135: =_xlfn.XLOOKUP(A135,[1]Sheet1!$A:$A,[1]Sheet1!$F:$F,"Not found",0) -> REC-0071 | E135: =_xlfn.XLOOKUP(A135,[1]Sheet1!$A:$A,[1]Sheet1!$H:$H,"not found",0) -> 2014-10-24 | F135: =_xlfn.XLOOKUP(A135,[1]Sheet1!$A:$A,[1]Sheet1!$D:$D,"not found",0) -> R1,175.97 | G135: =_xlfn.XLOOKUP(A135,[1]Sheet1!$A:$A,[1]Sheet1!$E:$E,"not found",0) -> R1.00 | H135: =_xlfn.XLOOKUP(A135,[1]Sheet1!$A:$A,[1]Sheet1!$I:$I,"not found",0) -> 2026-03-31 | I135: No longer provide economic value to the organisation | J135: Scrap | K135: Asset no longer meets a business requirement
A136: 11000015728 | B136: Acer Monitor | C136: =_xlfn.XLOOKUP(A136,[1]Sheet1!$A:$A,[1]Sheet1!$C:$C,"Not found",0) -> 10135 | D136: =_xlfn.XLOOKUP(A136,[1]Sheet1!$A:$A,[1]Sheet1!$F:$F,"Not found",0) -> REC-0071 | E136: =_xlfn.XLOOKUP(A136,[1]Sheet1!$A:$A,[1]Sheet1!$H:$H,"not found",0) -> 2014-10-24 | F136: =_xlfn.XLOOKUP(A136,[1]Sheet1!$A:$A,[1]Sheet1!$D:$D,"not found",0) -> R1,175.97 | G136: =_xlfn.XLOOKUP(A136,[1]Sheet1!$A:$A,[1]Sheet1!$E:$E,"not found",0) -> R1.00 | H136: =_xlfn.XLOOKUP(A136,[1]Sheet1!$A:$A,[1]Sheet1!$I:$I,"not found",0) -> 2026-03-31 | I136: No longer provide economic value to the organisation | J136: Scrap | K136: Asset no longer meets a business requirement
A137: 11000015729 | B137: Acer Monitor | C137: =_xlfn.XLOOKUP(A137,[1]Sheet1!$A:$A,[1]Sheet1!$C:$C,"Not found",0) -> 10135 | D137: =_xlfn.XLOOKUP(A137,[1]Sheet1!$A:$A,[1]Sheet1!$F:$F,"Not found",0) -> REC-0071 | E137: =_xlfn.XLOOKUP(A137,[1]Sheet1!$A:$A,[1]Sheet1!$H:$H,"not found",0) -> 2014-10-24 | F137: =_xlfn.XLOOKUP(A137,[1]Sheet1!$A:$A,[1]Sheet1!$D:$D,"not found",0) -> R1,175.97 | G137: =_xlfn.XLOOKUP(A137,[1]Sheet1!$A:$A,[1]Sheet1!$E:$E,"not found",0) -> R1.00 | H137: =_xlfn.XLOOKUP(A137,[1]Sheet1!$A:$A,[1]Sheet1!$I:$I,"not found",0) -> 2026-03-31 | I137: No longer provide economic value to the organisation | J137: Scrap | K137: Asset no longer meets a business requirement
A138: 11000015730 | B138: Acer Monitor | C138: =_xlfn.XLOOKUP(A138,[1]Sheet1!$A:$A,[1]Sheet1!$C:$C,"Not found",0) -> 10135 | D138: =_xlfn.XLOOKUP(A138,[1]Sheet1!$A:$A,[1]Sheet1!$F:$F,"Not found",0) -> REC-0071 | E138: =_xlfn.XLOOKUP(A138,[1]Sheet1!$A:$A,[1]Sheet1!$H:$H,"not found",0) -> 2014-10-24 | F138: =_xlfn.XLOOKUP(A138,[1]Sheet1!$A:$A,[1]Sheet1!$D:$D,"not found",0) -> R1,175.97 | G138: =_xlfn.XLOOKUP(A138,[1]Sheet1!$A:$A,[1]Sheet1!$E:$E,"not found",0) -> R1.00 | H138: =_xlfn.XLOOKUP(A138,[1]Sheet1!$A:$A,[1]Sheet1!$I:$I,"not found",0) -> 2026-03-31 | I138: No longer provide economic value to the organisation | J138: Scrap | K138: Asset no longer meets a business requirement
A139: 11000015731 | B139: Acer Monitor | C139: =_xlfn.XLOOKUP(A139,[1]Sheet1!$A:$A,[1]Sheet1!$C:$C,"Not found",0) -> 10135 | D139: =_xlfn.XLOOKUP(A139,[1]Sheet1!$A:$A,[1]Sheet1!$F:$F,"Not found",0) -> REC-0071 | E139: =_xlfn.XLOOKUP(A139,[1]Sheet1!$A:$A,[1]Sheet1!$H:$H,"not found",0) -> 2014-10-24 | F139: =_xlfn.XLOOKUP(A139,[1]Sheet1!$A:$A,[1]Sheet1!$D:$D,"not found",0) -> R1,175.97 | G139: =_xlfn.XLOOKUP(A139,[1]Sheet1!$A:$A,[1]Sheet1!$E:$E,"not found",0) -> R1.00 | H139: =_xlfn.XLOOKUP(A139,[1]Sheet1!$A:$A,[1]Sheet1!$I:$I,"not found",0) -> 2026-03-31 | I139: No longer provide economic value to the organisation | J139: Scrap | K139: Asset no longer meets a business requirement
A140: 11000015733 | B140: Acer Monitor | C140: =_xlfn.XLOOKUP(A140,[1]Sheet1!$A:$A,[1]Sheet1!$C:$C,"Not found",0) -> 10135 | D140: =_xlfn.XLOOKUP(A140,[1]Sheet1!$A:$A,[1]Sheet1!$F:$F,"Not found",0) -> REC-0071 | E140: =_xlfn.XLOOKUP(A140,[1]Sheet1!$A:$A,[1]Sheet1!$H:$H,"not found",0) -> 2014-10-24 | F140: =_xlfn.XLOOKUP(A140,[1]Sheet1!$A:$A,[1]Sheet1!$D:$D,"not found",0) -> R1,175.97 | G140: =_xlfn.XLOOKUP(A140,[1]Sheet1!$A:$A,[1]Sheet1!$E:$E,"not found",0) -> R1.00 | H140: =_xlfn.XLOOKUP(A140,[1]Sheet1!$A:$A,[1]Sheet1!$I:$I,"not found",0) -> 2026-03-31 | I140: No longer provide economic value to the organisation | J140: Scrap | K140: Asset no longer meets a business requirement
A141: 11000015735 | B141: Acer Monitor | C141: =_xlfn.XLOOKUP(A141,[1]Sheet1!$A:$A,[1]Sheet1!$C:$C,"Not found",0) -> 10135 | D141: =_xlfn.XLOOKUP(A141,[1]Sheet1!$A:$A,[1]Sheet1!$F:$F,"Not found",0) -> REC-0071 | E141: =_xlfn.XLOOKUP(A141,[1]Sheet1!$A:$A,[1]Sheet1!$H:$H,"not found",0) -> 2014-10-24 | F141: =_xlfn.XLOOKUP(A141,[1]Sheet1!$A:$A,[1]Sheet1!$D:$D,"not found",0) -> R1,175.97 | G141: =_xlfn.XLOOKUP(A141,[1]Sheet1!$A:$A,[1]Sheet1!$E:$E,"not found",0) -> R1.00 | H141: =_xlfn.XLOOKUP(A141,[1]Sheet1!$A:$A,[1]Sheet1!$I:$I,"not found",0) -> 2026-03-31 | I141: No longer provide economic value to the organisation | J141: Scrap | K141: Asset no longer meets a business requirement
A142: 11000015737 | B142: Acer Monitor | C142: =_xlfn.XLOOKUP(A142,[1]Sheet1!$A:$A,[1]Sheet1!$C:$C,"Not found",0) -> 10135 | D142: =_xlfn.XLOOKUP(A142,[1]Sheet1!$A:$A,[1]Sheet1!$F:$F,"Not found",0) -> REC-0071 | E142: =_xlfn.XLOOKUP(A142,[1]Sheet1!$A:$A,[1]Sheet1!$H:$H,"not found",0) -> 2014-10-24 | F142: =_xlfn.XLOOKUP(A142,[1]Sheet1!$A:$A,[1]Sheet1!$D:$D,"not found",0) -> R1,175.97 | G142: =_xlfn.XLOOKUP(A142,[1]Sheet1!$A:$A,[1]Sheet1!$E:$E,"not found",0) -> R1.00 | H142: =_xlfn.XLOOKUP(A142,[1]Sheet1!$A:$A,[1]Sheet1!$I:$I,"not found",0) -> 2026-03-31 | I142: No longer provide economic value to the organisation | J142: Scrap | K142: Asset no longer meets a business requirement
A143: 11000015739 | B143: Acer Monitor | C143: =_xlfn.XLOOKUP(A143,[1]Sheet1!$A:$A,[1]Sheet1!$C:$C,"Not found",0) -> 10135 | D143: =_xlfn.XLOOKUP(A143,[1]Sheet1!$A:$A,[1]Sheet1!$F:$F,"Not found",0) -> REC-0071 | E143: =_xlfn.XLOOKUP(A143,[1]Sheet1!$A:$A,[1]Sheet1!$H:$H,"not found",0) -> 2014-10-24 | F143: =_xlfn.XLOOKUP(A143,[1]Sheet1!$A:$A,[1]Sheet1!$D:$D,"not found",0) -> R1,175.97 | G143: =_xlfn.XLOOKUP(A143,[1]Sheet1!$A:$A,[1]Sheet1!$E:$E,"not found",0) -> R1.00 | H143: =_xlfn.XLOOKUP(A143,[1]Sheet1!$A:$A,[1]Sheet1!$I:$I,"not found",0) -> 2026-03-31 | I143: No longer provide economic value to the organisation | J143: Scrap | K143: Asset no longer meets a business requirement
A144: 11000015740 | B144: Acer Monitor | C144: =_xlfn.XLOOKUP(A144,[1]Sheet1!$A:$A,[1]Sheet1!$C:$C,"Not found",0) -> 10135 | D144: =_xlfn.XLOOKUP(A144,[1]Sheet1!$A:$A,[1]Sheet1!$F:$F,"Not found",0) -> REC-0071 | E144: =_xlfn.XLOOKUP(A144,[1]Sheet1!$A:$A,[1]Sheet1!$H:$H,"not found",0) -> 2014-10-24 | F144: =_xlfn.XLOOKUP(A144,[1]Sheet1!$A:$A,[1]Sheet1!$D:$D,"not found",0) -> R1,175.97 | G144: =_xlfn.XLOOKUP(A144,[1]Sheet1!$A:$A,[1]Sheet1!$E:$E,"not found",0) -> R1.00 | H144: =_xlfn.XLOOKUP(A144,[1]Sheet1!$A:$A,[1]Sheet1!$I:$I,"not found",0) -> 2026-03-31 | I144: No longer provide economic value to the organisation | J144: Scrap | K144: Asset no longer meets a business requirement
A145: 11000015741 | B145: Acer Monitor | C145: =_xlfn.XLOOKUP(A145,[1]Sheet1!$A:$A,[1]Sheet1!$C:$C,"Not found",0) -> 10135 | D145: =_xlfn.XLOOKUP(A145,[1]Sheet1!$A:$A,[1]Sheet1!$F:$F,"Not found",0) -> REC-0071 | E145: =_xlfn.XLOOKUP(A145,[1]Sheet1!$A:$A,[1]Sheet1!$H:$H,"not found",0) -> 2014-10-24 | F145: =_xlfn.XLOOKUP(A145,[1]Sheet1!$A:$A,[1]Sheet1!$D:$D,"not found",0) -> R1,175.97 | G145: =_xlfn.XLOOKUP(A145,[1]Sheet1!$A:$A,[1]Sheet1!$E:$E,"not found",0) -> R1.00 | H145: =_xlfn.XLOOKUP(A145,[1]Sheet1!$A:$A,[1]Sheet1!$I:$I,"not found",0) -> 2026-03-31 | I145: No longer provide economic value to the organisation | J145: Scrap | K145: Asset no longer meets a business requirement
A146: 11000015742 | B146: Acer Monitor | C146: =_xlfn.XLOOKUP(A146,[1]Sheet1!$A:$A,[1]Sheet1!$C:$C,"Not found",0) -> 10135 | D146: =_xlfn.XLOOKUP(A146,[1]Sheet1!$A:$A,[1]Sheet1!$F:$F,"Not found",0) -> HGP-0001 | E146: =_xlfn.XLOOKUP(A146,[1]Sheet1!$A:$A,[1]Sheet1!$H:$H,"not found",0) -> 2014-10-24 | F146: =_xlfn.XLOOKUP(A146,[1]Sheet1!$A:$A,[1]Sheet1!$D:$D,"not found",0) -> R1,286.23 | G146: =_xlfn.XLOOKUP(A146,[1]Sheet1!$A:$A,[1]Sheet1!$E:$E,"not found",0) -> R1.00 | H146: =_xlfn.XLOOKUP(A146,[1]Sheet1!$A:$A,[1]Sheet1!$I:$I,"not found",0) -> 2026-03-31 | I146: No longer provide economic value to the organisation | J146: Scrap | K146: Asset no longer meets a business requirement
A147: 11000015743 | B147: Acer Monitor | C147: =_xlfn.XLOOKUP(A147,[1]Sheet1!$A:$A,[1]Sheet1!$C:$C,"Not found",0) -> 10135 | D147: =_xlfn.XLOOKUP(A147,[1]Sheet1!$A:$A,[1]Sheet1!$F:$F,"Not found",0) -> REC-0071 | E147: =_xlfn.XLOOKUP(A147,[1]Sheet1!$A:$A,[1]Sheet1!$H:$H,"not found",0) -> 2014-10-24 | F147: =_xlfn.XLOOKUP(A147,[1]Sheet1!$A:$A,[1]Sheet1!$D:$D,"not found",0) -> R1,543.71 | G147: =_xlfn.XLOOKUP(A147,[1]Sheet1!$A:$A,[1]Sheet1!$E:$E,"not found",0) -> R1.00 | H147: =_xlfn.XLOOKUP(A147,[1]Sheet1!$A:$A,[1]Sheet1!$I:$I,"not found",0) -> 2026-03-31 | I147: No longer provide economic value to the organisation | J147: Scrap | K147: Asset no longer meets a business requirement
A148: 11000015809 | B148: Acer Monitor | C148: =_xlfn.XLOOKUP(A148,[1]Sheet1!$A:$A,[1]Sheet1!$C:$C,"Not found",0) -> 10135 | D148: =_xlfn.XLOOKUP(A148,[1]Sheet1!$A:$A,[1]Sheet1!$F:$F,"Not found",0) -> REC-0071 | E148: =_xlfn.XLOOKUP(A148,[1]Sheet1!$A:$A,[1]Sheet1!$H:$H,"not found",0) -> 2014-11-04 | F148: =_xlfn.XLOOKUP(A148,[1]Sheet1!$A:$A,[1]Sheet1!$D:$D,"not found",0) -> R1,740.02 | G148: =_xlfn.XLOOKUP(A148,[1]Sheet1!$A:$A,[1]Sheet1!$E:$E,"not found",0) -> R1.00 | H148: =_xlfn.XLOOKUP(A148,[1]Sheet1!$A:$A,[1]Sheet1!$I:$I,"not found",0) -> 2026-03-31 | I148: No longer provide economic value to the organisation | J148: Scrap | K148: Asset no longer meets a business requirement
A149: 11000015810 | B149: Acer Monitor | C149: =_xlfn.XLOOKUP(A149,[1]Sheet1!$A:$A,[1]Sheet1!$C:$C,"Not found",0) -> 10135 | D149: =_xlfn.XLOOKUP(A149,[1]Sheet1!$A:$A,[1]Sheet1!$F:$F,"Not found",0) -> REC-0071 | E149: =_xlfn.XLOOKUP(A149,[1]Sheet1!$A:$A,[1]Sheet1!$H:$H,"not found",0) -> 2014-11-04 | F149: =_xlfn.XLOOKUP(A149,[1]Sheet1!$A:$A,[1]Sheet1!$D:$D,"not found",0) -> R1,740.02 | G149: =_xlfn.XLOOKUP(A149,[1]Sheet1!$A:$A,[1]Sheet1!$E:$E,"not found",0) -> R1.00 | H149: =_xlfn.XLOOKUP(A149,[1]Sheet1!$A:$A,[1]Sheet1!$I:$I,"not found",0) -> 2026-03-31 | I149: No longer provide economic value to the organisation | J149: Scrap | K149: Asset no longer meets a business requirement
A150: 11000015811 | B150: Acer Monitor | C150: =_xlfn.XLOOKUP(A150,[1]Sheet1!$A:$A,[1]Sheet1!$C:$C,"Not found",0) -> 10135 | D150: =_xlfn.XLOOKUP(A150,[1]Sheet1!$A:$A,[1]Sheet1!$F:$F,"Not found",0) -> REC-0071 | E150: =_xlfn.XLOOKUP(A150,[1]Sheet1!$A:$A,[1]Sheet1!$H:$H,"not found",0) -> 2014-11-04 | F150: =_xlfn.XLOOKUP(A150,[1]Sheet1!$A:$A,[1]Sheet1!$D:$D,"not found",0) -> R1,740.02 | G150: =_xlfn.XLOOKUP(A150,[1]Sheet1!$A:$A,[1]Sheet1!$E:$E,"not found",0) -> R1.00 | H150: =_xlfn.XLOOKUP(A150,[1]Sheet1!$A:$A,[1]Sheet1!$I:$I,"not found",0) -> 2026-03-31 | I150: No longer provide economic value to the organisation | J150: Scrap | K150: Asset no longer meets a business requirement
A151: 11000015812 | B151: Acer Monitor | C151: =_xlfn.XLOOKUP(A151,[1]Sheet1!$A:$A,[1]Sheet1!$C:$C,"Not found",0) -> 10135 | D151: =_xlfn.XLOOKUP(A151,[1]Sheet1!$A:$A,[1]Sheet1!$F:$F,"Not found",0) -> REC-0071 | E151: =_xlfn.XLOOKUP(A151,[1]Sheet1!$A:$A,[1]Sheet1!$H:$H,"not found",0) -> 2014-11-04 | F151: =_xlfn.XLOOKUP(A151,[1]Sheet1!$A:$A,[1]Sheet1!$D:$D,"not found",0) -> R1,740.02 | G151: =_xlfn.XLOOKUP(A151,[1]Sheet1!$A:$A,[1]Sheet1!$E:$E,"not found",0) -> R1.00 | H151: =_xlfn.XLOOKUP(A151,[1]Sheet1!$A:$A,[1]Sheet1!$I:$I,"not found",0) -> 2026-03-31 | I151: No longer provide economic value to the organisation | J151: Scrap | K151: Asset no longer meets a business requirement
A152: 11000015813 | B152: Acer Monitor | C152: =_xlfn.XLOOKUP(A152,[1]Sheet1!$A:$A,[1]Sheet1!$C:$C,"Not found",0) -> 10135 | D152: =_xlfn.XLOOKUP(A152,[1]Sheet1!$A:$A,[1]Sheet1!$F:$F,"Not found",0) -> REC-0071 | E152: =_xlfn.XLOOKUP(A152,[1]Sheet1!$A:$A,[1]Sheet1!$H:$H,"not found",0) -> 2014-11-04 | F152: =_xlfn.XLOOKUP(A152,[1]Sheet1!$A:$A,[1]Sheet1!$D:$D,"not found",0) -> R1,755.91 | G152: =_xlfn.XLOOKUP(A152,[1]Sheet1!$A:$A,[1]Sheet1!$E:$E,"not found",0) -> R1.00 | H152: =_xlfn.XLOOKUP(A152,[1]Sheet1!$A:$A,[1]Sheet1!$I:$I,"not found",0) -> 2026-03-31 | I152: No longer provide economic value to the organisation | J152: Scrap | K152: Asset no longer meets a business requirement
A153: 11000015814 | B153: Acer Monitor | C153: =_xlfn.XLOOKUP(A153,[1]Sheet1!$A:$A,[1]Sheet1!$C:$C,"Not found",0) -> 10135 | D153: =_xlfn.XLOOKUP(A153,[1]Sheet1!$A:$A,[1]Sheet1!$F:$F,"Not found",0) -> REC-0071 | E153: =_xlfn.XLOOKUP(A153,[1]Sheet1!$A:$A,[1]Sheet1!$H:$H,"not found",0) -> 2014-11-04 | F153: =_xlfn.XLOOKUP(A153,[1]Sheet1!$A:$A,[1]Sheet1!$D:$D,"not found",0) -> R1,755.87 | G153: =_xlfn.XLOOKUP(A153,[1]Sheet1!$A:$A,[1]Sheet1!$E:$E,"not found",0) -> R1.00 | H153: =_xlfn.XLOOKUP(A153,[1]Sheet1!$A:$A,[1]Sheet1!$I:$I,"not found",0) -> 2026-03-31 | I153: No longer provide economic value to the organisation | J153: Scrap | K153: Asset no longer meets a business requirement
A154: 11000016558 | B154: Acer Monitor | C154: =_xlfn.XLOOKUP(A154,[1]Sheet1!$A:$A,[1]Sheet1!$C:$C,"Not found",0) -> 10135 | D154: =_xlfn.XLOOKUP(A154,[1]Sheet1!$A:$A,[1]Sheet1!$F:$F,"Not found",0) -> REC-0071 | E154: =_xlfn.XLOOKUP(A154,[1]Sheet1!$A:$A,[1]Sheet1!$H:$H,"not found",0) -> 2015-06-17 | F154: =_xlfn.XLOOKUP(A154,[1]Sheet1!$A:$A,[1]Sheet1!$D:$D,"not found",0) -> R2,298.88 | G154: =_xlfn.XLOOKUP(A154,[1]Sheet1!$A:$A,[1]Sheet1!$E:$E,"not found",0) -> R1.00 | H154: =_xlfn.XLOOKUP(A154,[1]Sheet1!$A:$A,[1]Sheet1!$I:$I,"not found",0) -> 2026-03-31 | I154: No longer provide economic value to the organisation | J154: Scrap | K154: Asset no longer meets a business requirement
A155: 11000016559 | B155: Acer Monitor | C155: =_xlfn.XLOOKUP(A155,[1]Sheet1!$A:$A,[1]Sheet1!$C:$C,"Not found",0) -> 10135 | D155: =_xlfn.XLOOKUP(A155,[1]Sheet1!$A:$A,[1]Sheet1!$F:$F,"Not found",0) -> REC-0071 | E155: =_xlfn.XLOOKUP(A155,[1]Sheet1!$A:$A,[1]Sheet1!$H:$H,"not found",0) -> 2015-06-17 | F155: =_xlfn.XLOOKUP(A155,[1]Sheet1!$A:$A,[1]Sheet1!$D:$D,"not found",0) -> R2,298.88 | G155: =_xlfn.XLOOKUP(A155,[1]Sheet1!$A:$A,[1]Sheet1!$E:$E,"not found",0) -> R1.00 | H155: =_xlfn.XLOOKUP(A155,[1]Sheet1!$A:$A,[1]Sheet1!$I:$I,"not found",0) -> 2026-03-31 | I155: No longer provide economic value to the organisation | J155: Scrap | K155: Asset no longer meets a business requirement
A156: 11000016560 | B156: Acer Monitor | C156: =_xlfn.XLOOKUP(A156,[1]Sheet1!$A:$A,[1]Sheet1!$C:$C,"Not found",0) -> 10135 | D156: =_xlfn.XLOOKUP(A156,[1]Sheet1!$A:$A,[1]Sheet1!$F:$F,"Not found",0) -> REC-0071 | E156: =_xlfn.XLOOKUP(A156,[1]Sheet1!$A:$A,[1]Sheet1!$H:$H,"not found",0) -> 2015-06-17 | F156: =_xlfn.XLOOKUP(A156,[1]Sheet1!$A:$A,[1]Sheet1!$D:$D,"not found",0) -> R2,298.88 | G156: =_xlfn.XLOOKUP(A156,[1]Sheet1!$A:$A,[1]Sheet1!$E:$E,"not found",0) -> R1.00 | H156: =_xlfn.XLOOKUP(A156,[1]Sheet1!$A:$A,[1]Sheet1!$I:$I,"not found",0) -> 2026-03-31 | I156: No longer provide economic value to the organisation | J156: Scrap | K156: Asset no longer meets a business requirement
A157: 11000016561 | B157: Acer Monitor | C157: =_xlfn.XLOOKUP(A157,[1]Sheet1!$A:$A,[1]Sheet1!$C:$C,"Not found",0) -> 10135 | D157: =_xlfn.XLOOKUP(A157,[1]Sheet1!$A:$A,[1]Sheet1!$F:$F,"Not found",0) -> REC-0071 | E157: =_xlfn.XLOOKUP(A157,[1]Sheet1!$A:$A,[1]Sheet1!$H:$H,"not found",0) -> 2015-06-17 | F157: =_xlfn.XLOOKUP(A157,[1]Sheet1!$A:$A,[1]Sheet1!$D:$D,"not found",0) -> R2,298.88 | G157: =_xlfn.XLOOKUP(A157,[1]Sheet1!$A:$A,[1]Sheet1!$E:$E,"not found",0) -> R1.00 | H157: =_xlfn.XLOOKUP(A157,[1]Sheet1!$A:$A,[1]Sheet1!$I:$I,"not found",0) -> 2026-03-31 | I157: No longer provide economic value to the organisation | J157: Scrap | K157: Asset no longer meets a business requirement
A158: 11000016562 | B158: Acer Monitor | C158: =_xlfn.XLOOKUP(A158,[1]Sheet1!$A:$A,[1]Sheet1!$C:$C,"Not found",0) -> 10135 | D158: =_xlfn.XLOOKUP(A158,[1]Sheet1!$A:$A,[1]Sheet1!$F:$F,"Not found",0) -> REC-0071 | E158: =_xlfn.XLOOKUP(A158,[1]Sheet1!$A:$A,[1]Sheet1!$H:$H,"not found",0) -> 2015-06-17 | F158: =_xlfn.XLOOKUP(A158,[1]Sheet1!$A:$A,[1]Sheet1!$D:$D,"not found",0) -> R2,298.88 | G158: =_xlfn.XLOOKUP(A158,[1]Sheet1!$A:$A,[1]Sheet1!$E:$E,"not found",0) -> R1.00 | H158: =_xlfn.XLOOKUP(A158,[1]Sheet1!$A:$A,[1]Sheet1!$I:$I,"not found",0) -> 2026-03-31 | I158: No longer provide economic value to the organisation | J158: Scrap | K158: Asset no longer meets a business requirement
A159: 11000016564 | B159: Acer Monitor | C159: =_xlfn.XLOOKUP(A159,[1]Sheet1!$A:$A,[1]Sheet1!$C:$C,"Not found",0) -> 10135 | D159: =_xlfn.XLOOKUP(A159,[1]Sheet1!$A:$A,[1]Sheet1!$F:$F,"Not found",0) -> REC-0071 | E159: =_xlfn.XLOOKUP(A159,[1]Sheet1!$A:$A,[1]Sheet1!$H:$H,"not found",0) -> 2015-06-17 | F159: =_xlfn.XLOOKUP(A159,[1]Sheet1!$A:$A,[1]Sheet1!$D:$D,"not found",0) -> R2,298.88 | G159: =_xlfn.XLOOKUP(A159,[1]Sheet1!$A:$A,[1]Sheet1!$E:$E,"not found",0) -> R1.00 | H159: =_xlfn.XLOOKUP(A159,[1]Sheet1!$A:$A,[1]Sheet1!$I:$I,"not found",0) -> 2026-03-31 | I159: No longer provide economic value to the organisation | J159: Scrap | K159: Asset no longer meets a business requirement
A160: 11000016565 | B160: Acer Monitor | C160: =_xlfn.XLOOKUP(A160,[1]Sheet1!$A:$A,[1]Sheet1!$C:$C,"Not found",0) -> 10135 | D160: =_xlfn.XLOOKUP(A160,[1]Sheet1!$A:$A,[1]Sheet1!$F:$F,"Not found",0) -> REC-0071 | E160: =_xlfn.XLOOKUP(A160,[1]Sheet1!$A:$A,[1]Sheet1!$H:$H,"not found",0) -> 2015-06-17 | F160: =_xlfn.XLOOKUP(A160,[1]Sheet1!$A:$A,[1]Sheet1!$D:$D,"not found",0) -> R2,298.88 | G160: =_xlfn.XLOOKUP(A160,[1]Sheet1!$A:$A,[1]Sheet1!$E:$E,"not found",0) -> R1.00 | H160: =_xlfn.XLOOKUP(A160,[1]Sheet1!$A:$A,[1]Sheet1!$I:$I,"not found",0) -> 2026-03-31 | I160: No longer provide economic value to the organisation | J160: Scrap | K160: Asset no longer meets a business requirement
A161: 11000016566 | B161: Acer Monitor | C161: =_xlfn.XLOOKUP(A161,[1]Sheet1!$A:$A,[1]Sheet1!$C:$C,"Not found",0) -> 10135 | D161: =_xlfn.XLOOKUP(A161,[1]Sheet1!$A:$A,[1]Sheet1!$F:$F,"Not found",0) -> REC-0071 | E161: =_xlfn.XLOOKUP(A161,[1]Sheet1!$A:$A,[1]Sheet1!$H:$H,"not found",0) -> 2015-06-17 | F161: =_xlfn.XLOOKUP(A161,[1]Sheet1!$A:$A,[1]Sheet1!$D:$D,"not found",0) -> R2,298.88 | G161: =_xlfn.XLOOKUP(A161,[1]Sheet1!$A:$A,[1]Sheet1!$E:$E,"not found",0) -> R1.00 | H161: =_xlfn.XLOOKUP(A161,[1]Sheet1!$A:$A,[1]Sheet1!$I:$I,"not found",0) -> 2026-03-31 | I161: No longer provide economic value to the organisation | J161: Scrap | K161: Asset no longer meets a business requirement
A162: 11000016567 | B162: Acer Monitor | C162: =_xlfn.XLOOKUP(A162,[1]Sheet1!$A:$A,[1]Sheet1!$C:$C,"Not found",0) -> 10135 | D162: =_xlfn.XLOOKUP(A162,[1]Sheet1!$A:$A,[1]Sheet1!$F:$F,"Not found",0) -> REC-0071 | E162: =_xlfn.XLOOKUP(A162,[1]Sheet1!$A:$A,[1]Sheet1!$H:$H,"not found",0) -> 2015-06-17 | F162: =_xlfn.XLOOKUP(A162,[1]Sheet1!$A:$A,[1]Sheet1!$D:$D,"not found",0) -> R2,298.88 | G162: =_xlfn.XLOOKUP(A162,[1]Sheet1!$A:$A,[1]Sheet1!$E:$E,"not found",0) -> R1.00 | H162: =_xlfn.XLOOKUP(A162,[1]Sheet1!$A:$A,[1]Sheet1!$I:$I,"not found",0) -> 2026-03-31 | I162: No longer provide economic value to the organisation | J162: Scrap | K162: Asset no longer meets a business requirement
A163: 11000016568 | B163: Acer Monitor | C163: =_xlfn.XLOOKUP(A163,[1]Sheet1!$A:$A,[1]Sheet1!$C:$C,"Not found",0) -> 10135 | D163: =_xlfn.XLOOKUP(A163,[1]Sheet1!$A:$A,[1]Sheet1!$F:$F,"Not found",0) -> REC-0071 | E163: =_xlfn.XLOOKUP(A163,[1]Sheet1!$A:$A,[1]Sheet1!$H:$H,"not found",0) -> 2015-06-17 | F163: =_xlfn.XLOOKUP(A163,[1]Sheet1!$A:$A,[1]Sheet1!$D:$D,"not found",0) -> R2,298.88 | G163: =_xlfn.XLOOKUP(A163,[1]Sheet1!$A:$A,[1]Sheet1!$E:$E,"not found",0) -> R1.00 | H163: =_xlfn.XLOOKUP(A163,[1]Sheet1!$A:$A,[1]Sheet1!$I:$I,"not found",0) -> 2026-03-31 | I163: No longer provide economic value to the organisation | J163: Scrap | K163: Asset no longer meets a business requirement
A164: 11000016569 | B164: Acer Monitor | C164: =_xlfn.XLOOKUP(A164,[1]Sheet1!$A:$A,[1]Sheet1!$C:$C,"Not found",0) -> 10135 | D164: =_xlfn.XLOOKUP(A164,[1]Sheet1!$A:$A,[1]Sheet1!$F:$F,"Not found",0) -> REC-0071 | E164: =_xlfn.XLOOKUP(A164,[1]Sheet1!$A:$A,[1]Sheet1!$H:$H,"not found",0) -> 2015-06-17 | F164: =_xlfn.XLOOKUP(A164,[1]Sheet1!$A:$A,[1]Sheet1!$D:$D,"not found",0) -> R2,298.88 | G164: =_xlfn.XLOOKUP(A164,[1]Sheet1!$A:$A,[1]Sheet1!$E:$E,"not found",0) -> R1.00 | H164: =_xlfn.XLOOKUP(A164,[1]Sheet1!$A:$A,[1]Sheet1!$I:$I,"not found",0) -> 2026-03-31 | I164: No longer provide economic value to the organisation | J164: Scrap | K164: Asset no longer meets a business requirement
A165: 11000016570 | B165: Acer Monitor | C165: =_xlfn.XLOOKUP(A165,[1]Sheet1!$A:$A,[1]Sheet1!$C:$C,"Not found",0) -> F10071 | D165: =_xlfn.XLOOKUP(A165,[1]Sheet1!$A:$A,[1]Sheet1!$F:$F,"Not found",0) -> REC-0071 | E165: =_xlfn.XLOOKUP(A165,[1]Sheet1!$A:$A,[1]Sheet1!$H:$H,"not found",0) -> 2015-06-17 | F165: =_xlfn.XLOOKUP(A165,[1]Sheet1!$A:$A,[1]Sheet1!$D:$D,"not found",0) -> R2,298.88 | G165: =_xlfn.XLOOKUP(A165,[1]Sheet1!$A:$A,[1]Sheet1!$E:$E,"not found",0) -> R1.00 | H165: =_xlfn.XLOOKUP(A165,[1]Sheet1!$A:$A,[1]Sheet1!$I:$I,"not found",0) -> 2026-03-31 | I165: No longer provide economic value to the organisation | J165: Scrap | K165: Asset no longer meets a business requirement
A166: 11000016571 | B166: Acer Monitor | C166: =_xlfn.XLOOKUP(A166,[1]Sheet1!$A:$A,[1]Sheet1!$C:$C,"Not found",0) -> 10135 | D166: =_xlfn.XLOOKUP(A166,[1]Sheet1!$A:$A,[1]Sheet1!$F:$F,"Not found",0) -> REC-0071 | E166: =_xlfn.XLOOKUP(A166,[1]Sheet1!$A:$A,[1]Sheet1!$H:$H,"not found",0) -> 2015-06-17 | F166: =_xlfn.XLOOKUP(A166,[1]Sheet1!$A:$A,[1]Sheet1!$D:$D,"not found",0) -> R2,298.88 | G166: =_xlfn.XLOOKUP(A166,[1]Sheet1!$A:$A,[1]Sheet1!$E:$E,"not found",0) -> R1.00 | H166: =_xlfn.XLOOKUP(A166,[1]Sheet1!$A:$A,[1]Sheet1!$I:$I,"not found",0) -> 2026-03-31 | I166: No longer provide economic value to the organisation | J166: Scrap | K166: Asset no longer meets a business requirement
A167: 11000016572 | B167: Acer Monitor | C167: =_xlfn.XLOOKUP(A167,[1]Sheet1!$A:$A,[1]Sheet1!$C:$C,"Not found",0) -> F10071 | D167: =_xlfn.XLOOKUP(A167,[1]Sheet1!$A:$A,[1]Sheet1!$F:$F,"Not found",0) -> REC-0071 | E167: =_xlfn.XLOOKUP(A167,[1]Sheet1!$A:$A,[1]Sheet1!$H:$H,"not found",0) -> 2015-06-17 | F167: =_xlfn.XLOOKUP(A167,[1]Sheet1!$A:$A,[1]Sheet1!$D:$D,"not found",0) -> R2,298.88 | G167: =_xlfn.XLOOKUP(A167,[1]Sheet1!$A:$A,[1]Sheet1!$E:$E,"not found",0) -> R1.00 | H167: =_xlfn.XLOOKUP(A167,[1]Sheet1!$A:$A,[1]Sheet1!$I:$I,"not found",0) -> 2026-03-31 | I167: No longer provide economic value to the organisation | J167: Scrap | K167: Asset no longer meets a business requirement
A168: 11000016573 | B168: Acer Monitor | C168: =_xlfn.XLOOKUP(A168,[1]Sheet1!$A:$A,[1]Sheet1!$C:$C,"Not found",0) -> 10135 | D168: =_xlfn.XLOOKUP(A168,[1]Sheet1!$A:$A,[1]Sheet1!$F:$F,"Not found",0) -> REC-0071 | E168: =_xlfn.XLOOKUP(A168,[1]Sheet1!$A:$A,[1]Sheet1!$H:$H,"not found",0) -> 2015-06-17 | F168: =_xlfn.XLOOKUP(A168,[1]Sheet1!$A:$A,[1]Sheet1!$D:$D,"not found",0) -> R2,298.88 | G168: =_xlfn.XLOOKUP(A168,[1]Sheet1!$A:$A,[1]Sheet1!$E:$E,"not found",0) -> R1.00 | H168: =_xlfn.XLOOKUP(A168,[1]Sheet1!$A:$A,[1]Sheet1!$I:$I,"not found",0) -> 2026-03-31 | I168: No longer provide economic value to the organisation | J168: Scrap | K168: Asset no longer meets a business requirement
A169: 11000016574 | B169: Acer Monitor | C169: =_xlfn.XLOOKUP(A169,[1]Sheet1!$A:$A,[1]Sheet1!$C:$C,"Not found",0) -> 10135 | D169: =_xlfn.XLOOKUP(A169,[1]Sheet1!$A:$A,[1]Sheet1!$F:$F,"Not found",0) -> REC-0071 | E169: =_xlfn.XLOOKUP(A169,[1]Sheet1!$A:$A,[1]Sheet1!$H:$H,"not found",0) -> 2015-06-17 | F169: =_xlfn.XLOOKUP(A169,[1]Sheet1!$A:$A,[1]Sheet1!$D:$D,"not found",0) -> R2,298.88 | G169: =_xlfn.XLOOKUP(A169,[1]Sheet1!$A:$A,[1]Sheet1!$E:$E,"not found",0) -> R1.00 | H169: =_xlfn.XLOOKUP(A169,[1]Sheet1!$A:$A,[1]Sheet1!$I:$I,"not found",0) -> 2026-03-31 | I169: No longer provide economic value to the organisation | J169: Scrap | K169: Asset no longer meets a business requirement
A170: 11000016575 | B170: Acer Monitor | C170: =_xlfn.XLOOKUP(A170,[1]Sheet1!$A:$A,[1]Sheet1!$C:$C,"Not found",0) -> 10135 | D170: =_xlfn.XLOOKUP(A170,[1]Sheet1!$A:$A,[1]Sheet1!$F:$F,"Not found",0) -> REC-0071 | E170: =_xlfn.XLOOKUP(A170,[1]Sheet1!$A:$A,[1]Sheet1!$H:$H,"not found",0) -> 2015-06-17 | F170: =_xlfn.XLOOKUP(A170,[1]Sheet1!$A:$A,[1]Sheet1!$D:$D,"not found",0) -> R2,298.88 | G170: =_xlfn.XLOOKUP(A170,[1]Sheet1!$A:$A,[1]Sheet1!$E:$E,"not found",0) -> R1.00 | H170: =_xlfn.XLOOKUP(A170,[1]Sheet1!$A:$A,[1]Sheet1!$I:$I,"not found",0) -> 2026-03-31 | I170: No longer provide economic value to the organisation | J170: Scrap | K170: Asset no longer meets a business requirement
A171: 11000016576 | B171: Acer Monitor | C171: =_xlfn.XLOOKUP(A171,[1]Sheet1!$A:$A,[1]Sheet1!$C:$C,"Not found",0) -> 10135 | D171: =_xlfn.XLOOKUP(A171,[1]Sheet1!$A:$A,[1]Sheet1!$F:$F,"Not found",0) -> REC-0071 | E171: =_xlfn.XLOOKUP(A171,[1]Sheet1!$A:$A,[1]Sheet1!$H:$H,"not found",0) -> 2015-06-17 | F171: =_xlfn.XLOOKUP(A171,[1]Sheet1!$A:$A,[1]Sheet1!$D:$D,"not found",0) -> R2,298.88 | G171: =_xlfn.XLOOKUP(A171,[1]Sheet1!$A:$A,[1]Sheet1!$E:$E,"not found",0) -> R1.00 | H171: =_xlfn.XLOOKUP(A171,[1]Sheet1!$A:$A,[1]Sheet1!$I:$I,"not found",0) -> 2026-03-31 | I171: No longer provide economic value to the organisation | J171: Scrap | K171: Asset no longer meets a business requirement
A172: 11000016577 | B172: Acer Monitor | C172: =_xlfn.XLOOKUP(A172,[1]Sheet1!$A:$A,[1]Sheet1!$C:$C,"Not found",0) -> 10135 | D172: =_xlfn.XLOOKUP(A172,[1]Sheet1!$A:$A,[1]Sheet1!$F:$F,"Not found",0) -> REC-0071 | E172: =_xlfn.XLOOKUP(A172,[1]Sheet1!$A:$A,[1]Sheet1!$H:$H,"not found",0) -> 2015-06-17 | F172: =_xlfn.XLOOKUP(A172,[1]Sheet1!$A:$A,[1]Sheet1!$D:$D,"not found",0) -> R2,298.88 | G172: =_xlfn.XLOOKUP(A172,[1]Sheet1!$A:$A,[1]Sheet1!$E:$E,"not found",0) -> R1.00 | H172: =_xlfn.XLOOKUP(A172,[1]Sheet1!$A:$A,[1]Sheet1!$I:$I,"not found",0) -> 2026-03-31 | I172: No longer provide economic value to the organisation | J172: Scrap | K172: Asset no longer meets a business requirement
A173: 11000014348 | B173: HP Laptop | C173: =_xlfn.XLOOKUP(A173,[1]Sheet1!$A:$A,[1]Sheet1!$C:$C,"Not found",0) -> 10135 | D173: =_xlfn.XLOOKUP(A173,[1]Sheet1!$A:$A,[1]Sheet1!$F:$F,"Not found",0) -> REC-0071 | E173: =_xlfn.XLOOKUP(A173,[1]Sheet1!$A:$A,[1]Sheet1!$H:$H,"not found",0) -> 2013-11-07 | F173: =_xlfn.XLOOKUP(A173,[1]Sheet1!$A:$A,[1]Sheet1!$D:$D,"not found",0) -> R22,657.11 | G173: =_xlfn.XLOOKUP(A173,[1]Sheet1!$A:$A,[1]Sheet1!$E:$E,"not found",0) -> R1.00 | H173: =_xlfn.XLOOKUP(A173,[1]Sheet1!$A:$A,[1]Sheet1!$I:$I,"not found",0) -> 2026-03-31 | I173: No longer provide economic value to the organisation | J173: Scrap | K173: Asset no longer meets a business requirement
A174: 11000014838 | B174: HP Laptop | C174: =_xlfn.XLOOKUP(A174,[1]Sheet1!$A:$A,[1]Sheet1!$C:$C,"Not found",0) -> 10135 | D174: =_xlfn.XLOOKUP(A174,[1]Sheet1!$A:$A,[1]Sheet1!$F:$F,"Not found",0) -> REC-0071 | E174: =_xlfn.XLOOKUP(A174,[1]Sheet1!$A:$A,[1]Sheet1!$H:$H,"not found",0) -> 2014-03-04 | F174: =_xlfn.XLOOKUP(A174,[1]Sheet1!$A:$A,[1]Sheet1!$D:$D,"not found",0) -> R20,628.07 | G174: =_xlfn.XLOOKUP(A174,[1]Sheet1!$A:$A,[1]Sheet1!$E:$E,"not found",0) -> R1.00 | H174: =_xlfn.XLOOKUP(A174,[1]Sheet1!$A:$A,[1]Sheet1!$I:$I,"not found",0) -> 2026-03-31 | I174: No longer provide economic value to the organisation | J174: Scrap | K174: Asset no longer meets a business requirement
A175: 11000015013 | B175: HP Laptop | C175: =_xlfn.XLOOKUP(A175,[1]Sheet1!$A:$A,[1]Sheet1!$C:$C,"Not found",0) -> 10135 | D175: =_xlfn.XLOOKUP(A175,[1]Sheet1!$A:$A,[1]Sheet1!$F:$F,"Not found",0) -> REC-0071 | E175: =_xlfn.XLOOKUP(A175,[1]Sheet1!$A:$A,[1]Sheet1!$H:$H,"not found",0) -> 2014-03-31 | F175: =_xlfn.XLOOKUP(A175,[1]Sheet1!$A:$A,[1]Sheet1!$D:$D,"not found",0) -> R17,318.11 | G175: =_xlfn.XLOOKUP(A175,[1]Sheet1!$A:$A,[1]Sheet1!$E:$E,"not found",0) -> R1.00 | H175: =_xlfn.XLOOKUP(A175,[1]Sheet1!$A:$A,[1]Sheet1!$I:$I,"not found",0) -> 2026-03-31 | I175: No longer provide economic value to the organisation | J175: Scrap | K175: Asset no longer meets a business requirement
A176: 11000015680 | B176: HP Laptop | C176: =_xlfn.XLOOKUP(A176,[1]Sheet1!$A:$A,[1]Sheet1!$C:$C,"Not found",0) -> 10135 | D176: =_xlfn.XLOOKUP(A176,[1]Sheet1!$A:$A,[1]Sheet1!$F:$F,"Not found",0) -> REC-0071 | E176: =_xlfn.XLOOKUP(A176,[1]Sheet1!$A:$A,[1]Sheet1!$H:$H,"not found",0) -> 2014-10-24 | F176: =_xlfn.XLOOKUP(A176,[1]Sheet1!$A:$A,[1]Sheet1!$D:$D,"not found",0) -> R12,127.34 | G176: =_xlfn.XLOOKUP(A176,[1]Sheet1!$A:$A,[1]Sheet1!$E:$E,"not found",0) -> R1.00 | H176: =_xlfn.XLOOKUP(A176,[1]Sheet1!$A:$A,[1]Sheet1!$I:$I,"not found",0) -> 2026-03-31 | I176: No longer provide economic value to the organisation | J176: Scrap | K176: Asset no longer meets a business requirement
A177: 11000015683 | B177: HP Laptop | C177: =_xlfn.XLOOKUP(A177,[1]Sheet1!$A:$A,[1]Sheet1!$C:$C,"Not found",0) -> 10135 | D177: =_xlfn.XLOOKUP(A177,[1]Sheet1!$A:$A,[1]Sheet1!$F:$F,"Not found",0) -> REC-0071 | E177: =_xlfn.XLOOKUP(A177,[1]Sheet1!$A:$A,[1]Sheet1!$H:$H,"not found",0) -> 2014-10-24 | F177: =_xlfn.XLOOKUP(A177,[1]Sheet1!$A:$A,[1]Sheet1!$D:$D,"not found",0) -> R12,127.34 | G177: =_xlfn.XLOOKUP(A177,[1]Sheet1!$A:$A,[1]Sheet1!$E:$E,"not found",0) -> R1.00 | H177: =_xlfn.XLOOKUP(A177,[1]Sheet1!$A:$A,[1]Sheet1!$I:$I,"not found",0) -> 2026-03-31 | I177: No longer provide economic value to the organisation | J177: Scrap | K177: Asset no longer meets a business requirement
A178: 11000016310 | B178: HP Laptop | C178: =_xlfn.XLOOKUP(A178,[1]Sheet1!$A:$A,[1]Sheet1!$C:$C,"Not found",0) -> 10135 | D178: =_xlfn.XLOOKUP(A178,[1]Sheet1!$A:$A,[1]Sheet1!$F:$F,"Not found",0) -> REC-0071 | E178: =_xlfn.XLOOKUP(A178,[1]Sheet1!$A:$A,[1]Sheet1!$H:$H,"not found",0) -> 2015-04-24 | F178: =_xlfn.XLOOKUP(A178,[1]Sheet1!$A:$A,[1]Sheet1!$D:$D,"not found",0) -> R12,537.21 | G178: =_xlfn.XLOOKUP(A178,[1]Sheet1!$A:$A,[1]Sheet1!$E:$E,"not found",0) -> R1.00 | H178: =_xlfn.XLOOKUP(A178,[1]Sheet1!$A:$A,[1]Sheet1!$I:$I,"not found",0) -> 2026-03-31 | I178: No longer provide economic value to the organisation | J178: Scrap | K178: Asset no longer meets a business requirement
A179: 11000016427 | B179: HP Laptop | C179: =_xlfn.XLOOKUP(A179,[1]Sheet1!$A:$A,[1]Sheet1!$C:$C,"Not found",0) -> 10135 | D179: =_xlfn.XLOOKUP(A179,[1]Sheet1!$A:$A,[1]Sheet1!$F:$F,"Not found",0) -> REC-0071 | E179: =_xlfn.XLOOKUP(A179,[1]Sheet1!$A:$A,[1]Sheet1!$H:$H,"not found",0) -> 2015-06-26 | F179: =_xlfn.XLOOKUP(A179,[1]Sheet1!$A:$A,[1]Sheet1!$D:$D,"not found",0) -> R12,589.14 | G179: =_xlfn.XLOOKUP(A179,[1]Sheet1!$A:$A,[1]Sheet1!$E:$E,"not found",0) -> R1.00 | H179: =_xlfn.XLOOKUP(A179,[1]Sheet1!$A:$A,[1]Sheet1!$I:$I,"not found",0) -> 2026-03-31 | I179: No longer provide economic value to the organisation | J179: Scrap | K179: Asset no longer meets a business requirement
A180: 11000017386 | B180: Dell Laptop | C180: =_xlfn.XLOOKUP(A180,[1]Sheet1!$A:$A,[1]Sheet1!$C:$C,"Not found",0) -> 10135 | D180: =_xlfn.XLOOKUP(A180,[1]Sheet1!$A:$A,[1]Sheet1!$F:$F,"Not found",0) -> REC-0071 | E180: =_xlfn.XLOOKUP(A180,[1]Sheet1!$A:$A,[1]Sheet1!$H:$H,"not found",0) -> 2017-03-16 | F180: =_xlfn.XLOOKUP(A180,[1]Sheet1!$A:$A,[1]Sheet1!$D:$D,"not found",0) -> R20,062.86 | G180: =_xlfn.XLOOKUP(A180,[1]Sheet1!$A:$A,[1]Sheet1!$E:$E,"not found",0) -> R1.00 | H180: =_xlfn.XLOOKUP(A180,[1]Sheet1!$A:$A,[1]Sheet1!$I:$I,"not found",0) -> 2026-03-31 | I180: Broken and uneconomical to repair | J180: Scrap | K180: The asset has been damaged beyond economical repair and is no longer meets the business requirement
A181: 6000000006 | B181: Projector Screen | C181: =_xlfn.XLOOKUP(A181,[1]Sheet1!$A:$A,[1]Sheet1!$C:$C,"Not found",0) -> 10135 | D181: =_xlfn.XLOOKUP(A181,[1]Sheet1!$A:$A,[1]Sheet1!$F:$F,"Not found",0) -> REC-0071 | E181: =_xlfn.XLOOKUP(A181,[1]Sheet1!$A:$A,[1]Sheet1!$H:$H,"not found",0) -> 2003-07-17 | F181: =_xlfn.XLOOKUP(A181,[1]Sheet1!$A:$A,[1]Sheet1!$D:$D,"not found",0) -> R430.00 | G181: =_xlfn.XLOOKUP(A181,[1]Sheet1!$A:$A,[1]Sheet1!$E:$E,"not found",0) -> R1.00 | H181: =_xlfn.XLOOKUP(A181,[1]Sheet1!$A:$A,[1]Sheet1!$I:$I,"not found",0) -> 2026-03-31 | I181: Broken and uneconomical to repair | J181: Scrap | K181: The asset has been damaged beyond economical repair and is no longer meets the business requirement
A182: 6000000563 | B182: Polycom Camera | C182: =_xlfn.XLOOKUP(A182,[1]Sheet1!$A:$A,[1]Sheet1!$C:$C,"Not found",0) -> 10135 | D182: =_xlfn.XLOOKUP(A182,[1]Sheet1!$A:$A,[1]Sheet1!$F:$F,"Not found",0) -> REC-0071 | E182: =_xlfn.XLOOKUP(A182,[1]Sheet1!$A:$A,[1]Sheet1!$H:$H,"not found",0) -> 2007-06-30 | F182: =_xlfn.XLOOKUP(A182,[1]Sheet1!$A:$A,[1]Sheet1!$D:$D,"not found",0) -> R152,464.40 | G182: =_xlfn.XLOOKUP(A182,[1]Sheet1!$A:$A,[1]Sheet1!$E:$E,"not found",0) -> R1.00 | H182: =_xlfn.XLOOKUP(A182,[1]Sheet1!$A:$A,[1]Sheet1!$I:$I,"not found",0) -> 2026-03-31 | I182: Broken and uneconomical to repair | J182: Scrap | K182: The asset has been damaged beyond economical repair and is no longer meets the business requirement
A183: 6000000552 | B183: Sympodium Screen | C183: =_xlfn.XLOOKUP(A183,[1]Sheet1!$A:$A,[1]Sheet1!$C:$C,"Not found",0) -> 10135 | D183: =_xlfn.XLOOKUP(A183,[1]Sheet1!$A:$A,[1]Sheet1!$F:$F,"Not found",0) -> REC-0071 | E183: =_xlfn.XLOOKUP(A183,[1]Sheet1!$A:$A,[1]Sheet1!$H:$H,"not found",0) -> 2007-06-30 | F183: =_xlfn.XLOOKUP(A183,[1]Sheet1!$A:$A,[1]Sheet1!$D:$D,"not found",0) -> R38,980.23 | G183: =_xlfn.XLOOKUP(A183,[1]Sheet1!$A:$A,[1]Sheet1!$E:$E,"not found",0) -> R1.00 | H183: =_xlfn.XLOOKUP(A183,[1]Sheet1!$A:$A,[1]Sheet1!$I:$I,"not found",0) -> 2026-03-31 | I183: Broken and uneconomical to repair | J183: Scrap | K183: The asset has been damaged beyond economical repair and is no longer meets the business requirement
A184: 6000000517 | B184: Yamaha Amplifier | C184: =_xlfn.XLOOKUP(A184,[1]Sheet1!$A:$A,[1]Sheet1!$C:$C,"Not found",0) -> 10135 | D184: =_xlfn.XLOOKUP(A184,[1]Sheet1!$A:$A,[1]Sheet1!$F:$F,"Not found",0) -> REC-0071 | E184: =_xlfn.XLOOKUP(A184,[1]Sheet1!$A:$A,[1]Sheet1!$H:$H,"not found",0) -> 2007-06-30 | F184: =_xlfn.XLOOKUP(A184,[1]Sheet1!$A:$A,[1]Sheet1!$D:$D,"not found",0) -> R4,230.20 | G184: =_xlfn.XLOOKUP(A184,[1]Sheet1!$A:$A,[1]Sheet1!$E:$E,"not found",0) -> R1.00 | H184: =_xlfn.XLOOKUP(A184,[1]Sheet1!$A:$A,[1]Sheet1!$I:$I,"not found",0) -> 2026-03-31 | I184: Broken and uneconomical to repair | J184: Scrap | K184: The asset has been damaged beyond economical repair and is no longer meets the business requirement
A185: 6000000556 | B185: Shure Microphone Mixer | C185: =_xlfn.XLOOKUP(A185,[1]Sheet1!$A:$A,[1]Sheet1!$C:$C,"Not found",0) -> 10135 | D185: =_xlfn.XLOOKUP(A185,[1]Sheet1!$A:$A,[1]Sheet1!$F:$F,"Not found",0) -> REC-0071 | E185: =_xlfn.XLOOKUP(A185,[1]Sheet1!$A:$A,[1]Sheet1!$H:$H,"not found",0) -> 2007-06-30 | F185: =_xlfn.XLOOKUP(A185,[1]Sheet1!$A:$A,[1]Sheet1!$D:$D,"not found",0) -> R99,659.46 | G185: =_xlfn.XLOOKUP(A185,[1]Sheet1!$A:$A,[1]Sheet1!$E:$E,"not found",0) -> R1.00 | H185: =_xlfn.XLOOKUP(A185,[1]Sheet1!$A:$A,[1]Sheet1!$I:$I,"not found",0) -> 2026-03-31 | I185: Broken and uneconomical to repair | J185: Scrap | K185: The asset has been damaged beyond economical repair and is no longer meets the business requirement
A186: 10000000609 | B186: Zebra Printer | C186: =_xlfn.XLOOKUP(A186,[1]Sheet1!$A:$A,[1]Sheet1!$C:$C,"Not found",0) -> F30070 | D186: =_xlfn.XLOOKUP(A186,[1]Sheet1!$A:$A,[1]Sheet1!$F:$F,"Not found",0) -> REC-0071 | E186: =_xlfn.XLOOKUP(A186,[1]Sheet1!$A:$A,[1]Sheet1!$H:$H,"not found",0) -> 2008-08-18 | F186: =_xlfn.XLOOKUP(A186,[1]Sheet1!$A:$A,[1]Sheet1!$D:$D,"not found",0) -> R10,264.50 | G186: =_xlfn.XLOOKUP(A186,[1]Sheet1!$A:$A,[1]Sheet1!$E:$E,"not found",0) -> R1.00 | H186: =_xlfn.XLOOKUP(A186,[1]Sheet1!$A:$A,[1]Sheet1!$I:$I,"not found",0) -> 2026-03-31 | I186: No longer provide economic value to the organisation | J186: Scrap | K186: Asset no longer meets a business requirement
A187: 11000016373 | B187: Zebra Printer | C187: =_xlfn.XLOOKUP(A187,[1]Sheet1!$A:$A,[1]Sheet1!$C:$C,"Not found",0) -> F30070 | D187: =_xlfn.XLOOKUP(A187,[1]Sheet1!$A:$A,[1]Sheet1!$F:$F,"Not found",0) -> REC-0071 | E187: =_xlfn.XLOOKUP(A187,[1]Sheet1!$A:$A,[1]Sheet1!$H:$H,"not found",0) -> 2005-03-31 | F187: =_xlfn.XLOOKUP(A187,[1]Sheet1!$A:$A,[1]Sheet1!$D:$D,"not found",0) -> R14,960.79 | G187: =_xlfn.XLOOKUP(A187,[1]Sheet1!$A:$A,[1]Sheet1!$E:$E,"not found",0) -> R1.00 | H187: =_xlfn.XLOOKUP(A187,[1]Sheet1!$A:$A,[1]Sheet1!$I:$I,"not found",0) -> 2026-03-31 | I187: No longer provide economic value to the organisation | J187: Scrap | K187: Asset no longer meets a business requirement
A188: 11000011895 | B188: Motorola Scanner | C188: =_xlfn.XLOOKUP(A188,[1]Sheet1!$A:$A,[1]Sheet1!$C:$C,"Not found",0) -> F30070 | D188: =_xlfn.XLOOKUP(A188,[1]Sheet1!$A:$A,[1]Sheet1!$F:$F,"Not found",0) -> REC-0071 | E188: =_xlfn.XLOOKUP(A188,[1]Sheet1!$A:$A,[1]Sheet1!$H:$H,"not found",0) -> 2010-03-29 | F188: =_xlfn.XLOOKUP(A188,[1]Sheet1!$A:$A,[1]Sheet1!$D:$D,"not found",0) -> R7,948.04 | G188: =_xlfn.XLOOKUP(A188,[1]Sheet1!$A:$A,[1]Sheet1!$E:$E,"not found",0) -> R1.00 | H188: =_xlfn.XLOOKUP(A188,[1]Sheet1!$A:$A,[1]Sheet1!$I:$I,"not found",0) -> 2026-03-31 | I188: No longer provide economic value to the organisation | J188: Scrap | K188: Asset no longer meets a business requirement
A189: 11000011894 | B189: Motorola Scanner | C189: =_xlfn.XLOOKUP(A189,[1]Sheet1!$A:$A,[1]Sheet1!$C:$C,"Not found",0) -> F30070 | D189: =_xlfn.XLOOKUP(A189,[1]Sheet1!$A:$A,[1]Sheet1!$F:$F,"Not found",0) -> REC-0071 | E189: =_xlfn.XLOOKUP(A189,[1]Sheet1!$A:$A,[1]Sheet1!$H:$H,"not found",0) -> 2010-03-29 | F189: =_xlfn.XLOOKUP(A189,[1]Sheet1!$A:$A,[1]Sheet1!$D:$D,"not found",0) -> R7,948.04 | G189: =_xlfn.XLOOKUP(A189,[1]Sheet1!$A:$A,[1]Sheet1!$E:$E,"not found",0) -> R1.00 | H189: =_xlfn.XLOOKUP(A189,[1]Sheet1!$A:$A,[1]Sheet1!$I:$I,"not found",0) -> 2026-03-31 | I189: No longer provide economic value to the organisation | J189: Scrap | K189: Asset no longer meets a business requirement
A190: 6000000529 | B190: Projector Screen | C190: =_xlfn.XLOOKUP(A190,[1]Sheet1!$A:$A,[1]Sheet1!$C:$C,"Not found",0) -> 10135 | D190: =_xlfn.XLOOKUP(A190,[1]Sheet1!$A:$A,[1]Sheet1!$F:$F,"Not found",0) -> REC-0071 | E190: =_xlfn.XLOOKUP(A190,[1]Sheet1!$A:$A,[1]Sheet1!$H:$H,"not found",0) -> 2007-06-30 | F190: =_xlfn.XLOOKUP(A190,[1]Sheet1!$A:$A,[1]Sheet1!$D:$D,"not found",0) -> R7,009.10 | G190: =_xlfn.XLOOKUP(A190,[1]Sheet1!$A:$A,[1]Sheet1!$E:$E,"not found",0) -> R1.00 | H190: =_xlfn.XLOOKUP(A190,[1]Sheet1!$A:$A,[1]Sheet1!$I:$I,"not found",0) -> 2026-03-31 | I190: No longer provide economic value to the organisation | J190: Scrap | K190: Asset no longer meets a business requirement
A191: 8000000008 | B191: PABX System | C191: =_xlfn.XLOOKUP(A191,[1]Sheet1!$A:$A,[1]Sheet1!$C:$C,"Not found",0) -> 10135 | D191: =_xlfn.XLOOKUP(A191,[1]Sheet1!$A:$A,[1]Sheet1!$F:$F,"Not found",0) -> REC-0071 | E191: =_xlfn.XLOOKUP(A191,[1]Sheet1!$A:$A,[1]Sheet1!$H:$H,"not found",0) -> 2002-04-30 | F191: =_xlfn.XLOOKUP(A191,[1]Sheet1!$A:$A,[1]Sheet1!$D:$D,"not found",0) -> R167,154.47 | G191: =_xlfn.XLOOKUP(A191,[1]Sheet1!$A:$A,[1]Sheet1!$E:$E,"not found",0) -> R1.00 | H191: =_xlfn.XLOOKUP(A191,[1]Sheet1!$A:$A,[1]Sheet1!$I:$I,"not found",0) -> 2026-03-31 | I191: No longer provide economic value to the organisation | J191: Scrap | K191: Asset no longer meets a business requirement
A192: 8000000011 | B192: PABX System | C192: =_xlfn.XLOOKUP(A192,[1]Sheet1!$A:$A,[1]Sheet1!$C:$C,"Not found",0) -> 10135 | D192: =_xlfn.XLOOKUP(A192,[1]Sheet1!$A:$A,[1]Sheet1!$F:$F,"Not found",0) -> REC-0071 | E192: =_xlfn.XLOOKUP(A192,[1]Sheet1!$A:$A,[1]Sheet1!$H:$H,"not found",0) -> 1998-02-13 | F192: =_xlfn.XLOOKUP(A192,[1]Sheet1!$A:$A,[1]Sheet1!$D:$D,"not found",0) -> R227,371.86 | G192: =_xlfn.XLOOKUP(A192,[1]Sheet1!$A:$A,[1]Sheet1!$E:$E,"not found",0) -> R1.00 | H192: =_xlfn.XLOOKUP(A192,[1]Sheet1!$A:$A,[1]Sheet1!$I:$I,"not found",0) -> 2026-03-31 | I192: No longer provide economic value to the organisation | J192: Scrap | K192: Asset no longer meets a business requirement
A193: 11000014145 | B193: Huwaei Router | C193: =_xlfn.XLOOKUP(A193,[1]Sheet1!$A:$A,[1]Sheet1!$C:$C,"Not found",0) -> 10135 | D193: =_xlfn.XLOOKUP(A193,[1]Sheet1!$A:$A,[1]Sheet1!$F:$F,"Not found",0) -> REC-0071 | E193: =_xlfn.XLOOKUP(A193,[1]Sheet1!$A:$A,[1]Sheet1!$H:$H,"not found",0) -> 2013-06-28 | F193: =_xlfn.XLOOKUP(A193,[1]Sheet1!$A:$A,[1]Sheet1!$D:$D,"not found",0) -> R1,723.96 | G193: =_xlfn.XLOOKUP(A193,[1]Sheet1!$A:$A,[1]Sheet1!$E:$E,"not found",0) -> R1.00 | H193: =_xlfn.XLOOKUP(A193,[1]Sheet1!$A:$A,[1]Sheet1!$I:$I,"not found",0) -> 2026-03-31 | I193: No longer provide economic value to the organisation | J193: Scrap | K193: Asset no longer meets a business requirement
A194: 11000014140 | B194: Huwaei Router | C194: =_xlfn.XLOOKUP(A194,[1]Sheet1!$A:$A,[1]Sheet1!$C:$C,"Not found",0) -> 10135 | D194: =_xlfn.XLOOKUP(A194,[1]Sheet1!$A:$A,[1]Sheet1!$F:$F,"Not found",0) -> REC-0071 | E194: =_xlfn.XLOOKUP(A194,[1]Sheet1!$A:$A,[1]Sheet1!$H:$H,"not found",0) -> 2013-06-28 | F194: =_xlfn.XLOOKUP(A194,[1]Sheet1!$A:$A,[1]Sheet1!$D:$D,"not found",0) -> R1,723.96 | G194: =_xlfn.XLOOKUP(A194,[1]Sheet1!$A:$A,[1]Sheet1!$E:$E,"not found",0) -> R1.00 | H194: =_xlfn.XLOOKUP(A194,[1]Sheet1!$A:$A,[1]Sheet1!$I:$I,"not found",0) -> 2026-03-31 | I194: No longer provide economic value to the organisation | J194: Scrap | K194: Asset no longer meets a business requirement
A195: 11000014143 | B195: Huwaei Router | C195: =_xlfn.XLOOKUP(A195,[1]Sheet1!$A:$A,[1]Sheet1!$C:$C,"Not found",0) -> 10135 | D195: =_xlfn.XLOOKUP(A195,[1]Sheet1!$A:$A,[1]Sheet1!$F:$F,"Not found",0) -> REC-0071 | E195: =_xlfn.XLOOKUP(A195,[1]Sheet1!$A:$A,[1]Sheet1!$H:$H,"not found",0) -> 2013-06-28 | F195: =_xlfn.XLOOKUP(A195,[1]Sheet1!$A:$A,[1]Sheet1!$D:$D,"not found",0) -> R1,723.96 | G195: =_xlfn.XLOOKUP(A195,[1]Sheet1!$A:$A,[1]Sheet1!$E:$E,"not found",0) -> R1.00 | H195: =_xlfn.XLOOKUP(A195,[1]Sheet1!$A:$A,[1]Sheet1!$I:$I,"not found",0) -> 2026-03-31 | I195: No longer provide economic value to the organisation | J195: Scrap | K195: Asset no longer meets a business requirement
A196: 11000014136 | B196: Huwaei Router | C196: =_xlfn.XLOOKUP(A196,[1]Sheet1!$A:$A,[1]Sheet1!$C:$C,"Not found",0) -> 10135 | D196: =_xlfn.XLOOKUP(A196,[1]Sheet1!$A:$A,[1]Sheet1!$F:$F,"Not found",0) -> REC-0071 | E196: =_xlfn.XLOOKUP(A196,[1]Sheet1!$A:$A,[1]Sheet1!$H:$H,"not found",0) -> 2013-06-28 | F196: =_xlfn.XLOOKUP(A196,[1]Sheet1!$A:$A,[1]Sheet1!$D:$D,"not found",0) -> R1,717.81 | G196: =_xlfn.XLOOKUP(A196,[1]Sheet1!$A:$A,[1]Sheet1!$E:$E,"not found",0) -> R1.00 | H196: =_xlfn.XLOOKUP(A196,[1]Sheet1!$A:$A,[1]Sheet1!$I:$I,"not found",0) -> 2026-03-31 | I196: No longer provide economic value to the organisation | J196: Scrap | K196: Asset no longer meets a business requirement
A197: 11000014138 | B197: Huwaei Router | C197: =_xlfn.XLOOKUP(A197,[1]Sheet1!$A:$A,[1]Sheet1!$C:$C,"Not found",0) -> 10135 | D197: =_xlfn.XLOOKUP(A197,[1]Sheet1!$A:$A,[1]Sheet1!$F:$F,"Not found",0) -> REC-0071 | E197: =_xlfn.XLOOKUP(A197,[1]Sheet1!$A:$A,[1]Sheet1!$H:$H,"not found",0) -> 2013-06-28 | F197: =_xlfn.XLOOKUP(A197,[1]Sheet1!$A:$A,[1]Sheet1!$D:$D,"not found",0) -> R1,717.81 | G197: =_xlfn.XLOOKUP(A197,[1]Sheet1!$A:$A,[1]Sheet1!$E:$E,"not found",0) -> R1.00 | H197: =_xlfn.XLOOKUP(A197,[1]Sheet1!$A:$A,[1]Sheet1!$I:$I,"not found",0) -> 2026-03-31 | I197: No longer provide economic value to the organisation | J197: Scrap | K197: Asset no longer meets a business requirement
A198: 11000014141 | B198: Huwaei Router | C198: =_xlfn.XLOOKUP(A198,[1]Sheet1!$A:$A,[1]Sheet1!$C:$C,"Not found",0) -> 10135 | D198: =_xlfn.XLOOKUP(A198,[1]Sheet1!$A:$A,[1]Sheet1!$F:$F,"Not found",0) -> REC-0071 | E198: =_xlfn.XLOOKUP(A198,[1]Sheet1!$A:$A,[1]Sheet1!$H:$H,"not found",0) -> 2013-06-28 | F198: =_xlfn.XLOOKUP(A198,[1]Sheet1!$A:$A,[1]Sheet1!$D:$D,"not found",0) -> R1,723.96 | G198: =_xlfn.XLOOKUP(A198,[1]Sheet1!$A:$A,[1]Sheet1!$E:$E,"not found",0) -> R1.00 | H198: =_xlfn.XLOOKUP(A198,[1]Sheet1!$A:$A,[1]Sheet1!$I:$I,"not found",0) -> 2026-03-31 | I198: No longer provide economic value to the organisation | J198: Scrap | K198: Asset no longer meets a business requirement
A199: 11000004716 | B199: HP Server | C199: =_xlfn.XLOOKUP(A199,[1]Sheet1!$A:$A,[1]Sheet1!$C:$C,"Not found",0) -> 10135 | D199: =_xlfn.XLOOKUP(A199,[1]Sheet1!$A:$A,[1]Sheet1!$F:$F,"Not found",0) -> REC-0071 | E199: =_xlfn.XLOOKUP(A199,[1]Sheet1!$A:$A,[1]Sheet1!$H:$H,"not found",0) -> 2006-02-10 | F199: =_xlfn.XLOOKUP(A199,[1]Sheet1!$A:$A,[1]Sheet1!$D:$D,"not found",0) -> R52,427.46 | G199: =_xlfn.XLOOKUP(A199,[1]Sheet1!$A:$A,[1]Sheet1!$E:$E,"not found",0) -> R1.00 | H199: =_xlfn.XLOOKUP(A199,[1]Sheet1!$A:$A,[1]Sheet1!$I:$I,"not found",0) -> 2026-03-31 | I199: No longer provide economic value to the organisation | J199: Scrap | K199: Asset no longer meets a business requirement
A200: 11000004910 | B200: Compaq Server | C200: =_xlfn.XLOOKUP(A200,[1]Sheet1!$A:$A,[1]Sheet1!$C:$C,"Not found",0) -> 10135 | D200: =_xlfn.XLOOKUP(A200,[1]Sheet1!$A:$A,[1]Sheet1!$F:$F,"Not found",0) -> REC-0071 | E200: =_xlfn.XLOOKUP(A200,[1]Sheet1!$A:$A,[1]Sheet1!$H:$H,"not found",0) -> 2002-07-19 | F200: =_xlfn.XLOOKUP(A200,[1]Sheet1!$A:$A,[1]Sheet1!$D:$D,"not found",0) -> R83,778.47 | G200: =_xlfn.XLOOKUP(A200,[1]Sheet1!$A:$A,[1]Sheet1!$E:$E,"not found",0) -> R1.00 | H200: =_xlfn.XLOOKUP(A200,[1]Sheet1!$A:$A,[1]Sheet1!$I:$I,"not found",0) -> 2026-03-31 | I200: No longer provide economic value to the organisation | J200: Scrap | K200: Asset no longer meets a business requirement
... 27 more rows

Sheet Sheet2
